Transaction Reference,Supplier Name,Line Value,Department,Category,Transaction Date,Year/Period,SME,Costs split between Mid Suffolk and Babergh District Councils Y/N,% of transaction apportioned to Babergh District Council
356820,AE WHITE SURFACING,"4,531.00",General/Supervision & Mgmt,Contracted Services,15-Dec-21,2122/10,SME,N,
357075,ANGLIAN WATER,"1,325.75",Sheltered Accommodation,Water Rates - Metered,20-Dec-21,2122/10,LGE,N,
357080,ANGLIAN WATER,441.01,Other HRA Temp Accommodation,Water Rates - Metered,19-Dec-21,2122/10,LGE,N,
357275,ANGLIAN WATER,"6,887.55",Tenancy Services,Water Rates - Metered,11-Dec-21,2122/10,LGE,N,
357455,APSE,"1,230.00",Food & Safety (General),Agency Staff,20-Jan-22,2122/10,LGE,Y,50%
357455,APSE,"1,230.00",Animal Welfare Licensing,Agency Staff,20-Jan-22,2122/10,LGE,Y,50%
357323,AQUAJET CLEANING EQUIPMENT LTD,920,Creeting Rd Depot,"Equipment, Tools & Materials",12-Jan-22,2122/10,SME,Y,50%
357573,AQUAJET CLEANING EQUIPMENT LTD,307.55,Creeting Rd Depot,"Equipment, Tools & Materials",25-Jan-22,2122/10,SME,Y,50%
357088,BINDER LTD,335,Sewage Treatment Works,Contracted Services,30-Dec-21,2122/10,SME,N,
357088,BINDER LTD,13,Sewage Treatment Works,Repairs,30-Dec-21,2122/10,SME,N,
357271,BLUE FLAME (COLCHESTER) LTD,"26,081.79",Planned Maint - Heating,Property Servicing,05-Jan-22,2122/10,SME,N,
422307,BLUE FLAME (COLCHESTER) LTD,450,Disabled Facilities (Revenue),Repairs,05-Jan-22,2122/10,SME,N,
422307,BLUE FLAME (COLCHESTER) LTD,"3,765.10",Planned Maint - Heating,Property Servicing,05-Jan-22,2122/10,SME,N,
422307,BLUE FLAME (COLCHESTER) LTD,"1,345.12",PV Panels,Contracted Services,05-Jan-22,2122/10,SME,N,
422310,BLUE FLAME (COLCHESTER) LTD,50,Council House Adaptions,Improvements,12-Jan-22,2122/10,SME,N,
422310,BLUE FLAME (COLCHESTER) LTD,77.79,Housing Rechargeable Works,Repairs,12-Jan-22,2122/10,SME,N,
422310,BLUE FLAME (COLCHESTER) LTD,"13,760.11",Planned Maint - Heating,Property Servicing,12-Jan-22,2122/10,SME,N,
422310,BLUE FLAME (COLCHESTER) LTD,"1,487.62",PV Panels,Contracted Services,12-Jan-22,2122/10,SME,N,
422310,BLUE FLAME (COLCHESTER) LTD,"27,046.50",Sheltered Units-Gen.Imp,Improvements,12-Jan-22,2122/10,SME,N,
422310,BLUE FLAME (COLCHESTER) LTD,747.9,Voids Maintenance,Repairs,12-Jan-22,2122/10,SME,N,
422313,BLUE FLAME (COLCHESTER) LTD,263.13,Voids Maintenance,Repairs,19-Jan-22,2122/10,SME,N,
422313,BLUE FLAME (COLCHESTER) LTD,"7,318.50",Planned Maint - Heating,Property Servicing,19-Jan-22,2122/10,SME,N,
422313,BLUE FLAME (COLCHESTER) LTD,"33,220.74",Central Heating,Improvements,19-Jan-22,2122/10,SME,N,
422313,BLUE FLAME (COLCHESTER) LTD,"2,352.34",PV Panels,Contracted Services,19-Jan-22,2122/10,SME,N,
422318,BLUE FLAME (COLCHESTER) LTD,239.16,Voids Maintenance,Repairs,26-Jan-22,2122/10,SME,N,
422318,BLUE FLAME (COLCHESTER) LTD,"10,073.02",Planned Maint - Heating,Property Servicing,26-Jan-22,2122/10,SME,N,
422318,BLUE FLAME (COLCHESTER) LTD,"1,706.21",Council House Adaptions,Improvements,26-Jan-22,2122/10,SME,N,
422318,BLUE FLAME (COLCHESTER) LTD,463.88,Smoke Alarms (Bbgh Standard),Improvements,26-Jan-22,2122/10,SME,N,
422318,BLUE FLAME (COLCHESTER) LTD,"23,295.00",Central Heating,Improvements,26-Jan-22,2122/10,SME,N,
422318,BLUE FLAME (COLCHESTER) LTD,"4,948.12",PV Panels,Contracted Services,26-Jan-22,2122/10,SME,N,
422318,BLUE FLAME (COLCHESTER) LTD,37.79,Housing Rechargeable Works,Repairs,26-Jan-22,2122/10,SME,N,
357246,BOWER FULLER,"3,691.50",Leisure Contract,Repairs,31-Dec-21,2122/10,SME,N,
357250,BOWER FULLER,401.74,Sheltered Accommodation,Fire Prevention,31-Dec-21,2122/10,SME,N,
357251,BOWER FULLER,338.4,Sheltered Accommodation,Fire Prevention,31-Dec-21,2122/10,SME,N,
357252,BOWER FULLER,"1,921.20",Temporary Accommodation,Fire Prevention,31-Dec-21,2122/10,SME,N,
357182,CHIPSIDE LTD,898.17,C Parks General,Contracted Services,31-Dec-21,2122/10,SME,N,
357282,CLARKE FENCING LTD,419.98,Open Spaces,"Equipment, Tools & Materials",11-Jan-22,2122/10,SME,N,
357441,D W ADAMS LTD,"4,028.00",Major Imps,Improvements,20-Jan-22,2122/10,SME,N,
357355,DMA HEALTH AND SAFETY LTD,300,Planned Maint - Ext Painting,Prof & Consultancy Fees,13-Jan-22,2122/10,SME,N,
357569,DOLPHIN STAIRLIFTS (EAST ANGLIA) LTD,"16,642.00",Mand Disabled Facilities Grant,Grants,25-Jan-22,2122/10,SME,N,
357051,EAST ANGLIA CLEANING SERVICES LTD,"1,374.49",Jnt Waste Contract,General Cleaning,29-Dec-21,2122/10,SME,Y,50%
357052,EAST ANGLIA CLEANING SERVICES LTD,451.47,Open Spaces,General Cleaning,29-Dec-21,2122/10,SME,N,
357623,EAST ANGLIA CLEANING SERVICES LTD,"1,374.49",Jnt Waste Contract,General Cleaning,27-Jan-22,2122/10,SME,Y,50%
357625,EAST ANGLIA CLEANING SERVICES LTD,451.47,Open Spaces,General Cleaning,27-Jan-22,2122/10,SME,N,
357290,CIVICA ELECTION SERVICES,257.86,Electoral Registration,Commercial Printing,31-Dec-21,2122/10,LGE,N,
357340,CIVICA ELECTION SERVICES,"2,233.11",Electoral Registration,Commercial Printing,12-Oct-21,2122/10,LGE,Y,42%
357341,CIVICA ELECTION SERVICES,"14,452.96",Electoral Registration,Commercial Printing,12-Oct-21,2122/10,LGE,Y,46%
357497,CIVICA ELECTION SERVICES,"1,322.94",Electoral Registration,Commercial Printing,10-Nov-21,2122/10,LGE,N,
357449,ENGLISH SECURITY,41.2,Building Services,Fire Prevention,20-Jan-22,2122/10,SME,N,
357449,ENGLISH SECURITY,185.4,Creeting Rd Depot,Fire Prevention,20-Jan-22,2122/10,SME,Y,50%
357449,ENGLISH SECURITY,90,Other HRA Temp Accommodation,Fire Prevention,20-Jan-22,2122/10,SME,N,
357449,ENGLISH SECURITY,"1,975.40",Sheltered Accommodation,Fire Prevention,20-Jan-22,2122/10,SME,N,
357449,ENGLISH SECURITY,415.4,Temporary Accommodation,Fire Prevention,20-Jan-22,2122/10,SME,N,
357449,ENGLISH SECURITY,"2,241.90",Tenancy Services,Fire Prevention,20-Jan-22,2122/10,SME,N,
357449,ENGLISH SECURITY,128.75,Wingfield Barns,Fire Prevention,20-Jan-22,2122/10,SME,N,
357212,FELGAINS CARE CENTRE,"2,464.00",Mand Disabled Facilities Grant,Grants,07-Jan-22,2122/10,SME,N,
357370,FELGAINS CARE CENTRE,"1,133.00",Mand Disabled Facilities Grant,Grants,14-Jan-22,2122/10,SME,N,
356857,FELLBRIDGE BUILDING SERVICES,"2,645.26",Building Services,Repairs,16-Dec-21,2122/10,SME,N,
357193,FELLBRIDGE BUILDING SERVICES,"6,881.81",Building Services,Repairs,06-Jan-22,2122/10,SME,N,
357356,FELLBRIDGE BUILDING SERVICES,"1,777.98",Building Services,Repairs,13-Jan-22,2122/10,SME,N,
357372,FELLBRIDGE BUILDING SERVICES,"15,449.90",Major Imps,Improvements,13-Jan-21,2122/10,SME,N,
357451,FELLBRIDGE BUILDING SERVICES,365.48,Building Services,Repairs,20-Jan-21,2122/10,SME,N,
357453,FELLBRIDGE BUILDING SERVICES,383.3,Building Services,Repairs,20-Jan-22,2122/10,SME,N,
357472,FELLBRIDGE BUILDING SERVICES,"12,760.02",Building Services,Repairs,20-Jan-22,2122/10,SME,N,
357162,GB ADAPTIONS LTD,"7,500.00",Mand Disabled Facilities Grant,Grants,05-Jan-22,2122/10,SME,N,
357174,GHB ROOFING,"2,479.00",Building Services,Repairs,06-Jan-22,2122/10,SME,N,
356869,HUDSON MEDIA PARTNERSHIP LTD,"2,653.80",Bldg Regs Chargeable Serv,Advertising&mkting (non-staff),16-Dec-21,2122/10,SME,N,
357402,HUDSON MEDIA PARTNERSHIP LTD,675,Street & Major Road Cleansing,"Equipment, Tools & Materials",17-Jan-22,2122/10,SME,N,
357029,JMP SERVICES LTD,300,Street & Major Road Cleansing,Contracted Services,23-Dec-21,2122/10,SME,N,
357615,JMP SERVICES LTD,420,Street & Major Road Cleansing,Contracted Services,27-Jan-22,2122/10,SME,N,
357232,KEN GRIME & SON LTD,935.47,Building Services,Repairs,07-Jan-22,2122/10,SME,N,
356781,M & H CIVIL ENGINEERING LTD,570,Building Services,Repairs,13-Dec-21,2122/10,SME,N,
357260,M & H CIVIL ENGINEERING LTD,491.25,Building Services,Repairs,07-Jan-22,2122/10,SME,N,
357261,M & H CIVIL ENGINEERING LTD,678.5,Building Services,Repairs,07-Jan-22,2122/10,SME,N,
357410,M & H CIVIL ENGINEERING LTD,485,Building Services,Repairs,18-Jan-22,2122/10,SME,N,
357071,MALJON TIMBER PRESERVATION LTD,509,Building Services,Repairs,21-Dec-21,2122/10,SME,N,
357207,MARRIOTT HOLDINGS LTD,"1,875.00",C Parks-Stowmarket Lorry Park,Rent Payable,25-Dec-21,2122/10,SME,N,
357197,MATERIAL CHANGE COMPOSTING LTD,379.21,Open Spaces,Waste Disposal,31-Dec-21,2122/10,LGE,N,
356992,MB TREES (EAST ANGLIA) LTD,"4,065.00",Public Tree Programme,Tree felling/maintenance,21-Dec-21,2122/10,SME,N,
356993,MB TREES (EAST ANGLIA) LTD,720,Public Tree Programme,Tree felling/maintenance,21-Dec-21,2122/10,SME,N,
357189,MB TREES (EAST ANGLIA) LTD,780,Amenity Areas,Tree felling/maintenance,06-Jan-22,2122/10,SME,N,
357294,MB TREES (EAST ANGLIA) LTD,680,Pure Gym & Adjacent Building,Grounds & Site Maintenance,11-Jan-22,2122/10,SME,N,
357296,MB TREES (EAST ANGLIA) LTD,"3,750.00",Sheltered Accommodation,Grounds & Site Maintenance,11-Jan-22,2122/10,SME,N,
357616,MB TREES (EAST ANGLIA) LTD,520,Amenity Areas,Tree felling/maintenance,27-Jan-22,2122/10,SME,N,
357617,MB TREES (EAST ANGLIA) LTD,520,Amenity Areas,Tree felling/maintenance,27-Jan-22,2122/10,SME,N,
357606,MID SUFFOLK FENCING LTD,695,Domestic Waste,Refuse Contract,26-Jan-22,2122/10,SME,N,
357319,MIXBROW LTD,"5,472.67",Council House Adaptions,Improvements,12-Jan-22,2122/10,SME,N,
357021,REID PLUMBING & HEATING CONTRACTORS LTD,"9,814.01",Central Heating,Major Contracts,22-Dec-21,2122/10,SME,N,
357258,REID PLUMBING & HEATING CONTRACTORS LTD,"14,253.95",Central Heating,Major Contracts,10-Jan-22,2122/10,SME,N,
357423,REID PLUMBING & HEATING CONTRACTORS LTD,"14,163.56",Central Heating,Major Contracts,19-Jan-22,2122/10,SME,N,
357198,NBS ENTERPRISES LTD,"7,690.00",Building Services,Software Licnse (Line of Bus) ,01-Sep-21,2122/10,SME,Y,50%
357141,SACKERS LTD,"2,265.46",Building Services,Waste Disposal,31-Dec-21,2122/10,SME,Y,50%
356986,SOLUTIONS ON SECURITY SERVICES,730,Sheltered Accommodation,Annual Bldg Maint Contracts,20-Dec-21,2122/10,SME,N,
357164,SOLUTIONS ON SECURITY SERVICES,432.12,Sheltered Accommodation,Repairs,05-Jan-22,2122/10,SME,N,
357303,SOLUTIONS ON SECURITY SERVICES,960,Sheltered Accommodation,Annual Bldg Maint Contracts,11-Jan-22,2122/10,SME,N,
357450,SOLUTIONS ON SECURITY SERVICES,"2,530.88",Sheltered Accommodation,Improvements,19-Jan-22,2122/10,SME,N,
357524,SSI SCHAEFER LTD,"14,896.20",Bins,Bins,24-Jan-22,2122/10,SME,Y,49%
357604,SUFFOLK LIBRARIES IPS LTD HADLEIGH,"1,250.00",Tourism General,Contracted Services,26-Jan-22,2122/10,SME,N,
357605,SUFFOLK LIBRARIES IPS LTD HADLEIGH,"1,250.00",Tourism General,Contracted Services,26-Jan-22,2122/10,SME,N,
357314,THOMPSON COOPER LTD,730,Street & Major Road Cleansing,"Equipment, Tools & Materials",12-Jan-22,2122/10,SME,Y,50%
357539,THOMPSON COOPER LTD,"1,275.00",Street & Major Road Cleansing,"Equipment, Tools & Materials",24-Jan-22,2122/10,SME,Y,50%
357196,TRISCAN SYSTEMS LTD,669.85,Open Spaces,Plant & Vehicle - Other costs,08-Dec-21,2122/10,SME,N,
357220,TRUCKEAST LTD,"2,134.06",Street & Major Road Cleansing,Plant & Vehicle - Other costs,07-Jan-22,2122/10,LGE,N,
357122,VODAFONE CORPORATE LTD,"1,646.19",ICT,Telephone Costs,23-Oct-21,2122/10,LGE,Y,50%
357593,VODAFONE CORPORATE LTD,"1,593.68",ICT,Telephone Costs,22-Jan-22,2122/10,LGE,Y,50%
357069,WEST END REHOMING,395.42,Dog Control,Collection Charges,01-Jan-22,2122/10,SME,N,
356875,WINDIMAN LTD,369.06,Building Services,Repairs,25-Nov-21,2122/10,SME,N,
356876,WINDIMAN LTD,"1,135.00",Building Services,Repairs,25-Nov-21,2122/10,SME,N,
357199,WINDIMAN LTD,"1,207.30",Building Services,Repairs,06-Jan-22,2122/10,SME,N,
357200,WINDIMAN LTD,"1,870.00",Building Services,Repairs,06-Jan-22,2122/10,SME,N,
357201,WINDIMAN LTD,823.73,Building Services,Repairs,06-Jan-22,2122/10,SME,N,
357203,WINDIMAN LTD,735,Building Services,Repairs,06-Jan-22,2122/10,SME,N,
357204,WINDIMAN LTD,452.52,Building Services,Repairs,06-Jan-22,2122/10,SME,N,
357205,WINDIMAN LTD,735,Building Services,Repairs,06-Jan-22,2122/10,SME,N,
357064,WORKWEAR (EAST ANGLIA) LTD,284.4,Open Spaces,Protective clothing,30-Dec-21,2122/10,SME,N,
357064,WORKWEAR (EAST ANGLIA) LTD,94.8,Street & Major Road Cleansing,Protective clothing,30-Dec-21,2122/10,SME,N,
357124,WORKWEAR (EAST ANGLIA) LTD,253.03,Open Spaces,Protective clothing,06-Dec-21,2122/10,SME,N,
357256,WORKWEAR (EAST ANGLIA) LTD,633.38,Open Spaces,Protective clothing,07-Jan-22,2122/10,SME,N,
357256,WORKWEAR (EAST ANGLIA) LTD,633.39,Street & Major Road Cleansing,Protective clothing,07-Jan-22,2122/10,SME,N,
357367,WORKWEAR (EAST ANGLIA) LTD,656.08,Street & Major Road Cleansing,Protective clothing,13-Jan-22,2122/10,SME,N,
357395,WORKWEAR (EAST ANGLIA) LTD,328,Afghan Resettlement Programme,"Equipment, Tools & Materials",07-Dec-21,2122/10,SME,N,
356931,ARCHANT COMMUNITY MEDIA LTD,402.73,Devt Management - Apps,Advertising&mkting (non-staff),18-Dec-21,2122/10,LGE,N,
357520,ARCHANT COMMUNITY MEDIA LTD,756.42,Devt Management - Apps,Advertising&mkting (non-staff),22-Jan-22,2122/10,LGE,N,
356906,MITIE PROPERTY SERVICES (UK) LTD,"6,727.63",Planned Maint - Ext Painting,Major Contracts,17-Dec-21,2122/10,SME,N,
357363,ESSEX COUNTY COUNCIL,"2,559.00",Conservation,Prof & Consultancy Fees,13-Jan-22,2122/10,LGE,N,
357540,ESSEX COUNTY COUNCIL,"7,962.00",Devt Management - Apps,Ecology Consultancy,24-Jan-22,2122/10,LGE,N,
357541,ESSEX COUNTY COUNCIL,"10,372.00",Devt Management - Apps,Ecology Consultancy,24-Jan-22,2122/10,LGE,N,
357417,HADLEIGH TYRE SERVICES,"1,404.00",Open Spaces,Plant & Vehicle - Other costs,14-Jan-22,2122/10,SME,N,
356858,SERCO LTD,487.87,Open Spaces,Plant & Vehicle Fuel,15-Dec-21,2122/10,LGE,Y,50%
356858,SERCO LTD,"2,500.00",Street & Major Road Cleansing,Plant & Vehicle Fuel,15-Dec-21,2122/10,LGE,Y,50%
357267,SERCO LTD,"4,377.00",Domestic Waste,Refuse Contract,06-Jan-22,2122/10,LGE,Y,50%
357268,SERCO LTD,"22,179.86",Trade Waste,Refuse Contract,06-Jan-22,2122/10,LGE,Y,60%
357268,SERCO LTD,"77,664.58",Garden Waste,Refuse Contract,06-Jan-22,2122/10,LGE,Y,48%
357268,SERCO LTD,"292,516.56",Domestic Waste,Refuse Contract,06-Jan-22,2122/10,LGE,Y,48%
357269,SERCO LTD,"8,075.33",Jnt Waste Contract,Plant & Vehicle Fuel,06-Jan-22,2122/10,LGE,Y,50%
357396,SERCO LTD,"6,587.83",Open Spaces,Plant & Vehicle Fuel,06-Jan-22,2122/10,LGE,Y,50%
357613,SERCO LTD,"15,215.64",Domestic Waste,Refuse Contract,18-Jan-22,2122/10,LGE,Y,50%
356823,TRAVIS PERKINS TRADING CO LTD,415.19,Building Services,"Equipment, Tools & Materials",10-Dec-21,2122/10,LGE,Y,50%
357209,TRAVIS PERKINS TRADING CO LTD,"1,540.00",Building Services,"Equipment, Tools & Materials",05-Jan-22,2122/10,LGE,Y,50%
357348,TRAVIS PERKINS TRADING CO LTD,260,Building Services,"Equipment, Tools & Materials",11-Jan-22,2122/10,LGE,Y,50%
357349,TRAVIS PERKINS TRADING CO LTD,425.31,Building Services,"Equipment, Tools & Materials",07-Jan-22,2122/10,LGE,Y,50%
357350,TRAVIS PERKINS TRADING CO LTD,840,Building Services,"Equipment, Tools & Materials",07-Jan-22,2122/10,LGE,Y,50%
357351,TRAVIS PERKINS TRADING CO LTD,"1,520.24",Building Services,"Equipment, Tools & Materials",01-Jan-22,2122/10,LGE,Y,50%
357352,TRAVIS PERKINS TRADING CO LTD,300,Building Services,"Equipment, Tools & Materials",01-Jan-22,2122/10,LGE,Y,50%
357481,TRAVIS PERKINS TRADING CO LTD,405,Building Services,"Equipment, Tools & Materials",19-Jan-22,2122/10,LGE,Y,50%
357447,EDF ENERGY,91.15,"11 Market Place, Stowmarket",Electricity,14-Jan-22,2122/10,LGE,N,
357447,EDF ENERGY,313.31,C Parks General,Electricity,14-Jan-22,2122/10,LGE,N,
357447,EDF ENERGY,640.28,Creeting Rd Depot,Electricity,14-Jan-22,2122/10,LGE,Y,50%
357447,EDF ENERGY,290.88,Headquarters General,Electricity,14-Jan-22,2122/10,LGE,N,
357447,EDF ENERGY,"18,028.71",Leisure Contract,Electricity,14-Jan-22,2122/10,LGE,N,
357447,EDF ENERGY,32.14,Needham Market Middle School,Electricity,14-Jan-22,2122/10,LGE,N,
357447,EDF ENERGY,380.99,Open Spaces,Electricity,14-Jan-22,2122/10,LGE,N,
357447,EDF ENERGY,580.96,Other HRA Temp Accommodation,Electricity,14-Jan-22,2122/10,LGE,N,
357447,EDF ENERGY,254.4,Public Conveniences,Electricity,14-Jan-22,2122/10,LGE,N,
357447,EDF ENERGY,97.09,Pure Gym & Adjacent Building,Electricity,14-Jan-22,2122/10,LGE,N,
357447,EDF ENERGY,10.32,Recycling Centre,Electricity,14-Jan-22,2122/10,LGE,N,
357447,EDF ENERGY,335.46,Sewage Treatment Works,Electricity,14-Jan-22,2122/10,LGE,N,
357447,EDF ENERGY,"12,946.17",Sheltered Accommodation,Electricity,14-Jan-22,2122/10,LGE,N,
357447,EDF ENERGY,159.45,Tacon Close Eye TDP,Electricity,14-Jan-22,2122/10,LGE,N,
357447,EDF ENERGY,544.47,Temporary Accommodation,Electricity,14-Jan-22,2122/10,LGE,N,
357447,EDF ENERGY,"1,518.72",Tenancy Services,Electricity,14-Jan-22,2122/10,LGE,N,
357447,EDF ENERGY,"1,363.87",Wingfield Barns,Electricity,14-Jan-22,2122/10,LGE,N,
422312,GPC BARCLAYS,"1,429.15",Current Assets,Barclaycard Control,14-Jan-22,2122/10,LGE,Y,15.50%
422304,ALLSTAR BUSINESS SOLUTIONS LTD,81.15,Housing Options,Plant & Vehicle Fuel,31-Dec-21,2122/10,SME,Y,50%
422304,ALLSTAR BUSINESS SOLUTIONS LTD,"8,289.04",Building Services,Plant & Vehicle Fuel,31-Dec-21,2122/10,SME,Y,50%
357117,STANNAH STAIRLIFTS LTD,390.64,Building Services,Repairs,04-Jan-22,2122/10,LGE,N,
357159,STANNAH STAIRLIFTS LTD,"5,604.00",Mand Disabled Facilities Grant,Grants,05-Jan-22,2122/10,LGE,N,
357228,STANNAH STAIRLIFTS LTD,"5,163.00",Mand Disabled Facilities Grant,Grants,07-Jan-22,2122/10,LGE,N,
422302,COMPUTERSHARE ,"1,276.00",Current Assets,ChildCare Vouchers-Control,24-Dec-21,2122/10,LGE,N,
357042,COTTON PARISH COUNCIL,"1,550.00",Grants & Contrbns,Contributions & Donations,23-Dec-21,2122/10,SME,N,
357218,SUFFOLK COUNTY COUNCIL,310,Organisational Devt,Recruitment,06-Jan-22,2122/10,LGE,Y,50%
357233,SUFFOLK COUNTY COUNCIL,"41,000.00",Endeavour House - HQ,Operating Lease Payments,06-Jan-22,2122/10,LGE,Y,50%
357233,SUFFOLK COUNTY COUNCIL,"42,500.00",Endeavour House - HQ,Contracted Services,06-Jan-22,2122/10,LGE,Y,50%
357234,SUFFOLK COUNTY COUNCIL,"4,557.00",Stowmarket CAP,Operating Lease Payments,06-Jan-22,2122/10,LGE,Y,50%
357234,SUFFOLK COUNTY COUNCIL,"3,307.00",Stowmarket CAP,Contracted Services,06-Jan-22,2122/10,LGE,Y,50%
357378,SUFFOLK COUNTY COUNCIL,"12,237.79",Domestic Waste,MRF Disposal,13-Jan-22,2122/10,LGE,N,
357378,SUFFOLK COUNTY COUNCIL,"19,776.00",Garden Waste,Garden Waste Disposal,13-Jan-22,2122/10,LGE,N,
357408,SUFFOLK COUNTY COUNCIL,"28,810.83",CIL Funded REFCUS,Grants,18-Jan-22,2122/10,LGE,N,
357480,SUFFOLK COUNTY COUNCIL,"11,462.42",Domestic Waste,MRF Disposal,20-Jan-22,2122/10,LGE,N,
357480,SUFFOLK COUNTY COUNCIL,"17,670.60",Garden Waste,Garden Waste Disposal,20-Jan-22,2122/10,LGE,N,
357552,SUFFOLK COUNTY COUNCIL,"10,424.88",Communications,Recruitment,24-Jan-22,2122/10,LGE,Y,50%
357145,FENN WRIGHT LLP,450,General/Supervision & Mgmt,Prof & Consultancy Fees,04-Jan-22,2122/10,SME,N,
357031,WESTHORPE PARISH COUNCIL,312.4,Grants & Contrbns,Contributions & Donations,23-Dec-21,2122/10,SME,N,
357062,TELEFONICA UK LIMITED - O2,"1,385.67",ICT,Telephone Costs,27-Dec-21,2122/10,LGE,Y,50%
357607,TELEFONICA UK LIMITED - O2,"1,385.67",ICT,Telephone Costs,27-Jan-22,2122/10,LGE,Y,50%
357050,KENNET EQUIPMENT LEASING,283.05,Creeting Rd Depot,Operating Lease Payments,29-Dec-21,2122/10,SME,Y,50%
357523,KENNET EQUIPMENT LEASING,283.05,Creeting Rd Depot,Operating Lease Payments,24-Jan-22,2122/10,SME,Y,50%
422317,GAZPROM ENERGY,45.43,"11 Market Place, Stowmarket",Gas,21-Jan-22,2122/10,SME,N,
422317,GAZPROM ENERGY,151.13,Creeting Rd Depot,Gas,21-Jan-22,2122/10,SME,Y,50%
422317,GAZPROM ENERGY,27.89,Headquarters General,Gas,21-Jan-22,2122/10,SME,N,
422317,GAZPROM ENERGY,"15,540.23",Leisure Contract,Gas,21-Jan-22,2122/10,SME,N,
422317,GAZPROM ENERGY,65.79,Pure Gym & Adjacent Building,Gas,21-Jan-22,2122/10,SME,N,
422317,GAZPROM ENERGY,"2,791.04",Sheltered Accommodation,Gas,21-Jan-22,2122/10,SME,N,
422317,GAZPROM ENERGY,460.72,Temporary Accommodation,Gas,21-Jan-22,2122/10,SME,N,
422317,GAZPROM ENERGY,288.92,Tenancy Services,Gas,21-Jan-22,2122/10,SME,N,
357072,ERNEST DOE & SONS LTD,"3,086.60",Open Spaces,"Equipment, Tools & Materials",21-Dec-21,2122/10,LGE,N,
356923,WHYBROW PROPERTY SOLUTIONS LTD,"6,798.85",Major Imps,Major Contracts,15-Dec-21,2122/10,SME,N,
356932,WHYBROW PROPERTY SOLUTIONS LTD,"10,823.00",Council House Adaptions,Improvements,15-Dec-21,2122/10,SME,N,
357032,WHYBROW PROPERTY SOLUTIONS LTD,"5,947.95",Building Services,Repairs,21-Dec-21,2122/10,SME,N,
357437,WHYBROW PROPERTY SOLUTIONS LTD,"1,980.00",Council House Adaptions,Improvements,19-Jan-22,2122/10,SME,N,
357438,WHYBROW PROPERTY SOLUTIONS LTD,"15,024.00",Council House Adaptions,Improvements,19-Jan-22,2122/10,SME,N,
357474,L A C CLEANING CONTRACTORS LIMITED,495.25,Building Services,Repairs,19-Jan-22,2122/10,SME,N,
357229,ARMSTRONG YORK ASBESTOS ENVIRONMENTAL,"2,575.22",Asbestos Survey & Reinspection,Prof & Consultancy Fees,31-Dec-21,2122/10,SME,N,
357229,ARMSTRONG YORK ASBESTOS ENVIRONMENTAL,"5,283.45",Asbestos Survey & Reinspection,Prof & Consultancy Fees,31-Dec-21,2122/10,SME,N,
422308,BT DIRECT DEBIT,"10,678.95",ICT,Telephone Costs,21-Dec-21,2122/10,LGE,Y,50%
357131,TRADITION (UK) LTD,"1,073.97",Treasury Management,Prof & Consultancy Fees,31-Dec-21,2122/10,LGE,N,
357030,WETHERDEN VILLAGE HALL MANAGEMENT COUNCI,"1,000.00",Grants & Contrbns,Contributions & Donations,23-Dec-21,2122/10,SME,N,
357040,ROSSI LONG CONSULTING LTD,315,Paddock House,Prof & Consultancy Fees,22-Dec-21,2122/10,SME,N,
357127,OPUS PEOPLE SOLUTIONS LTD,838.38,Current Liabilities,Agency Staff Holding A/C,23-Dec-21,2122/10,SME,N,
357128,OPUS PEOPLE SOLUTIONS LTD,649.82,Current Liabilities,Agency Staff Holding A/C,30-Dec-21,2122/10,SME,N,
357259,OPUS PEOPLE SOLUTIONS LTD,296.92,Current Liabilities,Agency Staff Holding A/C,06-Jan-22,2122/10,SME,N,
357401,OPUS PEOPLE SOLUTIONS LTD,502.74,Current Liabilities,Agency Staff Holding A/C,13-Jan-22,2122/10,SME,N,
357511,OPUS PEOPLE SOLUTIONS LTD,"1,215.32",Current Liabilities,Agency Staff Holding A/C,20-Jan-22,2122/10,SME,N,
357301,CORNERSTONE BARRISTERS,"9,500.00",Devt Management - Apps,Legal Expenses,10-Jan-22,2122/10,SME,N,
356495,DUTTON COMMUNICATIONS LTD T/A CABLECOMMS,"4,213.53",ICT -Hardware/Software Refresh,Desktop Software,30-Nov-21,2122/10,SME,N,
357281,VERTAS GROUP LTD,"1,840.00",Unapportionable Central OHs,Security Systems,07-Dec-21,2122/10,SME,N,
357291,VERTAS GROUP LTD,"1,530.00",Unapportionable Central OHs,Security Systems,31-Dec-21,2122/10,SME,N,
357532,VERTAS GROUP LTD,"1,350.00",Unapportionable Central OHs,Security Systems,14-Dec-21,2122/10,SME,N,
357393,MATT ALLMAN LTD T/A MOVEITCLEARITFINDIT,600,Homelessness Private Sector,Removal Expenses,10-Nov-21,2122/10,SME,N,
357543,MATT ALLMAN LTD T/A MOVEITCLEARITFINDIT,720,Homeless Prevention Fund,Misc Supplies & Services Costs,16-Jan-22,2122/10,SME,N,
357545,MATT ALLMAN LTD T/A MOVEITCLEARITFINDIT,406.67,Homeless Prevention Fund,Misc Supplies & Services Costs,12-Jan-22,2122/10,SME,N,
357566,MATT ALLMAN LTD T/A MOVEITCLEARITFINDIT,815,Homelessness Private Sector,Misc Supplies & Services Costs,26-Jan-22,2122/10,SME,N,
357575,MATT ALLMAN LTD T/A MOVEITCLEARITFINDIT,712.5,Homeless Prevention Fund,Misc Supplies & Services Costs,12-Jan-22,2122/10,SME,N,
357109,BIRKETTS LLP,360,BMS Invest,Legal Expenses,30-Nov-21,2122/10,LGE,Y,50%
357053,GALLAGHER CAR & VAN RENTALS LTD,"2,200.00",Domestic Waste,Refuse Contract,27-Dec-21,2122/10,LGE,Y,50%
357180,ADVANCE SUPPLIES,255.03,Sheltered Accommodation,Cleaning Materials,29-Nov-21,2122/10,SME,N,
356997,RICHARD UTTING ASSOCIATES LLP,818.52,"Back Hills, Botesdale, S106",Prof & Consultancy Fees,30-Nov-21,2122/10,SME,N,
357085,RICHARD UTTING ASSOCIATES LLP,"1,293.23","Green Road, Woolpit",Prof & Consultancy Fees,31-Dec-21,2122/10,SME,N,
357213,RICHARD UTTING ASSOCIATES LLP,"1,787.20",Needham Market Middle School,Prof & Consultancy Fees,31-Dec-21,2122/10,SME,N,
357264,RICHARD UTTING ASSOCIATES LLP,"2,055.00",Eves Meadow Haughley S106,Prof & Consultancy Fees,10-Jan-22,2122/10,SME,N,
422314,HM COURTS & TRIBUNALS SERVICE,332,Planning Enforcement,Specialist Legal Expenses,01-Jan-22,2122/10,LGE,Y,100%
357335,PUBLIC SEWER SERVICES,500,Building Services,Repairs,31-Oct-21,2122/10,SME,N,
357336,PUBLIC SEWER SERVICES,"1,454.48",Building Services,Repairs,31-Oct-21,2122/10,SME,N,
357339,PUBLIC SEWER SERVICES,"1,680.34",Building Services,Repairs,31-Oct-21,2122/10,SME,N,
357185,THE STOWMARKET GLASS COMPANY LTD,271.4,Building Services,Repairs,14-Dec-21,2122/10,SME,N,
357186,THE STOWMARKET GLASS COMPANY LTD,401.7,Building Services,Repairs,14-Dec-21,2122/10,SME,N,
357188,THE STOWMARKET GLASS COMPANY LTD,"1,564.43",Building Services,Repairs,20-Dec-21,2122/10,SME,N,
357230,ASPECT CONTRACTS LTD,"9,549.00",Asbestos,Improvements,31-Dec-21,2122/10,LGE,N,
422309,RIX PETROLEUM (EAST ANGLIA) LTD,"13,078.66",Open Spaces,Plant & Vehicle Fuel,05-Jan-22,2122/10,SME,N,
422309,RIX PETROLEUM (EAST ANGLIA) LTD,"2,087.17",Tenancy Services,Heating Oil,05-Jan-22,2122/10,SME,N,
357225,KNOWLES ASSOCIATES TFM LTD,340.42,Building Services,Lease Cars - Payment,03-Dec-21,2122/10,SME,Y,50%
357005,NORTHUMBRIAN WATER LTD,28.9,Cedars Park,Legionella Testing,21-Dec-21,2122/10,LGE,N,
357005,NORTHUMBRIAN WATER LTD,18.9,Creeting Rd Depot,Legionella Testing,21-Dec-21,2122/10,LGE,Y,50%
357005,NORTHUMBRIAN WATER LTD,34.15,Headquarters General,Legionella Testing,21-Dec-21,2122/10,LGE,N,
357005,NORTHUMBRIAN WATER LTD,28.9,Leisure Contract,Legionella Testing,21-Dec-21,2122/10,LGE,N,
357005,NORTHUMBRIAN WATER LTD,183.9,Open Spaces,Legionella Testing,21-Dec-21,2122/10,LGE,N,
357005,NORTHUMBRIAN WATER LTD,34.15,Other HRA Temp Accommodation,Legionella Testing,21-Dec-21,2122/10,LGE,N,
357005,NORTHUMBRIAN WATER LTD,68.3,Public Conveniences,Legionella Testing,21-Dec-21,2122/10,LGE,N,
357005,NORTHUMBRIAN WATER LTD,470.25,Responsive maintenance,Legionella Testing,21-Dec-21,2122/10,LGE,N,
357005,NORTHUMBRIAN WATER LTD,438.7,Sheltered Accommodation,Legionella Testing,21-Dec-21,2122/10,LGE,N,
357005,NORTHUMBRIAN WATER LTD,34.15,Temporary Accommodation,Legionella Testing,21-Dec-21,2122/10,LGE,N,
357005,NORTHUMBRIAN WATER LTD,63.05,Wingfield Barns,Legionella Testing,21-Dec-21,2122/10,LGE,N,
357565,NORTHUMBRIAN WATER LTD,28.9,Cedars Park,Legionella Testing,25-Jan-22,2122/10,LGE,N,
357565,NORTHUMBRIAN WATER LTD,18.9,Creeting Rd Depot,Legionella Testing,25-Jan-22,2122/10,LGE,Y,50%
357565,NORTHUMBRIAN WATER LTD,34.15,Headquarters General,Legionella Testing,25-Jan-22,2122/10,LGE,N,
357565,NORTHUMBRIAN WATER LTD,28.9,Leisure Contract,Legionella Testing,25-Jan-22,2122/10,LGE,N,
357565,NORTHUMBRIAN WATER LTD,183.9,Open Spaces,Legionella Testing,25-Jan-22,2122/10,LGE,N,
357565,NORTHUMBRIAN WATER LTD,34.15,Other HRA Temp Accommodation,Legionella Testing,25-Jan-22,2122/10,LGE,N,
357565,NORTHUMBRIAN WATER LTD,68.3,Public Conveniences,Legionella Testing,25-Jan-22,2122/10,LGE,N,
357565,NORTHUMBRIAN WATER LTD,470.25,Responsive maintenance,Legionella Testing,25-Jan-22,2122/10,LGE,N,
357565,NORTHUMBRIAN WATER LTD,438.7,Sheltered Accommodation,Legionella Testing,25-Jan-22,2122/10,LGE,N,
357565,NORTHUMBRIAN WATER LTD,34.15,Temporary Accommodation,Legionella Testing,25-Jan-22,2122/10,LGE,N,
357565,NORTHUMBRIAN WATER LTD,63.05,Wingfield Barns,Legionella Testing,25-Jan-22,2122/10,LGE,N,
357433,UNIVERSITY OF CAMBRIDGE FACULTY OF,"7,878.00",Organisational Devt,Post-Entry Training,19-Jan-22,2122/10,SME,Y,50%
356903,GIPPING OCCUPATIONAL HEALTH LTD,275,Organisational Devt,Contracted Services,17-Dec-21,2122/10,SME,Y,50%
357494,GIPPING OCCUPATIONAL HEALTH LTD,440,Health & Safety,Contracted Services,21-Jan-22,2122/10,SME,N,
357579,PARK AVENUE RECRUITMENT LTD,"1,394.00",Devt Management - Apps,Prof & Consultancy Fees,11-Jan-22,2122/10,SME,Y,46%
357216,TOP FLOORS (EAST ANGLIA) LTD,"1,345.65",Other Temp Accommodation,"Equipment, Tools & Materials",30-Dec-21,2122/10,SME,N,
357217,TOP FLOORS (EAST ANGLIA) LTD,"1,700.95",Other Temp Accommodation,"Equipment, Tools & Materials",15-Dec-21,2122/10,SME,N,
357459,TOP FLOORS (EAST ANGLIA) LTD,389.58,Building Services,Repairs,18-Jan-22,2122/10,SME,N,
357658,LICENCE CHECK LTD,350,Health & Safety,Contracted Services,28-Jan-22,2122/10,SME,Y,50%
357418,GREENFUTURE SOLUTIONS LTD,"7,225.00",Mand Disabled Facilities Grant,Grants,18-Jan-22,2122/10,SME,N,
357241,PORTAL PLAN QUEST LTD,462,Devt Management - Apps,Planning Fees,10-Jan-22,2122/10,SME,N,
357648,PORTAL PLAN QUEST LTD,"2,028.00",Devt Management - Apps,Planning Fees,28-Jan-22,2122/10,SME,N,
357436,ABBEYCROFT LEISURE,"5,134.33",Holiday Activity Fund,"Equipment, Tools & Materials",19-Jan-22,2122/10,LGE,N,
357045,BELLWAY HOMES LIMITED (ESSEX DIVISION),"215,575.83",Eves Meadow Haughley S106,Prof & Consultancy Fees,08-Dec-21,2122/10,LGE,N,
357305,BELLWAY HOMES LIMITED (ESSEX DIVISION),"206,484.46",Eves Meadow Haughley S106,Prof & Consultancy Fees,06-Jan-22,2122/10,LGE,N,
357404,SOLACE IN BUSINESS,"9,900.00",Bus Imp (Corp),Agency Staff,17-Jan-22,2122/10,SME,Y,50%
357139,HAMSON BARRON SMITH LTD,"2,150.00",Regen Fund,Prof & Consultancy Fees,31-Dec-21,2122/10,LGE,N,
357140,HAMSON BARRON SMITH LTD,"1,118.50",General/Supervision & Mgmt,Prof & Consultancy Fees,31-Dec-21,2122/10,LGE,Y,50%
357176,A C LEIGH (NORWICH) LTD,251.96,Building Services,"Equipment, Tools & Materials",21-Dec-21,2122/10,SME,N,
356768,SUFFOLK POWER EQUIPMENT,"2,050.00",Open Spaces,Plant & Vehicle - Other costs,09-Dec-21,2122/10,ST,N,
357242,3 POINT PROPERTY MANAGEMENT LTD,675,Guaranteed Rent Scheme,Rent Payable,10-Jan-22,2122/10,SME,N,
357458,FLAGSHIP HOUSING GROUP LTD-RENT ACCOUNT,"1,981.30",Homeless Prevention Fund,Misc Supplies & Services Costs,20-Jan-22,2122/10,LGE,N,
357057,SEED ENVIRONMENTAL LTD,"10,394.90",Structural Works,Improvements,20-Dec-21,2122/10,SME,N,
357456,HUGHES TRADE,348.22,Other Temp Accommodation,Furniture,20-Jan-22,2122/10,LGE,N,
357457,HUGHES TRADE,666.44,Temporary Accommodation,Furniture,20-Jan-22,2122/10,LGE,N,
357151,WASHCO LTD,467,Sheltered Accommodation,"Equipment, Tools & Materials",04-Jan-22,2122/10,SME,N,
356934,ANGLIA COMMERCIAL FLOORING LTD,696.87,Building Services,Repairs,20-Dec-21,2122/10,SME,N,
356935,ANGLIA COMMERCIAL FLOORING LTD,573.96,Building Services,Repairs,20-Dec-21,2122/10,SME,N,
356936,ANGLIA COMMERCIAL FLOORING LTD,317.2,Building Services,Repairs,21-Dec-21,2122/10,SME,N,
356937,ANGLIA COMMERCIAL FLOORING LTD,437.72,Building Services,Repairs,20-Dec-21,2122/10,SME,N,
356938,ANGLIA COMMERCIAL FLOORING LTD,437.72,Building Services,Repairs,20-Dec-21,2122/10,SME,N,
356940,ANGLIA COMMERCIAL FLOORING LTD,831.95,Building Services,Repairs,20-Dec-21,2122/10,SME,N,
356941,ANGLIA COMMERCIAL FLOORING LTD,482.09,Building Services,Repairs,21-Dec-21,2122/10,SME,N,
356942,ANGLIA COMMERCIAL FLOORING LTD,386.38,Building Services,Repairs,20-Dec-21,2122/10,SME,N,
356947,ANGLIA COMMERCIAL FLOORING LTD,459.07,Building Services,Repairs,20-Dec-21,2122/10,SME,N,
356948,ANGLIA COMMERCIAL FLOORING LTD,827.51,Building Services,Repairs,20-Dec-21,2122/10,SME,N,
356949,ANGLIA COMMERCIAL FLOORING LTD,346.03,Building Services,Repairs,20-Dec-21,2122/10,SME,N,
356950,ANGLIA COMMERCIAL FLOORING LTD,445.11,Building Services,Repairs,20-Dec-21,2122/10,SME,N,
356953,ANGLIA COMMERCIAL FLOORING LTD,"1,003.56",Building Services,Repairs,20-Dec-21,2122/10,SME,N,
356955,ANGLIA COMMERCIAL FLOORING LTD,295.16,Building Services,Repairs,20-Dec-21,2122/10,SME,N,
356958,ANGLIA COMMERCIAL FLOORING LTD,602.25,Building Services,Repairs,20-Dec-21,2122/10,SME,N,
356959,ANGLIA COMMERCIAL FLOORING LTD,602.25,Building Services,Repairs,20-Dec-21,2122/10,SME,N,
356960,ANGLIA COMMERCIAL FLOORING LTD,338.65,Building Services,Repairs,20-Dec-21,2122/10,SME,N,
356961,ANGLIA COMMERCIAL FLOORING LTD,445.11,Building Services,Repairs,20-Dec-21,2122/10,SME,N,
356963,ANGLIA COMMERCIAL FLOORING LTD,430.32,Building Services,Repairs,20-Dec-21,2122/10,SME,N,
356965,ANGLIA COMMERCIAL FLOORING LTD,482.09,Building Services,Repairs,20-Dec-21,2122/10,SME,N,
356967,ANGLIA COMMERCIAL FLOORING LTD,"1,414.34",Building Services,Repairs,21-Dec-21,2122/10,SME,N,
356968,ANGLIA COMMERCIAL FLOORING LTD,321.03,Building Services,Repairs,20-Dec-21,2122/10,SME,N,
356969,ANGLIA COMMERCIAL FLOORING LTD,491.94,Building Services,Repairs,20-Dec-21,2122/10,SME,N,
356970,ANGLIA COMMERCIAL FLOORING LTD,864.01,Building Services,Repairs,20-Dec-21,2122/10,SME,N,
356972,ANGLIA COMMERCIAL FLOORING LTD,445.11,Building Services,Repairs,20-Dec-21,2122/10,SME,N,
356975,ANGLIA COMMERCIAL FLOORING LTD,385.24,Building Services,Repairs,20-Dec-21,2122/10,SME,N,
357004,ANGLIA COMMERCIAL FLOORING LTD,623.03,Building Services,Repairs,20-Dec-21,2122/10,SME,N,
357223,ANGLIA COMMERCIAL FLOORING LTD,388.45,Building Services,Repairs,20-Dec-21,2122/10,SME,N,
357359,ANGLIA COMMERCIAL FLOORING LTD,410.92,Building Services,Repairs,14-Jan-22,2122/10,SME,N,
357368,ANGLIA COMMERCIAL FLOORING LTD,301.77,Building Services,Repairs,14-Jan-22,2122/10,SME,N,
357448,ANGLIAN WATER BUS (NAT) LTD T/A WAVE,159.46,"11 Market Place, Stowmarket",Water Rates - Metered,12-Jan-22,2122/10,LGE,N,
357448,ANGLIAN WATER BUS (NAT) LTD T/A WAVE,632.51,Creeting Rd Depot,Water Rates - Metered,12-Jan-22,2122/10,LGE,Y,50%
357448,ANGLIAN WATER BUS (NAT) LTD T/A WAVE,31.15,General/Supervision & Mgmt,Water Rates - Metered,12-Jan-22,2122/10,LGE,N,
357448,ANGLIAN WATER BUS (NAT) LTD T/A WAVE,137.32,Headquarters General,Water Rates - Metered,12-Jan-22,2122/10,LGE,N,
357448,ANGLIAN WATER BUS (NAT) LTD T/A WAVE,122.32,Open Spaces,Water Rates - Metered,12-Jan-22,2122/10,LGE,N,
357448,ANGLIAN WATER BUS (NAT) LTD T/A WAVE,256.17,Public Conveniences,Water Rates - Metered,12-Jan-22,2122/10,LGE,N,
357448,ANGLIAN WATER BUS (NAT) LTD T/A WAVE,5.5,Recycling Centre,Water Rates - Metered,12-Jan-22,2122/10,LGE,N,
357448,ANGLIAN WATER BUS (NAT) LTD T/A WAVE,4.04,Sewage Treatment Works,Water Rates - Metered,12-Jan-22,2122/10,LGE,N,
357448,ANGLIAN WATER BUS (NAT) LTD T/A WAVE,861.13,Sheltered Accommodation,Water Rates - Metered,12-Jan-22,2122/10,LGE,N,
357448,ANGLIAN WATER BUS (NAT) LTD T/A WAVE,19.35,Tacon Close Eye TDP,Water Rates - Metered,12-Jan-22,2122/10,LGE,N,
357448,ANGLIAN WATER BUS (NAT) LTD T/A WAVE,-138.44,Temporary Accommodation,Water Rates - Metered,12-Jan-22,2122/10,LGE,N,
357448,ANGLIAN WATER BUS (NAT) LTD T/A WAVE,40.3,Tenancy Services,Water Rates - Metered,12-Jan-22,2122/10,LGE,N,
357448,ANGLIAN WATER BUS (NAT) LTD T/A WAVE,2.27,Wingfield Barns,Water Rates - Metered,12-Jan-22,2122/10,LGE,N,
357048,LANDSCAPE SUPPLY COMPANY,"4,490.00",RHSSF,"Equipment, Tools & Materials",23-Dec-21,2122/10,SME,Y,50%
357502,127 TRADING LTD,300,BRRP - Successful & Skilled,Prof & Consultancy Fees,22-Oct-21,2122/10,SME,N,
357059,PARKYNS LETTINGS BURY ST EDMUNDS,650,Guaranteed Rent Scheme,Rent Payable,04-Jan-22,2122/10,SME,N,
357023,EASTERN PLAY SERVICES LTD,760,Needham Lake Vis Centre (CAP),"Equipment, Tools & Materials",20-Dec-21,2122/10,SME,N,
357110,GREENACRE RECRUITMENT LTD,"1,110.00",Housing Standards,Agency Staff,31-Dec-21,2122/10,SME,Y,50%
357222,GREENACRE RECRUITMENT LTD,705,Housing Standards,Agency Staff,07-Jan-22,2122/10,SME,Y,50%
357371,GREENACRE RECRUITMENT LTD,945,Housing Standards,Agency Staff,12-Jan-22,2122/10,SME,Y,50%
357432,GREENACRE RECRUITMENT LTD,"1,110.00",Housing Standards,Agency Staff,19-Jan-22,2122/10,SME,Y,50%
357493,GREENACRE RECRUITMENT LTD,"1,100.00",Housing Standards,Agency Staff,22-Dec-21,2122/10,SME,Y,50%
357596,GREENACRE RECRUITMENT LTD,"1,125.30",Housing Standards,Agency Staff,26-Jan-22,2122/10,SME,Y,50%
357160,WILLIS LIMITED,"1,000.00",Financial Servs,Prof & Consultancy Fees,05-Jan-22,2122/10,LGE,N,
357570,MID SUFFOLK GROWTH LTD,"28,532.32",Regen Fund - HQ Sites,Prof & Consultancy Fees,24-Jan-22,2122/10,SME,N,
357571,MID SUFFOLK GROWTH LTD,"37,542.52",Needham HQ S106 Units,Purchase of Land & Buildings,25-Jan-22,2122/10,SME,N,
357434,DEMOCRACY COUNTS LTD,"5,750.00",Electoral Registration,Computer Equpt Purchases,30-Nov-21,2122/10,SME,N,
357435,DEMOCRACY COUNTS LTD,"12,535.00",Electoral Registration,Software Licnse (Line of Bus) ,30-Nov-21,2122/10,SME,N,
357564,QUADIENT UK LIMITED,"1,000.00",Central Postal Serv,Postage,17-Jan-22,2122/10,LGE,Y,50%
357173,EYES OPEN CIC,"7,290.00",Shop Front & Access Imp Grants,Repairs,06-Jan-22,2122/10,SME,N,
356550,GREGG BROWN PHOTOGRAPHY,285,Communications,Advertising&mkting (non-staff),05-Dec-21,2122/10,ST,N,
357501,LIMELEASE LTD,395,Guaranteed Rent Scheme,Rent Payable,24-Jan-22,2122/10,SME,N,
357047,BUCHER MUNICIPAL LTD,509.71,Open Spaces,"Equipment, Tools & Materials",24-Dec-21,2122/10,LGE,N,
357168,BUCHER MUNICIPAL LTD,818.48,Open Spaces,"Equipment, Tools & Materials",24-Dec-21,2122/10,LGE,N,
357292,BUCHER MUNICIPAL LTD,818.48,Open Spaces,"Equipment, Tools & Materials",11-Jan-22,2122/10,LGE,N,
357293,BUCHER MUNICIPAL LTD,509.71,Open Spaces,"Equipment, Tools & Materials",11-Jan-22,2122/10,LGE,N,
357547,GIPPING CONSTRUCTION LTD,"10,669.33",Regen Fund - HQ Sites,Prof & Consultancy Fees,19-Jan-22,2122/10,SME,N,
357547,GIPPING CONSTRUCTION LTD,"139,680.67",Needham Market Middle School,Prof & Consultancy Fees,19-Jan-22,2122/10,SME,N,
357289,CAPITA BUSINESS SERVICES LTD (PAY360),"3,599.56",Bank Chgs,Bank Charges,11-Jan-22,2122/10,LGE,N,
357500,PRIVATE LANDLORD,786.5,Guaranteed Rent Scheme,Rent Payable,24-Jan-22,2122/10,ST,N,
357614,MOBYSOFT LTD,"30,314.21",Rent Collection,Software Licnse (Line of Bus) ,07-Dec-21,2122/10,SME,N,
357157,CORENERGY LIMITED,"38,162.00",Public Sector Decarbonisation,Contracted Services,31-Dec-21,2122/10,SME,N,
357262,PRIVATE LANDLORD,786.5,Guaranteed Rent Scheme,Rent Payable,11-Jan-22,2122/10,ST,N,
357530,TEMPLE LETTINGS,650,Guaranteed Rent Scheme,Rent Payable,24-Jan-22,2122/10,SME,N,
357237,DGL QUALITY MANAGEMENT LTD,870.76,Needham Market Middle School,Prof & Consultancy Fees,31-Dec-21,2122/10,SME,N,
357158,OAKFIELD ARBORICULTURAL SERVICES LTD,495,Eric Jones Rough Sleepers,Prof & Consultancy Fees,05-Jan-22,2122/10,SME,N,
356956,RSK LAND & DEVELOPMENT ENGINEERING LTD,750,Strategic Assets,Prof & Consultancy Fees,30-Nov-21,2122/10,LGE,N,
357111,PERMISERV LIMITED,266,Jnt Waste Contract,"Equipment, Tools & Materials",29-Dec-21,2122/10,SME,Y,50%
356870,ARAN INSULATION LTD,"1,726.40",Building Services,Council Tax Payable,16-Dec-21,2122/10,SME,N,
356911,INTERNATIONAL PARKING SYSTEMS UK LTD,"9,693.00",C Parks General,Repairs,31-Jul-21,2122/10,LGE,N,
357011,IAN BOOTH CONSULTANT ENGINEER LTD,680,Strategic Assets,Prof & Consultancy Fees,21-Dec-21,2122/10,SME,N,
357060,MARCHDELL LTD,715,Guaranteed Rent Scheme,Rent Payable,04-Jan-22,2122/10,SME,N,
357078,E.ON NEXT,276.69,Other HRA Temp Accommodation,Heating Charges,25-Dec-21,2122/10,LGE,N,
357121,IPSERV LTD,"1,209.75",Central Printing,Commercial Printing,04-Jan-22,2122/10,SME,N,
357121,IPSERV LTD,505.81,Communications,Commercial Printing,04-Jan-22,2122/10,SME,N,
357082,SSE,428.1,Tenancy Services,Electricity,22-Dec-21,2122/10,LGE,N,
357169,SSE,304.43,Tenancy Services,Electricity,21-Dec-21,2122/10,LGE,N,
357170,SSE,270.94,Tenancy Services,Electricity,21-Dec-21,2122/10,LGE,N,
357320,SSE,266.35,Homeless Prevention Fund,Misc Supplies & Services Costs,13-Jan-22,2122/10,LGE,N,
357322,SSE,368.38,Homeless Prevention Fund,Misc Supplies & Services Costs,13-Jan-22,2122/10,LGE,N,
357590,SEH FRENCH LTD,"60,607.00",Needham Lake Vis Centre (CAP),Major Contracts,26-Jan-22,2122/10,SME,N,
357499,PRIVATE LANDLORD,669,Guaranteed Rent Scheme,Rent Payable,24-Jan-22,2122/10,ST,N,
357324,JACKSON LIFT SERVICES LTD,624.99,Sheltered Accommodation,Plant Maintenance,06-Jan-22,2122/10,LGE,N,
357536,PRIVATE LANDLORD,650,Guaranteed Rent Scheme,Rent Payable,25-Jan-22,2122/10,ST,N,
357243,PRIVATE LANDLORD,495,Guaranteed Rent Scheme,Rent Payable,10-Jan-22,2122/10,SME,N,
357315,UK LOCKSMITHS ASSOCIATION LTD,"5,392.48",Building Services,Tool Purchases (Trades),12-Jan-22,2122/10,SME,Y,50%
356180,AMACSPORTS LTD,"2,000.00",Tenancy Services,Training,16-Nov-21,2122/10,SME,Y,50%
357061,SHJ HOMES LTD,500,Guaranteed Rent Scheme,Rent Payable,04-Jan-22,2122/10,SME,N,
357389,PREMIER EDUCATION,"3,204.00",Holiday Activity Fund,"Equipment, Tools & Materials",09-Dec-21,2122/10,SME,N,
357361,NLA MEDIA ACCESS LTD,"11,624.60",Communications,Subscriptions,15-Dec-21,2122/10,SME,Y,50%
357165,S R LEE BUILDER LTD,"5,257.45",Shop Front & Access Imp Grants,Repairs,04-Jan-22,2122/10,SME,N,
357166,S R LEE BUILDER LTD,"5,396.85",Shop Front & Access Imp Grants,Repairs,04-Jan-22,2122/10,SME,N,
357219,SJL PLUMBING LTD,"5,000.00",Renovation/Home Repair Grants,Grants,07-Jan-22,2122/10,SME,N,
357263,STOWMARKET REMOVALS,550,Homelessness Private Sector,Removal Expenses,06-Jan-22,2122/10,SME,N,
357280,PRIVATE LANDLORD,400,Homeless Prevention Fund,Misc Supplies & Services Costs,05-Jan-22,2122/10,SME,N,
357325,PRIVATE LANDLORD,400,Homeless Prevention Fund,Misc Supplies & Services Costs,13-Jan-22,2122/10,SME,N,
357406,PRIVATE LANDLORD,"1,000.00",Guaranteed Rent Scheme,Misc Supplies & Services Costs,13-Jan-22,2122/10,ST,N,
893,LEX AUTOLEASE,-150.06,Building Services,Lease Cars - Payment,05-Jan-21,2122/10,SME,N,
EBC0044684,LEX AUTOLEASE,180.07,Current Assets,LLOYDS GENERAL PAYMENTS,06-Jan-22,2122/10,SME,N,
422320,LINDSAY FLAXMER LTD,-50,Taxi & Private Hire Licensing,Contracted Services,19-Jan-21,2122/10,SME,N,
357226,KNOWLES ASSOCIATES TFM LTD,-364.16,Building Services,Lease Cars - Payment,06-Jan-22,2122/10,SME,Y,
894,E.ON NEXT,-29.56,Voids Maintenance,Electricity,07-Jan-22,2122/10,LGE,N,
895,E.ON NEXT,29.56,Voids Maintenance,Electricity,07-Jan-22,2122/10,LGE,N,
899,SSE,-7.41,Voids Maintenance,Electricity,21-Jan-22,2122/10,LGE,N,
900,SSE,7.41,Voids Maintenance,Electricity,21-Jan-22,2122/10,LGE,N,
901,SSE,-142.83,Other HRA Temp Accommodation,Electricity,28-Jan-22,2122/10,LGE,N,
902,SSE,142.83,Other HRA Temp Accommodation,Electricity,28-Jan-22,2122/10,LGE,N,
357847,ANGLIAN WATER,908.27,Water Sampling,Sampling & Analysis,03-Feb-22,2122/11,LGE,N,
358051,ANGLIAN WATER,636.06,Tenancy Services,Water Rates - Metered,09-Feb-22,2122/11,LGE,N,
357748,BEN BURGESS GARDEN EQUIPMENT,"1,200.00",Open Spaces,"Equipment, Tools & Materials",26-Jan-22,2122/11,SME,N,
357749,BEN BURGESS GARDEN EQUIPMENT,"4,808.84",Open Spaces,Plant & Vehicle - Other costs,31-Jan-22,2122/11,SME,N,
358114,BEN BURGESS GARDEN EQUIPMENT,"1,200.00",Open Spaces,Plant & Vehicle - Other costs,23-Dec-21,2122/11,SME,N,
357844,BINDER LTD,280.5,Wingfield Barns,Annual Bldg Maint Contracts,26-Jan-22,2122/11,SME,N,
422351,BLUE FLAME (COLCHESTER) LTD,"8,317.79",Planned Maint - Heating,Property Servicing,02-Feb-22,2122/11,SME,N,
422351,BLUE FLAME (COLCHESTER) LTD,"17,780.00",Central Heating,Improvements,02-Feb-22,2122/11,SME,N,
422351,BLUE FLAME (COLCHESTER) LTD,"2,312.30",PV Panels,Contracted Services,02-Feb-22,2122/11,SME,N,
422354,BLUE FLAME (COLCHESTER) LTD,968.56,PV Panels,Contracted Services,09-Feb-22,2122/11,SME,N,
422354,BLUE FLAME (COLCHESTER) LTD,"17,732.00",Central Heating,Improvements,09-Feb-22,2122/11,SME,N,
422354,BLUE FLAME (COLCHESTER) LTD,"1,073.58",Council House Adaptions,Improvements,09-Feb-22,2122/11,SME,N,
422354,BLUE FLAME (COLCHESTER) LTD,"10,658.48",Planned Maint - Heating,Property Servicing,09-Feb-22,2122/11,SME,N,
422364,BLUE FLAME (COLCHESTER) LTD,"5,596.87",Planned Maint - Heating,Property Servicing,16-Feb-22,2122/11,SME,N,
422364,BLUE FLAME (COLCHESTER) LTD,"2,262.64",PV Panels,Contracted Services,16-Feb-22,2122/11,SME,N,
422369,BLUE FLAME (COLCHESTER) LTD,"6,614.94",Planned Maint - Heating,Property Servicing,23-Feb-22,2122/11,SME,N,
422369,BLUE FLAME (COLCHESTER) LTD,"8,399.00",Central Heating,Improvements,23-Feb-22,2122/11,SME,N,
422369,BLUE FLAME (COLCHESTER) LTD,"1,504.76",PV Panels,Contracted Services,23-Feb-22,2122/11,SME,N,
357941,BOWER FULLER,270.27,Tenancy Services,Repairs,31-Jan-22,2122/11,SME,N,
357946,BOWER FULLER,"5,409.21",Sheltered Accommodation,Fire Prevention,31-Jan-22,2122/11,SME,N,
357947,BOWER FULLER,"1,460.75",Leisure Contract,Repairs,31-Jan-22,2122/11,SME,N,
357949,BOWER FULLER,"1,130.12",Sheltered Accommodation,Fire Prevention,31-Jan-22,2122/11,SME,N,
357950,BOWER FULLER,783,Sheltered Accommodation,Fire Prevention,31-Jan-22,2122/11,SME,N,
357952,BOWER FULLER,"2,376.00",Asbestos Removal,Repairs,31-Jan-22,2122/11,SME,N,
357953,BOWER FULLER,285.29,Sheltered Accommodation,Repairs,31-Jan-22,2122/11,SME,N,
357958,BOWER FULLER,270.48,Creeting Rd Depot,Annual Bldg Maint Contracts,31-Jan-22,2122/11,SME,Y,50%
357800,BUTTON & TURNER LTD,411.24,Open Spaces,Plant & Vehicle - Other costs,04-Jan-22,2122/11,SME,N,
357802,BUTTON & TURNER LTD,471.77,Open Spaces,Plant & Vehicle - Other costs,12-Jan-22,2122/11,SME,N,
357807,BUTTON & TURNER LTD,265.72,Street & Major Road Cleansing,Plant & Vehicle - Other costs,14-Jan-22,2122/11,SME,N,
357670,AQUASAMPLERS,817,Water Sampling,Sampling & Analysis,31-Dec-21,2122/11,SME,N,
358014,AQUASAMPLERS,310,Water Sampling,Sampling & Analysis,31-Jan-22,2122/11,SME,N,
357823,CHIPSIDE LTD,776,C Parks General,Contracted Services,31-Jan-22,2122/11,SME,N,
358142,CLARKE FENCING LTD,402.36,RHSSF,"Equipment, Tools & Materials",20-Dec-21,2122/11,SME,N,
357505,D W ADAMS LTD,"4,247.00",Council House Adaptions,Improvements,24-Jan-22,2122/11,SME,N,
358006,D W ADAMS LTD,"4,386.00",Council House Adaptions,Improvements,13-Feb-22,2122/11,SME,N,
357751,DOLPHIN STAIRLIFTS (EAST ANGLIA) LTD,"2,540.00",Mand Disabled Facilities Grant,Grants,02-Feb-22,2122/11,SME,N,
357754,DOLPHIN STAIRLIFTS (EAST ANGLIA) LTD,"5,445.00",Mand Disabled Facilities Grant,Grants,02-Feb-22,2122/11,SME,N,
357898,DS MEAD LTD,"4,000.00",Renovation/Home Repair Grants,Grants,08-Feb-22,2122/11,SME,N,
357599,ENGLISH SECURITY,929.96,Sheltered Accommodation,Emergency Lighting,20-Jan-22,2122/11,SME,N,
357601,ENGLISH SECURITY,"1,212.05",Sheltered Accommodation,Fire Prevention,20-Jan-22,2122/11,SME,N,
357454,FELLBRIDGE BUILDING SERVICES,"1,463.24",Building Services,Repairs,20-Jan-22,2122/11,SME,N,
357535,FELLBRIDGE BUILDING SERVICES,"13,974.63",Building Services,Repairs,24-Dec-21,2122/11,SME,N,
357642,FELLBRIDGE BUILDING SERVICES,"3,659.75",Major Imps,Improvements,27-Jan-22,2122/11,SME,N,
357644,FELLBRIDGE BUILDING SERVICES,613.28,Building Services,Repairs,27-Jan-22,2122/11,SME,N,
357645,FELLBRIDGE BUILDING SERVICES,383.3,Building Services,Repairs,27-Jan-22,2122/11,SME,N,
357819,FELLBRIDGE BUILDING SERVICES,"13,311.94",Voids Maintenance,Repairs,03-Feb-22,2122/11,SME,N,
357820,FELLBRIDGE BUILDING SERVICES,"4,433.38",Major Imps,Improvements,03-Feb-22,2122/11,SME,N,
357971,FELLBRIDGE BUILDING SERVICES,996.58,Building Services,Repairs,10-Feb-22,2122/11,SME,N,
357832,FORE-MOST GARAGE DOORS LTD,"1,921.59",Building Services,Repairs,31-Jan-22,2122/11,SME,N,
357475,G & G SIGNS,342.95,Street Naming & Numbering,Signs,21-Jan-22,2122/11,SME,N,
357753,GB ADAPTIONS LTD,"6,182.00",Mand Disabled Facilities Grant,Grants,02-Feb-22,2122/11,SME,N,
358040,GHB ROOFING,"13,536.00",Roofing,Improvements,15-Feb-22,2122/11,SME,N,
357937,HQN LTD,720,Tenancy Services,Subscriptions,09-Feb-22,2122/11,SME,Y,50%
358067,JMP SERVICES LTD,650,Street & Major Road Cleansing,Contracted Services,15-Feb-22,2122/11,SME,N,
358108,KENDA-CLEAN,62,Creeting Rd Depot,Window Cleaning,16-Feb-22,2122/11,SME,Y,50%
358108,KENDA-CLEAN,"2,074.00",Sheltered Accommodation,Window Cleaning,16-Feb-22,2122/11,SME,N,
358108,KENDA-CLEAN,123,Temporary Accommodation,Window Cleaning,16-Feb-22,2122/11,SME,N,
357839,KEYWAYS THE LOCKSMITHS LTD,381.9,Building Services,Repairs,04-Feb-22,2122/11,SME,N,
357979,LOCAL GOVERNMENT INFORMATION UNIT,"2,268.00",Management Team,Subscriptions,03-Jan-22,2122/11,LGE,N,
357409,M & H CIVIL ENGINEERING LTD,967.6,Building Services,Repairs,18-Jan-22,2122/11,SME,N,
357711,M & H CIVIL ENGINEERING LTD,701.28,Building Services,Repairs,28-Jan-22,2122/11,SME,N,
357899,M & H CIVIL ENGINEERING LTD,"1,718.52",Building Services,Repairs,08-Feb-22,2122/11,SME,N,
357690,MATERIAL CHANGE COMPOSTING LTD,466.72,Open Spaces,Waste Disposal,31-Jan-22,2122/11,LGE,N,
357936,MB TREES (EAST ANGLIA) LTD,480,Public Tree Programme,Tree felling/maintenance,09-Feb-22,2122/11,SME,N,
357646,MERCURY BUILDING SERVICES LTD,337.6,Sheltered Accommodation,Repairs,27-Jan-22,2122/11,SME,N,
357647,MERCURY BUILDING SERVICES LTD,770,Sheltered Accommodation,Repairs,27-Jan-22,2122/11,SME,N,
358073,MERCURY BUILDING SERVICES LTD,412,Sheltered Accommodation,Repairs,15-Feb-22,2122/11,SME,N,
358073,MERCURY BUILDING SERVICES LTD,323,Cedars Park,Repairs,15-Feb-22,2122/11,SME,N,
357471,MID SUFFOLK FENCING LTD,280,Building Services,Repairs,20-Jan-22,2122/11,SME,N,
357697,NEEDHAM MARKET AERIALS LTD,485,Sheltered Accommodation,Repairs,01-Feb-22,2122/11,SME,N,
422337,NEEDHAM MARKET TOWN COUNCIL,"2,548.26",Street & Major Road Cleansing,Contributions to other Bodies,02-Feb-22,2122/11,SME,N,
357546,REID PLUMBING & HEATING CONTRACTORS LTD,775.5,Building Services,Repairs,25-Jan-22,2122/11,SME,N,
357582,REID PLUMBING & HEATING CONTRACTORS LTD,"9,125.03",Central Heating,Major Contracts,25-Jan-22,2122/11,SME,N,
357684,REID PLUMBING & HEATING CONTRACTORS LTD,"9,908.11",Central Heating,Major Contracts,31-Jan-22,2122/11,SME,N,
357774,REID PLUMBING & HEATING CONTRACTORS LTD,"17,621.91",Central Heating,Major Contracts,02-Feb-22,2122/11,SME,N,
357932,REID PLUMBING & HEATING CONTRACTORS LTD,"4,722.89",Central Heating,Major Contracts,09-Feb-22,2122/11,SME,N,
357962,REID PLUMBING & HEATING CONTRACTORS LTD,"9,285.13",Central Heating,Major Contracts,09-Feb-22,2122/11,SME,N,
358093,REID PLUMBING & HEATING CONTRACTORS LTD,"13,947.16",Central Heating,Major Contracts,16-Feb-22,2122/11,SME,N,
357825,RICOH UK LTD,280.25,ICT,Photocopying,20-Dec-21,2122/11,LGE,Y,50%
357758,RIGBY TAYLOR LTD,"1,400.00",Open Spaces,"Equipment, Tools & Materials",28-Jan-22,2122/11,SME,N,
357677,SACKERS LTD,"2,810.72",Building Services,Waste Disposal,31-Jan-22,2122/11,SME,Y,50%
357776,SANDY LANE NURSERY,"1,170.00",Public Tree Programme,Horticultural Purchases,03-Feb-22,2122/11,SME,N,
357778,SANDY LANE NURSERY,"4,255.00",Public Tree Programme,Horticultural Purchases,03-Feb-22,2122/11,SME,N,
357923,SEAGER HOME SOLUTIONS,"6,080.13",Major Imps,Improvements,07-Feb-22,2122/11,SME,N,
357924,SEAGER HOME SOLUTIONS,"3,568.06",Major Imps,Improvements,07-Feb-22,2122/11,SME,N,
357661,SOLACE GROUP LTD,"1,920.00",Organisational Devt,Training,31-Jan-22,2122/11,SME,Y,50%
357567,SOLUTIONS ON SECURITY SERVICES,160,"11 Market Place, Stowmarket",Annual Bldg Maint Contracts,25-Jan-22,2122/11,SME,N,
357567,SOLUTIONS ON SECURITY SERVICES,510,Sheltered Accommodation,Annual Bldg Maint Contracts,25-Jan-22,2122/11,SME,N,
357568,SOLUTIONS ON SECURITY SERVICES,475,Sheltered Accommodation,Repairs,25-Jan-22,2122/11,SME,N,
357669,SOLUTIONS ON SECURITY SERVICES,"1,988.50",Cedars Park,Repairs,26-Jan-22,2122/11,SME,N,
357713,SOLUTIONS ON SECURITY SERVICES,927.4,Wingfield Barns,Repairs,01-Feb-22,2122/11,SME,N,
357503,TANKCHANGE LTD,345,Building Services,Repairs,31-Dec-21,2122/11,SME,N,
357534,TANKCHANGE LTD,"2,195.00",Central Heating,Improvements,31-Dec-21,2122/11,SME,N,
357538,TANKCHANGE LTD,345,Central Heating,Improvements,31-Dec-21,2122/11,SME,N,
357931,TDT ENTERPRISES LTD,238,Temporary Accommodation,"Equipment, Tools & Materials",08-Feb-22,2122/11,SME,N,
357931,TDT ENTERPRISES LTD,149,Other HRA Temp Accommodation,"Equipment, Tools & Materials",08-Feb-22,2122/11,SME,N,
357852,THERMATECH,275,Tenancy Services,Fire Prevention,04-Feb-22,2122/11,SME,N,
357779,TRUCKEAST LTD,321.98,Street & Major Road Cleansing,Plant & Vehicle - Other costs,02-Feb-22,2122/11,LGE,N,
357514,WINDIMAN LTD,"1,470.00",Building Services,Repairs,24-Jan-22,2122/11,SME,N,
357515,WINDIMAN LTD,735,Building Services,Repairs,24-Jan-22,2122/11,SME,N,
357516,WINDIMAN LTD,735,Building Services,Repairs,24-Jan-22,2122/11,SME,N,
357517,WINDIMAN LTD,735,Building Services,Repairs,24-Jan-22,2122/11,SME,N,
357518,WINDIMAN LTD,"1,870.00",Major Imps,Improvements,24-Jan-22,2122/11,SME,N,
357519,WINDIMAN LTD,735,Major Imps,Improvements,24-Jan-22,2122/11,SME,N,
357624,WINDIMAN LTD,342.25,Building Services,Repairs,27-Jan-22,2122/11,SME,N,
357628,WINDIMAN LTD,272.16,Building Services,Repairs,27-Jan-22,2122/11,SME,N,
357629,WINDIMAN LTD,"1,470.00",Major Imps,Improvements,27-Jan-22,2122/11,SME,N,
357630,WINDIMAN LTD,"1,470.00",Building Services,Repairs,27-Jan-22,2122/11,SME,N,
357678,WINDIMAN LTD,"2,613.00",Major Imps,Improvements,31-Jan-22,2122/11,SME,N,
357827,WINDIMAN LTD,361.05,Building Services,Repairs,02-Feb-22,2122/11,SME,N,
357830,WINDIMAN LTD,"3,924.00",Major Imps,Improvements,03-Feb-22,2122/11,SME,N,
357831,WINDIMAN LTD,627.38,Major Imps,Improvements,03-Feb-22,2122/11,SME,N,
357837,WINDIMAN LTD,548.24,Building Services,Repairs,03-Feb-22,2122/11,SME,N,
357974,WINDIMAN LTD,"1,116.11",Major Imps,Improvements,10-Feb-22,2122/11,SME,N,
357864,WORKWEAR (EAST ANGLIA) LTD,265.2,Business Cont/Emergency Plan,Protective clothing,02-Feb-22,2122/11,SME,Y,50%
358077,WORKWEAR (EAST ANGLIA) LTD,484.3,Open Spaces,Protective clothing,05-Jan-22,2122/11,SME,N,
358077,WORKWEAR (EAST ANGLIA) LTD,484.29,Street & Major Road Cleansing,Protective clothing,05-Jan-22,2122/11,SME,N,
358105,WORKWEAR (EAST ANGLIA) LTD,328.62,Open Spaces,Protective clothing,16-Feb-22,2122/11,SME,N,
358105,WORKWEAR (EAST ANGLIA) LTD,328.62,Street & Major Road Cleansing,Protective clothing,16-Feb-22,2122/11,SME,N,
358106,WORKWEAR (EAST ANGLIA) LTD,503.44,Street & Major Road Cleansing,Protective clothing,16-Feb-22,2122/11,SME,Y,8%
357799,ARCHANT COMMUNITY MEDIA LTD,472.77,Devt Management - Apps,Advertising&mkting (non-staff),31-Jan-22,2122/11,LGE,N,
357907,ARCHANT COMMUNITY MEDIA LTD,682.89,Devt Management - Apps,Advertising&mkting (non-staff),05-Feb-22,2122/11,LGE,N,
357970,ARCHANT COMMUNITY MEDIA LTD,577.83,Devt Management - Apps,Advertising&mkting (non-staff),18-Jan-22,2122/11,LGE,N,
358045,ARCHANT COMMUNITY MEDIA LTD,656.63,Devt Management - Apps,Advertising&mkting (non-staff),12-Feb-22,2122/11,LGE,N,
358204,ARCHANT COMMUNITY MEDIA LTD,715.36,Devt Management - Apps,Advertising&mkting (non-staff),19-Feb-22,2122/11,LGE,N,
357866,MITIE PROPERTY SERVICES (UK) LTD,"17,828.16",Planned Maint - Ext Painting,Major Contracts,07-Feb-22,2122/11,SME,N,
358120,SPORTS & LEISURE MANAGEMENT LTD,"28,744.61",Leisure Contract,Electricity,26-Jan-22,2122/11,LGE,N,
357542,ESSEX COUNTY COUNCIL,756,Pre App Charging,Ecology Consultancy,24-Jan-22,2122/11,LGE,N,
358101,IPSWICH BOROUGH COUNCIL,"255,706.50",Shared Revenues Partnership,Major Contracts,16-Feb-22,2122/11,LGE,N,
358174,SERCO LTD,"4,377.00",Domestic Waste,Refuse Contract,21-Feb-22,2122/11,LGE,Y,50%
358175,SERCO LTD,"22,179.86",Trade Waste,Refuse Contract,21-Feb-22,2122/11,LGE,Y,60%
358175,SERCO LTD,"77,664.58",Garden Waste,Refuse Contract,21-Feb-22,2122/11,LGE,Y,48%
358175,SERCO LTD,"292,516.56",Domestic Waste,Refuse Contract,21-Feb-22,2122/11,LGE,Y,48%
358176,SERCO LTD,"8,075.33",Jnt Waste Contract,Plant & Vehicle Fuel,21-Feb-22,2122/11,LGE,Y,50%
357619,TRAVIS PERKINS TRADING CO LTD,450,Building Services,"Equipment, Tools & Materials",24-Jan-22,2122/11,LGE,Y,50%
357672,TRAVIS PERKINS TRADING CO LTD,675,Building Services,"Equipment, Tools & Materials",27-Jan-22,2122/11,LGE,Y,50%
357755,TRAVIS PERKINS TRADING CO LTD,"27,406.96",Building Services,"Equipment, Tools & Materials",31-Dec-21,2122/11,LGE,Y,62%
422365,EDF ENERGY,88.35,"11 Market Place, Stowmarket",Electricity,14-Feb-22,2122/11,LGE,N,
422365,EDF ENERGY,313.96,C Parks General,Electricity,14-Feb-22,2122/11,LGE,N,
422365,EDF ENERGY,42.19,Climate Change and Sustainabil,Electricity,14-Feb-22,2122/11,LGE,N,
422365,EDF ENERGY,661.42,Creeting Rd Depot,Electricity,14-Feb-22,2122/11,LGE,Y,50%
422365,EDF ENERGY,308.97,Headquarters General,Electricity,14-Feb-22,2122/11,LGE,N,
422365,EDF ENERGY,"17,990.95",Leisure Contract,Electricity,14-Feb-22,2122/11,LGE,N,
422365,EDF ENERGY,37.51,Needham Market Middle School,Electricity,14-Feb-22,2122/11,LGE,N,
422365,EDF ENERGY,413.42,Open Spaces,Electricity,14-Feb-22,2122/11,LGE,N,
422365,EDF ENERGY,623.22,Other HRA Temp Accommodation,Electricity,14-Feb-22,2122/11,LGE,N,
422365,EDF ENERGY,215.18,Public Conveniences,Electricity,14-Feb-22,2122/11,LGE,N,
422365,EDF ENERGY,282.69,Pure Gym & Adjacent Building,Electricity,14-Feb-22,2122/11,LGE,N,
422365,EDF ENERGY,15.08,Recycling Centre,Electricity,14-Feb-22,2122/11,LGE,N,
422365,EDF ENERGY,369,Sewage Treatment Works,Electricity,14-Feb-22,2122/11,LGE,N,
422365,EDF ENERGY,"14,136.88",Sheltered Accommodation,Electricity,14-Feb-22,2122/11,LGE,N,
422365,EDF ENERGY,188.05,Tacon Close Eye TDP,Electricity,14-Feb-22,2122/11,LGE,N,
422365,EDF ENERGY,576.43,Temporary Accommodation,Electricity,14-Feb-22,2122/11,LGE,N,
422365,EDF ENERGY,"1,604.40",Tenancy Services,Electricity,14-Feb-22,2122/11,LGE,N,
422365,EDF ENERGY,"1,356.14",Wingfield Barns,Electricity,14-Feb-22,2122/11,LGE,N,
358060,ERNST & YOUNG LLP,"28,827.00",Ext Audit,Audit Fees,15-Feb-22,2122/11,LGE,N,
358061,ERNST & YOUNG LLP,"13,481.00",Ext Audit,Audit Fees,15-Feb-22,2122/11,LGE,N,
422358,GPC BARCLAYS,"4,745.90",Current Assets,Barclaycard Control,14-Feb-22,2122/11,LGE,Y,9%
422348,ALLSTAR BUSINESS SOLUTIONS LTD,145.97,Housing Options,Plant & Vehicle Fuel,31-Jan-22,2122/11,SME,Y,50%
422348,ALLSTAR BUSINESS SOLUTIONS LTD,"8,183.56",Building Services,Plant & Vehicle Fuel,31-Jan-22,2122/11,SME,Y,50%
422353,COMPUTERSHARE ,"1,276.00",Current Assets,ChildCare Vouchers-Control,31-Jan-22,2122/11,LGE,N,
358083,BARHAM PARISH COUNCIL,"7,708.62",Community Fund Projects-Grants,Grants,16-Feb-22,2122/11,SME,N,
358144,BARHAM PARISH COUNCIL,"3,597.66",S106 Open Spaces Expenditure,Grants,21-Feb-22,2122/11,SME,N,
422322,BARHAM PARISH COUNCIL,579.15,Street & Major Road Cleansing,Contributions to other Bodies,02-Feb-22,2122/11,SME,N,
422323,BARKING PARISH COUNCIL,347.49,Street & Major Road Cleansing,Contributions to other Bodies,02-Feb-22,2122/11,SME,N,
357714,BATTISFORD PARISH COUNCIL,822.87,Grants & Contrbns,Contributions & Donations,01-Feb-22,2122/11,SME,N,
357917,BEDINGFIELD VILLAGE HALL,"1,650.00",Grants & Contrbns,Contributions & Donations,08-Feb-22,2122/11,SME,N,
357732,BOTESDALE PARISH COUNCIL,"1,000.00",Grants & Contrbns,Contributions & Donations,01-Feb-22,2122/11,SME,N,
422325,BOTESDALE PARISH COUNCIL,347.49,Street & Major Road Cleansing,Contributions to other Bodies,02-Feb-22,2122/11,SME,N,
422326,BRAMFORD PARISH COUNCIL,589.25,Street & Major Road Cleansing,Contributions to other Bodies,02-Feb-22,2122/11,SME,N,
422327,CLAYDON & WHITTON PARISH COUNCIL,"1,158.30",Street & Major Road Cleansing,Contributions to other Bodies,02-Feb-22,2122/11,SME,N,
357768,CODDENHAM PARISH COUNCIL,425,Grants & Contrbns,Contributions & Donations,02-Feb-22,2122/11,SME,N,
357531,DEBENHAM PARISH COUNCIL,641,Grants & Contrbns,Grants,24-Jan-22,2122/11,SME,N,
422328,EYE TOWN COUNCIL,"2,316.60",Street & Major Road Cleansing,Contributions to other Bodies,02-Feb-22,2122/11,SME,N,
357914,FRAMSDEN PARISH COUNCIL,500,Grants & Contrbns,Contributions & Donations,08-Feb-22,2122/11,SME,N,
422329,FRESSINGFIELD PARISH COUNCIL,521.24,Street & Major Road Cleansing,Contributions to other Bodies,02-Feb-22,2122/11,SME,N,
357985,GREAT FINBOROUGH PARISH COUNCIL,500,Grants & Contrbns,Contributions & Donations,11-Feb-22,2122/11,SME,N,
357762,HARLESTON PARISH MEETING,"1,150.00",Grants & Contrbns,Contributions & Donations,02-Feb-22,2122/11,SME,N,
422331,HARLESTON PARISH MEETING,579.15,Street & Major Road Cleansing,Contributions to other Bodies,02-Feb-22,2122/11,SME,N,
422332,HAUGHLEY PARISH COUNCIL,579.15,Street & Major Road Cleansing,Contributions to other Bodies,02-Feb-22,2122/11,SME,N,
357920,HAUGHLEY VILLAGE HALL MANAGEMENT COMMITT,"2,000.00",Grants & Contrbns,Contributions & Donations,08-Feb-22,2122/11,SME,N,
358087,HOME -START MID SUFFOLK,"5,000.00",Grants & Contrbns,Grants,16-Feb-22,2122/11,SME,N,
422334,HOXNE PARISH COUNCIL,579.15,Street & Major Road Cleansing,Contributions to other Bodies,02-Feb-22,2122/11,SME,N,
357720,KENTON PARISH MEETING,800,Grants & Contrbns,Contributions & Donations,01-Feb-22,2122/11,SME,N,
358002,LAXFIELD PARISH COUNCIL,600,Grants & Contrbns,Contributions & Donations,11-Feb-22,2122/11,SME,N,
422336,MENDLESHAM PARISH COUNCIL,405.41,Street & Major Road Cleansing,Contributions to other Bodies,02-Feb-22,2122/11,SME,N,
357731,MUSEUM OF EAST ANGLIAN LIFE,"7,134.00",Grants & Contrbns,Contributions & Donations,01-Feb-22,2122/11,SME,N,
357913,ONEHOUSE PARISH COUNCIL,500,Grants & Contrbns,Contributions & Donations,08-Feb-22,2122/11,SME,N,
422340,RICKINGHALL INFERIOR AND RICKINGHALL SUP,463.32,Street & Major Road Cleansing,Contributions to other Bodies,02-Feb-22,2122/11,SME,N,
357994,STOWUPLAND PARISH COUNCIL,860,Grants & Contrbns,Contributions & Donations,11-Feb-22,2122/11,SME,N,
422342,STOWUPLAND PARISH COUNCIL,810.81,Street & Major Road Cleansing,Contributions to other Bodies,02-Feb-22,2122/11,SME,N,
422343,STRADBROKE PARISH COUNCIL,984.56,Street & Major Road Cleansing,Contributions to other Bodies,02-Feb-22,2122/11,SME,N,
422344,THURSTON PARISH COUNCIL,806.25,Street & Major Road Cleansing,Contributions to other Bodies,02-Feb-22,2122/11,SME,N,
422346,WETHERDEN PARISH COUNCIL,347.49,Street & Major Road Cleansing,Contributions to other Bodies,02-Feb-22,2122/11,SME,N,
358145,WETHERINGSETT CUM BROCKFORD PARISH COUNC,"1,540.81",S106 Open Spaces Expenditure,Grants,21-Feb-22,2122/11,SME,N,
422347,WOOLPIT PARISH COUNCIL,694.98,Street & Major Road Cleansing,Contributions to other Bodies,02-Feb-22,2122/11,SME,N,
358050,E.ON,307.74,Other HRA Temp Accommodation,Heating Charges,15-Dec-21,2122/11,LGE,N,
357429,SUFFOLK COUNTY COUNCIL,"1,613.00",ICT -Hardware/Software Refresh,Desktop Software,18-Jan-22,2122/11,LGE,N,
357430,SUFFOLK COUNTY COUNCIL,"1,330.00",Land Chgs,Contracted Services,18-Jan-22,2122/11,LGE,N,
357873,SUFFOLK COUNTY COUNCIL,"1,110.63",General Rechargeable Works,Misc Supplies & Services Costs,04-Feb-22,2122/11,LGE,N,
357929,SUFFOLK COUNTY COUNCIL,310,Organisational Devt,Recruitment,07-Feb-22,2122/11,LGE,Y,50%
358107,SUFFOLK COUNTY COUNCIL,"7,618.00",Mand Disabled Facilities Grant,Contracted Services,16-Feb-22,2122/11,LGE,N,
357717,ROYAL MAIL,787,Central Postal Serv,Postage,24-Jan-22,2122/11,LGE,Y,50%
357901,BACTON BOWLS CLUB,"1,000.00",Grants & Contrbns,Contributions & Donations,08-Feb-22,2122/11,SME,N,
357909,STOWMARKET TOWN COUNCIL,570,Grants & Contrbns,Contributions & Donations,08-Feb-22,2122/11,SME,N,
357998,STOWMARKET TOWN COUNCIL,"1,969.46",Grants & Contrbns,Contributions & Donations,01-Feb-22,2122/11,SME,N,
357715,PARKRUN LTD,600,Grants & Contrbns,Contributions & Donations,01-Feb-22,2122/11,SME,N,
357716,PARKRUN LTD,"1,000.00",Grants & Contrbns,Contributions & Donations,01-Feb-22,2122/11,SME,N,
358227,LACY SCOTT & KNIGHT,"4,271.46",Mendlesham - New Build,Prof & Consultancy Fees,22-Feb-22,2122/11,SME,N,
358148,KENNET EQUIPMENT LEASING,283.5,Creeting Rd Depot,Operating Lease Payments,21-Feb-22,2122/11,SME,Y,50%
357769,ZURICH MUNICIPAL,"41,296.64",Insurance Premiums,Vehicle/Lease Car Insurance,27-Jan-22,2122/11,LGE,N,
357769,ZURICH MUNICIPAL,"5,717.58",Insurance Premiums,Employees Insurances,27-Jan-22,2122/11,LGE,N,
357769,ZURICH MUNICIPAL,"3,343.91",Insurance Premiums,Premises Insurance,27-Jan-22,2122/11,LGE,N,
357770,ZURICH MUNICIPAL,"100,233.38",Insurance Premiums,Employees Insurances,27-Jan-22,2122/11,LGE,N,
357770,ZURICH MUNICIPAL,"92,289.87",Insurance Premiums,Premises Insurance,27-Jan-22,2122/11,LGE,N,
357770,ZURICH MUNICIPAL,"8,534.49",Insurance Premiums,Miscellaneous Insurances,27-Jan-22,2122/11,LGE,N,
357771,ZURICH MUNICIPAL,"4,470.83",Insurance Premiums,Premises Insurance,27-Jan-22,2122/11,LGE,N,
357772,ZURICH MUNICIPAL,"3,937.74",Insurance Premiums,Miscellaneous Insurances,27-Jan-22,2122/11,LGE,N,
358078,ZURICH MUNICIPAL,"5,000.00",Building Services,Premises Insurance Excess,31-Jan-22,2122/11,LGE,N,
357692,ESSEX AND SUFFOLK WATER,"1,567.02",Sheltered Accommodation,Water Rates - Metered,24-Jan-22,2122/11,LGE,N,
358052,ESSEX AND SUFFOLK WATER,548.19,Sheltered Accommodation,Water Rates - Metered,08-Feb-22,2122/11,LGE,N,
358199,ESSEX AND SUFFOLK WATER,747.6,Sheltered Accommodation,Water Rates - Metered,10-Feb-22,2122/11,LGE,N,
422373,GAZPROM ENERGY,-13.14,"11 Market Place, Stowmarket",Gas,25-Feb-22,2122/11,SME,N,
422373,GAZPROM ENERGY,286.36,Creeting Rd Depot,Gas,25-Feb-22,2122/11,SME,Y,50%
422373,GAZPROM ENERGY,27.89,Headquarters General,Gas,25-Feb-22,2122/11,SME,N,
422373,GAZPROM ENERGY,"18,841.85",Leisure Contract,Gas,25-Feb-22,2122/11,SME,N,
422373,GAZPROM ENERGY,65.79,Pure Gym & Adjacent Building,Gas,25-Feb-22,2122/11,SME,N,
422373,GAZPROM ENERGY,"4,504.26",Sheltered Accommodation,Gas,25-Feb-22,2122/11,SME,N,
422373,GAZPROM ENERGY,412.47,Temporary Accommodation,Gas,25-Feb-22,2122/11,SME,N,
422373,GAZPROM ENERGY,438.48,Tenancy Services,Gas,25-Feb-22,2122/11,SME,N,
357922,PREMIER BODYWORKS,264.28,Open Spaces,Plant & Vehicle - Other costs,08-Feb-22,2122/11,SME,N,
358091,MID SUFFOLK CITIZENS ADVICE BUREAU,"23,875.00",Grants & Contrbns,Grants,16-Feb-22,2122/11,SME,N,
357999,TEMPLE GROUP LTD,595,Stowmarket Middle School,Prof & Consultancy Fees,11-Feb-22,2122/11,SME,N,
357886,WHYBROW PROPERTY SOLUTIONS LTD,629,Major Imps,Major Contracts,07-Feb-22,2122/11,SME,N,
357887,WHYBROW PROPERTY SOLUTIONS LTD,"3,659.00",Major Imps,Major Contracts,07-Feb-22,2122/11,SME,N,
357492,L A C CLEANING CONTRACTORS LIMITED,745.5,Building Services,Repairs,20-Feb-22,2122/11,SME,N,
357580,L A C CLEANING CONTRACTORS LIMITED,798.41,Temporary Accommodation,General Cleaning,24-Jan-22,2122/11,SME,N,
357750,L A C CLEANING CONTRACTORS LIMITED,720,Building Services,Repairs,01-Feb-22,2122/11,SME,N,
357858,L A C CLEANING CONTRACTORS LIMITED,495.5,Building Services,Repairs,04-Feb-22,2122/11,SME,N,
358130,L A C CLEANING CONTRACTORS LIMITED,798.41,Temporary Accommodation,General Cleaning,21-Feb-22,2122/11,SME,N,
357874,ARMSTRONG YORK ASBESTOS ENVIRONMENTAL,"8,939.57",Asbestos Survey & Reinspection,Prof & Consultancy Fees,31-Jan-22,2122/11,SME,N,
357814,SUFFOLK CHAMBER OF COMMERCE,850,Management Team,Subscriptions,01-Feb-22,2122/11,SME,N,
357525,THE MIX STOWMARKET LTD,"1,092.00",Suffolk Community Restart Fund,Contributions & Donations,24-Jan-22,2122/11,SME,N,
358156,THE MIX STOWMARKET LTD,760,Holiday Activity Fund,"Equipment, Tools & Materials",21-Feb-22,2122/11,SME,N,
357978,TRADITION (UK) LTD,"4,054.79",Treasury Management,Prof & Consultancy Fees,31-Jan-22,2122/11,LGE,N,
358153,STOWE VETERINARY GROUP,308.7,Animal Welfare Licensing,Prof & Consultancy Fees,21-Feb-22,2122/11,SME,N,
357933,HOUSING REVIEWS LTD,300,Guaranteed Rent Scheme,Training,12-Jan-22,2122/11,SME,N,
357683,ROSSI LONG CONSULTING LTD,953,Cross Street Tech Hub,Prof & Consultancy Fees,31-Jan-22,2122/11,SME,N,
357871,OXBURY CHARTERED SURVEYORS,"1,800.00","The Broadway, Badwell Ash",Prof & Consultancy Fees,07-Feb-22,2122/11,SME,N,
357965,DALROD (UK) LTD,294,Creeting Rd Depot,Grounds & Site Maintenance,04-Feb-22,2122/11,SME,Y,50%
357696,OPUS PEOPLE SOLUTIONS LTD,979.04,Current Liabilities,Agency Staff Holding A/C,27-Jan-22,2122/11,SME,N,
357882,OPUS PEOPLE SOLUTIONS LTD,938.72,Current Liabilities,Agency Staff Holding A/C,03-Feb-22,2122/11,SME,N,
358023,OPUS PEOPLE SOLUTIONS LTD,889.24,Current Liabilities,Agency Staff Holding A/C,10-Feb-22,2122/11,SME,N,
358151,OPUS PEOPLE SOLUTIONS LTD,"1,036.32",Current Liabilities,Agency Staff Holding A/C,17-Feb-22,2122/11,SME,N,
357853,ECOSYSTEMS TREE & GROUNDS CARE,535,Amenity Areas,Tree felling/maintenance,05-Feb-22,2122/11,SME,N,
357854,ECOSYSTEMS TREE & GROUNDS CARE,635,Tenancy Services,Tree felling/maintenance,05-Feb-22,2122/11,SME,N,
357855,ECOSYSTEMS TREE & GROUNDS CARE,300,Public Tree Programme,Tree felling/maintenance,05-Feb-22,2122/11,SME,N,
357856,ECOSYSTEMS TREE & GROUNDS CARE,535,Amenity Areas,Tree felling/maintenance,06-Feb-22,2122/11,SME,N,
358005,ECOSYSTEMS TREE & GROUNDS CARE,535,Amenity Areas,Tree felling/maintenance,12-Feb-22,2122/11,SME,N,
357785,CORNERSTONE BARRISTERS,"1,000.00",Devt Policy & Local Plans,Misc Legal Expenses,10-Jan-22,2122/11,SME,N,
357997,CORNERSTONE BARRISTERS,"1,750.00",Devt Policy & Local Plans,Misc Legal Expenses,31-Jan-22,2122/11,SME,N,
358038,CORNERSTONE BARRISTERS,750,Tenancy Services,Prof & Consultancy Fees,22-Nov-21,2122/11,SME,N,
358038,CORNERSTONE BARRISTERS,750,Tenancy Services,Legal Expenses,22-Nov-21,2122/11,SME,N,
357918,4PRINCIPLES CONSTRUCTION LTD,"5,371.49",Mand Disabled Facilities Grant,Grants,08-Feb-22,2122/11,SME,N,
358031,4PRINCIPLES CONSTRUCTION LTD,"1,489.61",Mand Disabled Facilities Grant,Grants,14-Feb-22,2122/11,SME,N,
357773,MATT ALLMAN LTD T/A MOVEITCLEARITFINDIT,"2,033.33",Homeless Prevention Fund,Removal Expenses,02-Feb-22,2122/11,SME,N,
357977,MATT ALLMAN LTD T/A MOVEITCLEARITFINDIT,"4,991.67",Environmental Protection,Contracted Services,11-Feb-22,2122/11,SME,N,
358181,MATT ALLMAN LTD T/A MOVEITCLEARITFINDIT,720,Homeless Prevention Fund,Removal Expenses,17-Feb-22,2122/11,SME,N,
358155,GALLAGHER CAR & VAN RENTALS LTD,"1,100.00",Domestic Waste,Refuse Contract,21-Feb-22,2122/11,LGE,N,
357283,FORESOLUTIONS LTD,501.4,Open Spaces,Plant & Vehicle - Other costs,10-Jan-22,2122/11,SME,N,
357283,FORESOLUTIONS LTD,123.2,Street & Major Road Cleansing,Plant & Vehicle - Other costs,10-Jan-22,2122/11,SME,N,
358066,1ST EYE SCOUT GROUP,600,Grants & Contrbns,Contributions & Donations,15-Feb-22,2122/11,SME,N,
358163,STREETMASTER (SOUTH WALES) LTD,538.75,Open Spaces,"Equipment, Tools & Materials",08-Feb-22,2122/11,SME,N,
357983,ONEHOUSE PAROCHIAL CHURCH COUNCIL,"1,000.00",Grants & Contrbns,Contributions & Donations,11-Feb-22,2122/11,SME,N,
358084,LOFTY HEIGHTS LTD,"1,000.00",Grants & Contrbns,Grants,16-Feb-22,2122/11,SME,N,
357780,RICHARD UTTING ASSOCIATES LLP,"1,293.23","Green Road, Woolpit",Prof & Consultancy Fees,03-Feb-22,2122/11,SME,N,
357930,RICHARD UTTING ASSOCIATES LLP,"1,787.20",Needham Market Middle School,Prof & Consultancy Fees,31-Jan-22,2122/11,SME,N,
357960,RICHARD UTTING ASSOCIATES LLP,"1,280.00",Paddock House,Prof & Consultancy Fees,31-Jan-22,2122/11,SME,N,
358074,RICHARD UTTING ASSOCIATES LLP,"2,055.00",Eves Meadow Haughley S106,Prof & Consultancy Fees,14-Feb-22,2122/11,SME,N,
357444,PUBLIC SEWER SERVICES,"1,500.00",Unadopted Drains & Sewers,Improvements,31-Oct-21,2122/11,SME,N,
357725,THE STOWMARKET GLASS COMPANY LTD,"2,619.58",Building Services,Repairs,20-Jan-22,2122/11,SME,N,
357729,THE STOWMARKET GLASS COMPANY LTD,"2,388.73",Building Services,Repairs,26-Jan-22,2122/11,SME,N,
357880,ASPECT CONTRACTS LTD,"2,117.00",Asbestos,Improvements,07-Feb-22,2122/11,LGE,N,
358110,ASPECT CONTRACTS LTD,850,Creeting Rd Depot,Contracted Services,16-Feb-22,2122/11,LGE,Y,50%
357861,GENIUS WITHIN CIC,650,Capita System Support,Training,04-Feb-22,2122/11,SME,Y,50%
358064,THE OFFSHOOT FOUNDATION,"2,119.00",Suffolk Community Restart Fund,Grants,15-Feb-22,2122/11,SME,N,
422352,RIX PETROLEUM (EAST ANGLIA) LTD,35,Sheltered Accommodation,Heating Oil,02-Feb-22,2122/11,SME,N,
422352,RIX PETROLEUM (EAST ANGLIA) LTD,"1,216.90",Open Spaces,Plant & Vehicle Fuel,02-Feb-22,2122/11,SME,N,
422352,RIX PETROLEUM (EAST ANGLIA) LTD,35,Tenancy Services,Heating Oil,02-Feb-22,2122/11,SME,N,
357811,ST MARYS PAROCHIAL CHURCH COUNCIL,"1,000.00",Open Spaces,Repairs,03-Feb-22,2122/11,SME,N,
357812,ST MARYS PAROCHIAL CHURCH COUNCIL,600,Open Spaces,Grounds & Site Maintenance,03-Feb-22,2122/11,SME,N,
358111,NORTHUMBRIAN WATER LTD,28.9,Cedars Park,Legionella Testing,17-Feb-22,2122/11,LGE,N,
358111,NORTHUMBRIAN WATER LTD,18.9,Creeting Rd Depot,Legionella Testing,17-Feb-22,2122/11,LGE,Y,50%
358111,NORTHUMBRIAN WATER LTD,34.15,Headquarters General,Legionella Testing,17-Feb-22,2122/11,LGE,N,
358111,NORTHUMBRIAN WATER LTD,28.9,Leisure Contract,Legionella Testing,17-Feb-22,2122/11,LGE,N,
358111,NORTHUMBRIAN WATER LTD,183.9,Open Spaces,Legionella Testing,17-Feb-22,2122/11,LGE,N,
358111,NORTHUMBRIAN WATER LTD,34.15,Other HRA Temp Accommodation,Legionella Testing,17-Feb-22,2122/11,LGE,N,
358111,NORTHUMBRIAN WATER LTD,68.3,Public Conveniences,Legionella Testing,17-Feb-22,2122/11,LGE,N,
358111,NORTHUMBRIAN WATER LTD,470.25,Responsive maintenance,Legionella Testing,17-Feb-22,2122/11,LGE,N,
358111,NORTHUMBRIAN WATER LTD,438.7,Sheltered Accommodation,Legionella Testing,17-Feb-22,2122/11,LGE,N,
358111,NORTHUMBRIAN WATER LTD,34.15,Temporary Accommodation,Legionella Testing,17-Feb-22,2122/11,LGE,N,
358111,NORTHUMBRIAN WATER LTD,63.05,Wingfield Barns,Legionella Testing,17-Feb-22,2122/11,LGE,N,
358191,SOLO HOUSING (EAST ANGLIA) LTD,"2,000.00",Homeless Prevention Fund,Misc Supplies & Services Costs,23-Feb-22,2122/11,SME,N,
357797,GIPPING OCCUPATIONAL HEALTH LTD,360,Health & Safety,Contracted Services,02-Feb-22,2122/11,SME,N,
357846,GIPPING OCCUPATIONAL HEALTH LTD,"1,503.00",Health & Safety,Contracted Services,02-Feb-22,2122/11,SME,Y,50%
422367,CABOODLE TECHNOLGY LIMITED,"1,276.00",Organisational Devt,Misc Employee Costs,31-Jan-22,2122/11,SME,N,
358035,RESIDENTIALLY CHARTERED SURVEYORS,825,Needham Market Middle School,Prof & Consultancy Fees,14-Feb-22,2122/11,SME,N,
357972,BELLWAY HOMES LIMITED (ESSEX DIVISION),"254,403.22",Eves Meadow Haughley S106,Prof & Consultancy Fees,04-Feb-22,2122/11,LGE,N,
357959,SOLACE IN BUSINESS,"12,000.00",Bus Imp (Corp),Agency Staff,09-Feb-22,2122/11,SME,Y,50%
357938,EARTH ANCHORS LTD,"2,325.00",RHSSF,"Equipment, Tools & Materials",21-Jan-22,2122/11,SME,N,
357506,A C LEIGH (NORWICH) LTD,612.16,Building Services,"Equipment, Tools & Materials",21-Jan-22,2122/11,SME,N,
358206,BARKER GOTELEE SOLICITORS,"8,851.50",Mendlesham - New Build,Prof & Consultancy Fees,11-Jan-22,2122/11,SME,N,
357879,DAVID STAGG & ASSOCIATES LTD T/A DSA ELE,"4,452.26",Building Services,Repairs,28-Jan-22,2122/11,SME,N,
357892,3 POINT PROPERTY MANAGEMENT LTD,675,Guaranteed Rent Scheme,Rent Payable,08-Feb-22,2122/11,SME,N,
357477,EAST SUFFOLK COUNCIL,"2,000.00",Climate Change and Sustainabil,Contributions to other Bodies,20-Jan-22,2122/11,LGE,Y,50%
357673,APTL ENTERPRISES LTD,"12,505.50",PV Panels,Repairs,31-Jan-22,2122/11,SME,N,
357712,APTL ENTERPRISES LTD,"2,320.00",PV Panels,Repairs,01-Feb-22,2122/11,SME,N,
357738,WASHCO LTD,467,Sheltered Accommodation,"Equipment, Tools & Materials",01-Feb-22,2122/11,SME,N,
358069,WASHCO LTD,349.38,Sheltered Accommodation,"Equipment, Tools & Materials",15-Feb-22,2122/11,SME,N,
357360,ANGLIA COMMERCIAL FLOORING LTD,805.6,Other Temp Accommodation,Misc Supplies & Services Costs,20-Dec-21,2122/11,SME,N,
357634,ANGLIA COMMERCIAL FLOORING LTD,516.54,Building Services,Repairs,25-Jan-22,2122/11,SME,N,
357635,ANGLIA COMMERCIAL FLOORING LTD,333.87,Building Services,Repairs,25-Jan-22,2122/11,SME,N,
357636,ANGLIA COMMERCIAL FLOORING LTD,580.49,Building Services,Repairs,25-Jan-22,2122/11,SME,N,
357638,ANGLIA COMMERCIAL FLOORING LTD,484.76,Building Services,Repairs,25-Jan-22,2122/11,SME,N,
357641,ANGLIA COMMERCIAL FLOORING LTD,811.34,Building Services,Repairs,25-Jan-22,2122/11,SME,N,
422360,DMD INSTALLATIONS LTD,"2,826.62",Regen Schms,Major Contracts,15-Feb-22,2122/11,SME,N,
422366,ANGLIAN WATER BUS (NAT) LTD T/A WAVE,46.26,"11 Market Place, Stowmarket",Water Rates - Metered,12-Feb-22,2122/11,LGE,N,
422366,ANGLIAN WATER BUS (NAT) LTD T/A WAVE,632.19,Creeting Rd Depot,Water Rates - Metered,12-Feb-22,2122/11,LGE,Y,50%
422366,ANGLIAN WATER BUS (NAT) LTD T/A WAVE,31.15,General/Supervision & Mgmt,Water Rates - Metered,12-Feb-22,2122/11,LGE,N,
422366,ANGLIAN WATER BUS (NAT) LTD T/A WAVE,116.46,Headquarters General,Water Rates - Metered,12-Feb-22,2122/11,LGE,N,
422366,ANGLIAN WATER BUS (NAT) LTD T/A WAVE,119.33,Open Spaces,Water Rates - Metered,12-Feb-22,2122/11,LGE,N,
422366,ANGLIAN WATER BUS (NAT) LTD T/A WAVE,256.17,Public Conveniences,Water Rates - Metered,12-Feb-22,2122/11,LGE,N,
422366,ANGLIAN WATER BUS (NAT) LTD T/A WAVE,4.04,Recycling Centre,Water Rates - Metered,12-Feb-22,2122/11,LGE,N,
422366,ANGLIAN WATER BUS (NAT) LTD T/A WAVE,4.04,Sewage Treatment Works,Water Rates - Metered,12-Feb-22,2122/11,LGE,N,
422366,ANGLIAN WATER BUS (NAT) LTD T/A WAVE,"1,520.93",Sheltered Accommodation,Water Rates - Metered,12-Feb-22,2122/11,LGE,N,
422366,ANGLIAN WATER BUS (NAT) LTD T/A WAVE,16.42,Tacon Close Eye TDP,Water Rates - Metered,12-Feb-22,2122/11,LGE,N,
422366,ANGLIAN WATER BUS (NAT) LTD T/A WAVE,16.47,Temporary Accommodation,Water Rates - Metered,12-Feb-22,2122/11,LGE,N,
422366,ANGLIAN WATER BUS (NAT) LTD T/A WAVE,40.3,Tenancy Services,Water Rates - Metered,12-Feb-22,2122/11,LGE,N,
422366,ANGLIAN WATER BUS (NAT) LTD T/A WAVE,9.55,Wingfield Barns,Water Rates - Metered,12-Feb-22,2122/11,LGE,N,
357863,PARKYNS LETTINGS BURY ST EDMUNDS,650,Guaranteed Rent Scheme,Rent Payable,07-Feb-22,2122/11,SME,N,
357783,GREENACRE RECRUITMENT LTD,"1,149.60",Housing Standards,Agency Staff,03-Feb-22,2122/11,SME,Y,50%
357935,GREENACRE RECRUITMENT LTD,"1,110.00",Housing Standards,Agency Staff,09-Feb-22,2122/11,SME,Y,50%
358094,GREENACRE RECRUITMENT LTD,"1,110.00",Housing Standards,Agency Staff,16-Feb-22,2122/11,SME,Y,50%
358209,GREENACRE RECRUITMENT LTD,"1,110.00",Housing Standards,Agency Staff,23-Feb-22,2122/11,SME,Y,50%
357828,MID SUFFOLK GROWTH LTD,"250,000.00",Regen Fund - HQ Sites,Major Contracts,27-Jan-22,2122/11,SME,N,
358224,MID SUFFOLK GROWTH LTD,"44,594.06",Regen Fund - HQ Sites,Prof & Consultancy Fees,23-Feb-22,2122/11,SME,N,
358225,MID SUFFOLK GROWTH LTD,"58,676.40",Needham HQ S106 Units,Purchase of Land & Buildings,24-Feb-22,2122/11,SME,N,
358116,OCN CONTRACTS,600,Temporary Accommodation,Furniture,14-Feb-22,2122/11,SME,N,
357982,HAUGHLEY PLAYING FIELD BOWLS CLUB,"1,438.00",Grants & Contrbns,Contributions & Donations,11-Feb-22,2122/11,SME,N,
357528,1ST NEEDHAM MARKET SCOUT GROUP,842.02,Suffolk Community Restart Fund,Contributions & Donations,24-Jan-22,2122/11,SME,N,
357734,1ST NEEDHAM MARKET SCOUT GROUP,"1,200.00",Grants & Contrbns,Contributions & Donations,01-Feb-22,2122/11,SME,N,
358161,LIMELEASE LTD,395,Guaranteed Rent Scheme,Rent Payable,22-Feb-22,2122/11,SME,N,
357877,BUCHER MUNICIPAL LTD,818.48,Open Spaces,"Equipment, Tools & Materials",07-Feb-22,2122/11,LGE,N,
357878,BUCHER MUNICIPAL LTD,509.71,Open Spaces,"Equipment, Tools & Materials",07-Feb-22,2122/11,LGE,N,
358162,PRIVATE LANDLORD,786.5,Guaranteed Rent Scheme,Rent Payable,22-Feb-22,2122/11,ST,N,
357904,RIVER GIPPING TRUST,"2,000.00",Grants & Contrbns,Contributions & Donations,08-Feb-22,2122/11,SME,N,
357906,RIVER GIPPING TRUST,"1,250.00",Grants & Contrbns,Contributions & Donations,08-Feb-22,2122/11,SME,N,
357992,CODDENHAM COMMUNITY GROUP,786,Grants & Contrbns,Contributions & Donations,11-Feb-22,2122/11,SME,N,
358036,MOBYSOFT LTD,"32,840.39",Rent Collection,Software Licnse (Line of Bus) ,07-Dec-21,2122/11,SME,N,
357981,STUDENT LIFE,840,Grants & Contrbns,Contributions & Donations,11-Feb-22,2122/11,SME,N,
357859,PRIVATE LANDLORD,786.5,Guaranteed Rent Scheme,Rent Payable,07-Feb-22,2122/11,ST,N,
358122,COUNTRYSTYLE RECYCLING LTD,"6,329.76",Bring Sites,Contracted Services,18-Feb-22,2122/11,SME,N,
357760,BURGESS HOMES LTD,"226,573.87","Back Hills, Botesdale, S106",Prof & Consultancy Fees,28-Jan-22,2122/11,SME,N,
357675,DGL QUALITY MANAGEMENT LTD,870.76,Needham Market Middle School,Prof & Consultancy Fees,31-Jan-22,2122/11,SME,N,
357764,OAKS MEADOW PROJECT CIO,"2,500.00",Grants & Contrbns,Contributions & Donations,02-Feb-22,2122/11,SME,N,
357910,OAKS MEADOW PROJECT CIO,731,Grants & Contrbns,Contributions & Donations,08-Feb-22,2122/11,SME,N,
357529,PCC OF STOWMARKET,"10,020.99",Community Fund Projects-Grants,Grants,24-Jan-22,2122/11,SME,N,
357548,ARAN INSULATION LTD,833.01,Insulation Imps,Improvements,24-Jan-22,2122/11,SME,N,
357549,ARAN INSULATION LTD,730.31,Insulation Imps,Improvements,25-Jan-22,2122/11,SME,N,
357668,ARAN INSULATION LTD,793,Insulation Imps,Improvements,31-Jan-22,2122/11,SME,N,
357817,ARAN INSULATION LTD,"1,113.61",Insulation Imps,Improvements,03-Feb-22,2122/11,SME,N,
357818,ARAN INSULATION LTD,745.77,Building Services,Repairs,03-Feb-22,2122/11,SME,N,
358011,ORWELL REMOVALS & STORAGE LTD,810,Homeless Prevention Fund,Removal Expenses,10-Feb-22,2122/11,SME,N,
357686,TREECONOMICS LTD,"8,310.00",Open Spaces,Contracted Services,02-Feb-22,2122/11,SME,Y,50.50%
357834,IAN BOOTH CONSULTANT ENGINEER LTD,680,Strategic Assets,Prof & Consultancy Fees,31-Jan-22,2122/11,SME,N,
357976,STORM ENVIRONMENTAL LTD,"12,260.00",Bins,Bins,09-Feb-22,2122/11,SME,Y,50%
358001,STORM ENVIRONMENTAL LTD,"18,500.00",Bins,Bins,10-Feb-22,2122/11,SME,Y,50%
357682,MARCHDELL LTD,715,Guaranteed Rent Scheme,Rent Payable,01-Feb-22,2122/11,SME,N,
357833,2020 CONSULTANCY SOLUTIONS LTD,"20,275.00",Car Parking Strategy,Prof & Consultancy Fees,03-Feb-22,2122/11,SME,Y,50%
357896,POLYSOLAR LTD,"124,559.86",Public Sector Decarbonisation,Contracted Services,21-Dec-21,2122/11,SME,N,
357693,E.ON NEXT,"1,122.71",Other HRA Temp Accommodation,Heating Charges,26-Jan-22,2122/11,LGE,N,
357706,IPSERV LTD,478.03,Communications,Commercial Printing,01-Feb-22,2122/11,SME,N,
357706,IPSERV LTD,"1,543.72",Central Printing,Commercial Printing,01-Feb-22,2122/11,SME,N,
357791,SSE,289.97,Voids Maintenance,Electricity,27-Jan-22,2122/11,LGE,N,
357244,SEH FRENCH LTD,"88,280.00",Needham Lake Vis Centre (CAP),Major Contracts,10-Jan-22,2122/11,SME,N,
358150,PRIVATE LANDLORD,669,Guaranteed Rent Scheme,Rent Payable,21-Feb-22,2122/11,ST,N,
358165,MK AUTOS MOT CENTRE LIMITED,350,Taxi & Private Hire Licensing,Contracted Services,31-Jan-22,2122/11,SME,N,
357891,ELDRIDGE MARRIOTT,495,Guaranteed Rent Scheme,Rent Payable,08-Feb-22,2122/11,SME,N,
357526,TINY TOES TODDLER GROUP,"1,000.00",Suffolk Community Restart Fund,Contributions & Donations,24-Jan-22,2122/11,SME,N,
357860,SHJ HOMES LTD,500,Guaranteed Rent Scheme,Rent Payable,07-Feb-22,2122/11,SME,N,
357618,THE WEIGEL CLINIC LTD,570,Organisational Devt,Contracted Services,06-Jan-22,2122/11,SME,Y,50%
357733,NLA MEDIA ACCESS LTD,"8,910.20",Communications,Subscriptions,31-Jan-22,2122/11,SME,Y,50%
358089,KING GEORGE PLAYING FIELD COMMITTEE,"2,700.00",Community Fund Projects-Grants,Grants,16-Feb-22,2122/11,SME,N,
358098,KING GEORGE PLAYING FIELD COMMITTEE,"5,000.00",CIL Funded REFCUS,Grants,17-Feb-22,2122/11,SME,N,
357990,SLM COMMUNITY LEISURE CHARITABLE TRUST,"1,400.00",Grants & Contrbns,Contributions & Donations,11-Feb-22,2122/11,SME,N,
358047,SAUNDERS BOSTON ARCHITECTS,"4,500.00",BRRP-MarketTownVision&Invest,Prof & Consultancy Fees,30-Nov-21,2122/11,SME,N,
358048,SAUNDERS BOSTON ARCHITECTS,"4,500.00",BRRP-MarketTownVision&Invest,Prof & Consultancy Fees,31-Dec-21,2122/11,SME,N,
358049,SAUNDERS BOSTON ARCHITECTS,"14,500.00",BRRP-MarketTownVision&Invest,Prof & Consultancy Fees,31-Jan-22,2122/11,SME,N,
358000,WHITTLEY PARISH MANAGEMENT LTD,"1,938.46",Rent Deposit Scheme,Misc Premises Costs,11-Feb-22,2122/11,SME,N,
357691,LETS RENT.RENTALS LTD,"1,300.00",Homeless Prevention Fund,Misc Supplies & Services Costs,31-Jan-22,2122/11,SME,N,
357763,OHS JUBILEE PLAYERS,669,Grants & Contrbns,Contributions & Donations,02-Feb-22,2122/11,SME,N,
357765,NEEDHAM MARKET BOWLS CLUB,274.9,Grants & Contrbns,Contributions & Donations,02-Feb-22,2122/11,SME,N,
357766,BACTON & WYVERSTONE HORT & SPORTS ASSOC,400,Grants & Contrbns,Contributions & Donations,02-Feb-22,2122/11,SME,N,
357900,WESLEY UKES,544.96,Grants & Contrbns,Contributions & Donations,08-Feb-22,2122/11,SME,N,
358097,ONYX SOLUTIONS (EAST) LTD,830.1,BRRP-InnovationClusterStowmkt,Annual Bldg Maint Contracts,09-Feb-22,2122/11,SME,N,
358027,THORNHAM MAGNA BOWLS CLUB,"1,000.00",Grants & Contrbns,Contributions & Donations,14-Feb-22,2122/11,SME,N,
358088,THORNHAM MAGNA BOWLS CLUB,"1,000.00",Grants & Contrbns,Grants,16-Feb-22,2122/11,SME,N,
358063,STOWMARKET CHORALE,"1,401.57",Suffolk Community Restart Fund,Grants,15-Feb-22,2122/11,SME,N,
358086,1ST CLAYDON SCOUT GROUP,"1,407.34",Community Fund Projects-Grants,Grants,16-Feb-22,2122/11,SME,N,
358065,STOWMARKET ROYAL NAVAL ASSOCIATION,"1,149.00",Grants & Contrbns,Contributions & Donations,15-Feb-22,2122/11,SME,N,
358092,STOWMARKET DISTRICT SCOUTS,"1,900.00",Suffolk Community Restart Fund,Grants,16-Feb-22,2122/11,SME,N,
358218,SANCTUARY HOUSING ASSOCIATION,"1,911.06",Tenancy Services,Other Service Charges,24-Feb-22,2122/11,SME,N,
358117,OPTIMUS GAS SERVICES LTD,"1,080.00",Renovation/Home Repair Grants,Grants,18-Feb-22,2122/11,SME,N,
214,TRUCKEAST LTD,-150,Street & Major Road Cleansing,Plant & Vehicle - Other costs,24-Feb-22,2122/11,LGE,N,
358079,WORKWEAR (EAST ANGLIA) LTD,-101.08,Open Spaces,Protective clothing,10-Feb-22,2122/11,SME,N,
358079,WORKWEAR (EAST ANGLIA) LTD,-101.09,Street & Major Road Cleansing,Protective clothing,10-Feb-22,2122/11,SME,N,
213,SOLO HOUSING (EAST ANGLIA) LTD,"-2,000.00",Homeless Prevention Fund,Misc Supplies & Services Costs,24-Feb-22,2122/11,SME,N,
358192,GIPPING OCCUPATIONAL HEALTH LTD,-140,Organisational Devt,Contracted Services,22-Feb-22,2122/11,SME,Y,50%
358193,GIPPING OCCUPATIONAL HEALTH LTD,-420,Organisational Devt,Contracted Services,22-Feb-22,2122/11,SME,Y,50%
212,CABOODLE TECHNOLGY LIMITED,"-1,276.00",Organisational Devt,Misc Employee Costs,24-Feb-22,2122/11,SME,N,
211,BRITISH RED CROSS,-117,Organisational Devt,Training,10-Feb-22,2122/11,SME,Y,50%
358289,AARON SERVICES LTD,"29,189.01",Planned Maint - Heating,Property Servicing,28-Feb-22,2122/12,SME,N,
358310,ANGLIAN WATER,287.8,Tenancy Services,Water Rates - Metered,20-Feb-22,2122/12,LGE,N,
358512,ANGLIAN WATER,"1,225.07",Sheltered Accommodation,Water Rates - Metered,22-Feb-22,2122/12,LGE,N,
358530,ANGLIAN WATER,434.35,Tenancy Services,Water Rates - Metered,02-Mar-22,2122/12,LGE,N,
358774,ANGLIAN WATER,599.49,Water Sampling,Sampling & Analysis,17-Mar-22,2122/12,LGE,N,
358822,ANGLIAN WATER,272.29,Sheltered Accommodation,Water Rates - Metered,16-Mar-22,2122/12,LGE,N,
358831,ANGLIAN WATER,921.13,Sheltered Accommodation,Water Rates - Metered,01-Mar-22,2122/12,LGE,N,
358833,ANGLIAN WATER,595.91,Sheltered Accommodation,Water Rates - Metered,25-Feb-22,2122/12,LGE,N,
358889,ANGLIAN WATER,441.22,Water Sampling,Sampling & Analysis,28-Feb-22,2122/12,LGE,N,
358825,APSE,"1,640.00",Food & Safety (General),Agency Staff,21-Mar-22,2122/12,LGE,Y,50%
358825,APSE,"1,640.00",Animal Welfare Licensing,Agency Staff,21-Mar-22,2122/12,LGE,Y,50%
358827,APSE,"1,640.00",Food & Safety (General),Agency Staff,21-Mar-22,2122/12,LGE,Y,50%
358827,APSE,"1,640.00",Animal Welfare Licensing,Agency Staff,21-Mar-22,2122/12,LGE,Y,50%
358514,BINDER LTD,621.06,Sewage Treatment Works,Contracted Services,28-Feb-22,2122/12,SME,N,
359047,BINDER LTD,769.78,Sewage Treatment Works,Contracted Services,18-Mar-22,2122/12,SME,N,
359048,BINDER LTD,318.48,Sewage Treatment Works,Contracted Services,18-Mar-22,2122/12,SME,N,
358477,BLUE FLAME (COLCHESTER) LTD,"26,081.79",Planned Maint - Heating,Property Servicing,26-Jan-22,2122/12,SME,N,
422379,BLUE FLAME (COLCHESTER) LTD,"7,477.51",Planned Maint - Heating,Property Servicing,02-Mar-22,2122/12,SME,N,
422379,BLUE FLAME (COLCHESTER) LTD,"9,338.00",Central Heating,Improvements,02-Mar-22,2122/12,SME,N,
422379,BLUE FLAME (COLCHESTER) LTD,824.44,PV Panels,Contracted Services,02-Mar-22,2122/12,SME,N,
422434,BLUE FLAME (COLCHESTER) LTD,"4,176.14",Planned Maint - Heating,Property Servicing,09-Mar-22,2122/12,SME,N,
422434,BLUE FLAME (COLCHESTER) LTD,62.28,Smoke Alarms (Bbgh Standard),Improvements,09-Mar-22,2122/12,SME,N,
422434,BLUE FLAME (COLCHESTER) LTD,789.02,PV Panels,Contracted Services,09-Mar-22,2122/12,SME,N,
422504,BLUE FLAME (COLCHESTER) LTD,"1,308.98",Planned Maint - Heating,Property Servicing,30-Mar-22,2122/12,SME,N,
422504,BLUE FLAME (COLCHESTER) LTD,144.12,PV Panels,Contracted Services,30-Mar-22,2122/12,SME,N,
358537,BOWER FULLER,"2,416.59",Sheltered Accommodation,Fire Prevention,28-Feb-22,2122/12,SME,N,
358540,BOWER FULLER,250.87,Sheltered Accommodation,Emergency Lighting,28-Feb-22,2122/12,SME,N,
358545,BOWER FULLER,673.48,Creeting Rd Depot,Annual Bldg Maint Contracts,28-Feb-22,2122/12,SME,Y,50%
358547,BOWER FULLER,"3,856.20",Sheltered Accommodation,Fire Prevention,28-Feb-22,2122/12,SME,N,
358549,BOWER FULLER,"3,697.20",Stradbrk Pl-Refurb,Repairs,01-Mar-22,2122/12,SME,N,
358525,BSI,633,Bldg Regs Chargeable Serv,Prof & Consultancy Fees,01-Mar-22,2122/12,LGE,N,
358522,BUTTON & TURNER LTD,417.82,Open Spaces,Plant & Vehicle - Other costs,23-Feb-22,2122/12,SME,N,
358993,CAPITA BUSINESS SERVICES LTD,"3,159.00",Open Housing Joint Project,Improvements,29-Mar-22,2122/12,LGE,Y,50%
358700,AQUASAMPLERS,500,Water Sampling,Sampling & Analysis,28-Feb-22,2122/12,SME,N,
358792,CEDARS HOTEL LTD,"5,610.00",Homeless Prevention Fund,Misc Supplies & Services Costs,18-Mar-22,2122/12,SME,N,
358878,CENTRAL TYRE LTD,356.5,Open Spaces,Plant & Vehicle - Other costs,23-Mar-22,2122/12,SME,N,
358937,CENTRAL TYRE LTD,384.16,Street & Major Road Cleansing,Plant & Vehicle - Other costs,25-Mar-22,2122/12,SME,N,
358885,CHARTERED INSTITUTE OF ENVIRONMENTAL HEA,525,Housing Standards,Training,23-Mar-22,2122/12,LGE,Y,50%
358119,CLARKE FENCING LTD,601.87,Open Spaces,"Equipment, Tools & Materials",18-Feb-22,2122/12,SME,N,
358129,CLARKE FENCING LTD,484.56,"Fences, Gates and Walls",Improvements,21-Feb-22,2122/12,SME,N,
358341,CLARKE FENCING LTD,499.17,Open Spaces,"Equipment, Tools & Materials",24-Nov-21,2122/12,SME,N,
358343,CLARKE FENCING LTD,377.84,Open Spaces,"Equipment, Tools & Materials",18-Nov-21,2122/12,SME,N,
358346,CLARKE FENCING LTD,"1,993.33",Assets & Development,"Equipment, Tools & Materials",05-Nov-21,2122/12,SME,Y,50%
358690,CLARKE FENCING LTD,737.44,Open Spaces,"Equipment, Tools & Materials",09-Mar-22,2122/12,SME,N,
358735,CLARKE FENCING LTD,551,Open Spaces,"Equipment, Tools & Materials",16-Mar-22,2122/12,SME,N,
358736,CLARKE FENCING LTD,"1,348.07",Open Spaces,"Equipment, Tools & Materials",16-Mar-22,2122/12,SME,N,
358710,D W ADAMS LTD,"9,111.00",Building Services,Repairs,16-Mar-22,2122/12,SME,N,
358767,D W ADAMS LTD,"4,130.00",Major Imps,Improvements,17-Mar-22,2122/12,SME,N,
358596,DOLPHIN STAIRLIFTS (EAST ANGLIA) LTD,"4,580.00",Mand Disabled Facilities Grant,Grants,11-Mar-22,2122/12,SME,N,
358292,EAST ANGLIA CLEANING SERVICES LTD,"1,374.49",Jnt Waste Contract,General Cleaning,28-Feb-22,2122/12,SME,Y,50%
358293,EAST ANGLIA CLEANING SERVICES LTD,451.47,Open Spaces,General Cleaning,28-Feb-22,2122/12,SME,N,
359074,EAST ANGLIA CLEANING SERVICES LTD,"1,374.49",Jnt Waste Contract,General Cleaning,31-Mar-22,2122/12,SME,Y,50%
359043,EAST OF ENGLAND LGA,"4,550.00",Organisational Devt,Legal Expenses,28-Mar-22,2122/12,SME,Y,50%
358171,ENGLISH SECURITY,849.49,Building Services,Fire Prevention,18-Feb-22,2122/12,SME,N,
358171,ENGLISH SECURITY,178.49,Building Services,Misc Premises Costs,18-Feb-22,2122/12,SME,N,
358179,ENGLISH SECURITY,90.35,Temporary Accommodation,Fire Prevention,16-Feb-22,2122/12,SME,N,
358179,ENGLISH SECURITY,72.8,Tenancy Services,Fire Prevention,16-Feb-22,2122/12,SME,N,
358179,ENGLISH SECURITY,87.27,Wingfield Barns,Fire Prevention,16-Feb-22,2122/12,SME,N,
358179,ENGLISH SECURITY,290.05,Sheltered Accommodation,Emergency Lighting,16-Feb-22,2122/12,SME,N,
358180,ENGLISH SECURITY,250.49,Temporary Accommodation,Repairs,15-Feb-22,2122/12,SME,N,
358577,ENGLISH SECURITY,"4,298.92",Major Imps,Major Contracts,07-Mar-22,2122/12,SME,N,
358585,ENGLISH SECURITY,440.21,Building Services,Repairs,02-Mar-22,2122/12,SME,N,
358814,ENGLISH SECURITY,"2,469.02",Sheltered Accommodation,Fire Prevention,18-Mar-22,2122/12,SME,N,
358814,ENGLISH SECURITY,422.73,Temporary Accommodation,Fire Prevention,18-Mar-22,2122/12,SME,N,
358814,ENGLISH SECURITY,690.76,Wingfield Barns,Fire Prevention,18-Mar-22,2122/12,SME,N,
358816,ENGLISH SECURITY,775,Major Imps,Prof & Consultancy Fees,09-Mar-22,2122/12,SME,N,
358952,ENGLISH SECURITY,586.01,Sheltered Accommodation,Fire Prevention,24-Mar-22,2122/12,SME,N,
358953,ENGLISH SECURITY,518.1,Sheltered Accommodation,Fire Prevention,24-Mar-22,2122/12,SME,N,
358954,ENGLISH SECURITY,369.1,Sheltered Accommodation,Fire Prevention,24-Mar-22,2122/12,SME,N,
358957,ENGLISH SECURITY,746,Sheltered Accommodation,Fire Prevention,24-Mar-22,2122/12,SME,N,
358818,ENVIROVENT LTD,460,Building Services,Repairs,21-Mar-22,2122/12,SME,N,
358819,ENVIROVENT LTD,728.47,Building Services,Repairs,21-Mar-22,2122/12,SME,N,
358472,FELGAINS CARE CENTRE,"5,995.00",Mand Disabled Facilities Grant,Grants,07-Mar-22,2122/12,SME,N,
358867,FELGAINS CARE CENTRE,"6,870.00",Mand Disabled Facilities Grant,Grants,23-Mar-22,2122/12,SME,N,
358030,FELLBRIDGE BUILDING SERVICES,766.6,Building Services,Repairs,14-Feb-22,2122/12,SME,N,
358032,FELLBRIDGE BUILDING SERVICES,686.32,Building Services,Repairs,14-Feb-22,2122/12,SME,N,
358033,FELLBRIDGE BUILDING SERVICES,754.95,Building Services,Repairs,14-Feb-22,2122/12,SME,N,
358109,FELLBRIDGE BUILDING SERVICES,"10,268.49",Building Services,Repairs,17-Feb-22,2122/12,SME,N,
358149,FELLBRIDGE BUILDING SERVICES,"5,838.17",Council House Adaptions,Improvements,21-Feb-22,2122/12,SME,N,
358214,FELLBRIDGE BUILDING SERVICES,"7,115.03",Major Imps,Improvements,24-Feb-22,2122/12,SME,N,
358221,FELLBRIDGE BUILDING SERVICES,"4,212.20",Building Services,Repairs,24-Feb-22,2122/12,SME,N,
358222,FELLBRIDGE BUILDING SERVICES,381.12,Building Services,Repairs,24-Feb-22,2122/12,SME,N,
358223,FELLBRIDGE BUILDING SERVICES,"7,209.24",Building Services,Repairs,24-Feb-22,2122/12,SME,N,
358572,FELLBRIDGE BUILDING SERVICES,"15,503.63",Building Services,Repairs,10-Mar-22,2122/12,SME,N,
358573,FELLBRIDGE BUILDING SERVICES,"12,946.95",Building Services,Repairs,10-Mar-22,2122/12,SME,N,
358574,FELLBRIDGE BUILDING SERVICES,"4,438.25",Building Services,Repairs,10-Mar-22,2122/12,SME,N,
358588,FELLBRIDGE BUILDING SERVICES,"13,659.78",Building Services,Repairs,10-Mar-22,2122/12,SME,N,
358589,FELLBRIDGE BUILDING SERVICES,"14,042.55",Major Imps,Improvements,10-Mar-22,2122/12,SME,N,
358685,FELLBRIDGE BUILDING SERVICES,"15,054.01",Building Services,Repairs,14-Mar-22,2122/12,SME,N,
358687,FELLBRIDGE BUILDING SERVICES,435.3,Building Services,Repairs,14-Mar-22,2122/12,SME,N,
358761,FELLBRIDGE BUILDING SERVICES,373.2,Building Services,Repairs,17-Mar-22,2122/12,SME,N,
358291,FORE-MOST GARAGE DOORS LTD,"1,621.87",Building Services,Repairs,28-Feb-22,2122/12,SME,N,
358423,GHB ROOFING,"1,440.00",Building Services,Repairs,28-Feb-22,2122/12,SME,N,
358476,GHB ROOFING,"1,070.00",Sheltered Accommodation,Repairs,28-Feb-22,2122/12,SME,N,
358666,GHB ROOFING,"1,170.00",Building Services,Repairs,28-Feb-22,2122/12,SME,N,
359054,GHB ROOFING,"13,938.75",Major Imps,Improvements,31-Mar-22,2122/12,SME,N,
358846,GUDGEONS PRENTICE,500,Organisational Devt,Legal Expenses,05-Jan-21,2122/12,SME,Y,50%
358314,HAYES DIGGINS BUILDERS,"1,560.00",Leisure Contract,Repairs,28-Feb-22,2122/12,SME,N,
358950,HAYES DIGGINS BUILDERS,"2,650.00",Building Services,Repairs,28-Mar-22,2122/12,SME,N,
358349,HOUSEMARK LTD,"6,030.00",Capita System Support,Subscriptions,01-Mar-22,2122/12,SME,Y,50%
358379,HOUSEMARK LTD,"6,030.00",Capita System Support,Subscriptions,01-Mar-22,2122/12,SME,Y,50%
358235,KEYWAYS THE LOCKSMITHS LTD,490,Neighbourhood Services,Repairs,25-Feb-22,2122/12,SME,Y,21%
358428,KEYWAYS THE LOCKSMITHS LTD,"3,481.00",Tenancy Services,Repairs,04-Mar-22,2122/12,SME,N,
358866,LABC,"2,461.30",Bldg Regs Chargeable Serv,Prof & Consultancy Fees,08-Mar-22,2122/12,SME,Y,50%
358028,LJ GAMMER (STOWMARKET) LTD,374.7,Building Services,Plant & Vehicle - Other costs,31-Jan-22,2122/12,SME,N,
358184,LJ GAMMER (STOWMARKET) LTD,547.35,Building Services,Plant & Vehicle - Other costs,18-Feb-22,2122/12,SME,N,
358007,M & H CIVIL ENGINEERING LTD,575.5,Building Services,Repairs,13-Feb-22,2122/12,SME,N,
358008,M & H CIVIL ENGINEERING LTD,627.5,Building Services,Repairs,13-Feb-22,2122/12,SME,N,
358504,M & H CIVIL ENGINEERING LTD,629.22,Building Services,Repairs,07-Mar-22,2122/12,SME,N,
358505,M & H CIVIL ENGINEERING LTD,730.36,Building Services,Repairs,07-Mar-22,2122/12,SME,N,
358758,M & H CIVIL ENGINEERING LTD,618.62,Building Services,Repairs,15-Mar-22,2122/12,SME,N,
358802,MARRIOTT HOLDINGS LTD,"1,875.00",C Parks-Stowmarket Lorry Park,Rent Payable,21-Mar-22,2122/12,SME,N,
358315,MATERIAL CHANGE COMPOSTING LTD,633.45,Open Spaces,Waste Disposal,28-Feb-22,2122/12,LGE,N,
358315,MATERIAL CHANGE COMPOSTING LTD,35.4,Open Spaces,"Equipment, Tools & Materials",28-Feb-22,2122/12,LGE,N,
358431,MATERIAL CHANGE COMPOSTING LTD,478.48,Open Spaces,Waste Disposal,30-Nov-21,2122/12,LGE,N,
358896,MATERIAL CHANGE COMPOSTING LTD,"1,273.44",Open Spaces,"Equipment, Tools & Materials",24-Mar-22,2122/12,LGE,N,
358920,MATERIAL CHANGE COMPOSTING LTD,619.2,Open Spaces,"Equipment, Tools & Materials",25-Mar-22,2122/12,LGE,N,
358535,MB TREES (EAST ANGLIA) LTD,740,Public Tree Programme,Tree felling/maintenance,10-Mar-22,2122/12,SME,N,
358550,MB TREES (EAST ANGLIA) LTD,380,Public Tree Programme,Tree felling/maintenance,10-Mar-22,2122/12,SME,N,
358554,MB TREES (EAST ANGLIA) LTD,740,Tenancy Services,Tree felling/maintenance,10-Mar-22,2122/12,SME,N,
358557,MB TREES (EAST ANGLIA) LTD,480,Public Tree Programme,Tree felling/maintenance,10-Mar-22,2122/12,SME,N,
358857,MB TREES (EAST ANGLIA) LTD,275,Stowmarket Middle School,Prof & Consultancy Fees,22-Mar-22,2122/12,SME,N,
358860,MB TREES (EAST ANGLIA) LTD,580,Public Tree Programme,Tree felling/maintenance,22-Mar-22,2122/12,SME,N,
422361,MB TREES (EAST ANGLIA) LTD,675,Tenancy Services,Tree felling/maintenance,15-Feb-22,2122/12,SME,N,
358466,MID SUFFOLK FENCING LTD,572,Building Services,Repairs,04-Mar-22,2122/12,SME,N,
358656,MID SUFFOLK FENCING LTD,525,Building Services,Repairs,27-Jan-22,2122/12,SME,N,
358705,MID SUFFOLK FENCING LTD,"1,100.00",Building Services,Repairs,15-Mar-22,2122/12,SME,N,
422471,NEEDHAM MARKET TOWN COUNCIL,"2,548.26",Street & Major Road Cleansing,Contributions to other Bodies,15-Mar-22,2122/12,SME,N,
358096,PITMAN BROTHERS (DECORATORS) LTD,"2,280.00",Building Services,Repairs,16-Feb-22,2122/12,SME,N,
358424,PRO-FLAT SPECIALIST SERVICES LTD,450,Building Services,Repairs,28-Feb-22,2122/12,SME,N,
358190,REID PLUMBING & HEATING CONTRACTORS LTD,"14,008.71",Central Heating,Major Contracts,23-Feb-22,2122/12,SME,N,
358302,REID PLUMBING & HEATING CONTRACTORS LTD,"9,558.35",Central Heating,Major Contracts,28-Feb-22,2122/12,SME,N,
358395,REID PLUMBING & HEATING CONTRACTORS LTD,"34,229.12",Central Heating,Major Contracts,02-Mar-22,2122/12,SME,N,
358495,REID PLUMBING & HEATING CONTRACTORS LTD,"9,786.10",Central Heating,Major Contracts,08-Mar-22,2122/12,SME,N,
358686,REID PLUMBING & HEATING CONTRACTORS LTD,"24,437.53",Central Heating,Major Contracts,14-Mar-22,2122/12,SME,N,
358702,REID PLUMBING & HEATING CONTRACTORS LTD,"4,178.24",Central Heating,Major Contracts,16-Mar-22,2122/12,SME,N,
358826,REID PLUMBING & HEATING CONTRACTORS LTD,"9,548.12",Central Heating,Major Contracts,21-Mar-22,2122/12,SME,N,
358879,REID PLUMBING & HEATING CONTRACTORS LTD,"11,307.30",Central Heating,Major Contracts,23-Mar-22,2122/12,SME,N,
358984,REID PLUMBING & HEATING CONTRACTORS LTD,"9,695.86",Central Heating,Major Contracts,28-Mar-22,2122/12,SME,N,
358991,REID PLUMBING & HEATING CONTRACTORS LTD,"4,827.72",Central Heating,Major Contracts,29-Mar-22,2122/12,SME,N,
358283,SACKERS LTD,"2,016.51",Building Services,Waste Disposal,28-Feb-22,2122/12,SME,Y,50%
358724,SOLACE GROUP LTD,"1,320.00",Management Team,Subscriptions,04-Mar-22,2122/12,SME,Y,50%
359041,SOLUTIONS ON SECURITY SERVICES,"6,819.28",Sheltered Units-Gen.Imp,Improvements,30-Mar-22,2122/12,SME,N,
358450,STERLING INTERNATIONAL BROKERS LTD,997.26,Treasury Management,Prof & Consultancy Fees,28-Feb-22,2122/12,SME,N,
358384,STEVEN R.POTKINS LTD,"11,994.00",Mand Disabled Facilities Grant,Grants,02-Mar-22,2122/12,SME,N,
422505,SUFFOLK WILDLIFE TRUST,"1,421.54",Bring Sites,Contributions & Donations,30-Mar-22,2122/12,SME,N,
358451,SUREFIX,300,Building Services,Repairs,01-Mar-22,2122/12,SME,N,
358647,SUREFIX,"1,800.00",Major Imps,Improvements,10-Mar-22,2122/12,SME,N,
358782,SUREFIX,500,Window & Door Rplcmts,Improvements,07-Mar-22,2122/12,SME,N,
358677,SWT TRADING LTD,"29,050.00",Devt Management - Apps,Biodiversity Task Force,28-Feb-22,2122/12,SME,Y,42.50%
358131,TANKCHANGE LTD,550,Central Heating,Improvements,20-Feb-22,2122/12,SME,N,
358132,TANKCHANGE LTD,375,Central Heating,Improvements,20-Feb-22,2122/12,SME,N,
358133,TANKCHANGE LTD,345,Central Heating,Improvements,20-Feb-22,2122/12,SME,N,
358134,TANKCHANGE LTD,"2,295.00",Central Heating,Improvements,16-Aug-21,2122/12,SME,N,
358135,TANKCHANGE LTD,345,Central Heating,Improvements,20-Feb-22,2122/12,SME,N,
358158,TANKCHANGE LTD,345,Central Heating,Improvements,20-Feb-22,2122/12,SME,N,
358317,TANKCHANGE LTD,345,Central Heating,Improvements,30-Jun-20,2122/12,SME,N,
358625,TANKCHANGE LTD,345,Central Heating,Improvements,20-Feb-22,2122/12,SME,N,
358644,TANKCHANGE LTD,345,Central Heating,Improvements,02-Mar-22,2122/12,SME,N,
358852,TDT ENTERPRISES LTD,257.75,Major Imps,Repairs,22-Mar-22,2122/12,SME,N,
358252,THERMATECH,"3,800.00",Sheltered Accommodation,Fire Prevention,15-Feb-22,2122/12,SME,N,
358253,THERMATECH,"9,200.00",Sheltered Accommodation,Fire Prevention,25-Feb-22,2122/12,SME,N,
358254,THERMATECH,475,Temporary Accommodation,Fire Prevention,25-Feb-22,2122/12,SME,N,
358788,THERMATECH,"3,080.00",Sheltered Accommodation,Fire Prevention,18-Mar-22,2122/12,SME,N,
358039,THOMPSON COOPER LTD,"1,275.00",Street & Major Road Cleansing,"Equipment, Tools & Materials",14-Feb-22,2122/12,SME,Y,50%
358394,THOMPSON COOPER LTD,"1,275.00",Street & Major Road Cleansing,"Equipment, Tools & Materials",02-Mar-22,2122/12,SME,Y,50%
359084,TRUCKEAST LTD,280,Street & Major Road Cleansing,Contracted Services,31-Mar-22,2122/12,LGE,N,
359085,TRUCKEAST LTD,951.12,Street & Major Road Cleansing,Plant & Vehicle - Other costs,31-Mar-22,2122/12,LGE,N,
358515,VALUATION OFFICE AGENCY,"2,000.00",Devt Management - Apps,Viability,08-Mar-22,2122/12,LGE,N,
358845,VISIT EAST ANGLIA LTD,"14,000.00",Tourism General,Sampling & Analysis,11-Oct-21,2122/12,SME,Y,50%
358999,VISIT EAST ANGLIA LTD,"2,500.00",RHSSF,Advertising&mkting (non-staff),24-Mar-22,2122/12,SME,N,
357756,WEST END REHOMING,284.42,Dog Control,Collection Charges,01-Feb-22,2122/12,SME,N,
358330,WEST END REHOMING,408.42,Dog Control,Collection Charges,01-Mar-22,2122/12,SME,N,
358182,WINDIMAN LTD,"1,470.00",Major Imps,Improvements,22-Feb-22,2122/12,SME,N,
358418,WINDIMAN LTD,735,Building Services,Repairs,03-Mar-22,2122/12,SME,N,
358419,WINDIMAN LTD,"1,870.00",Building Services,Repairs,03-Mar-22,2122/12,SME,N,
358586,WINDIMAN LTD,587.6,Building Services,Repairs,10-Mar-22,2122/12,SME,N,
358587,WINDIMAN LTD,804.72,Major Imps,Improvements,10-Mar-22,2122/12,SME,N,
358612,WINDIMAN LTD,334.28,Building Services,Repairs,17-Feb-22,2122/12,SME,N,
358613,WINDIMAN LTD,"1,643.90",Building Services,Repairs,17-Feb-22,2122/12,SME,N,
358779,WINDIMAN LTD,735,Building Services,Repairs,18-Mar-22,2122/12,SME,N,
358780,WINDIMAN LTD,"2,674.14",Major Imps,Improvements,18-Mar-22,2122/12,SME,N,
358905,WINDIMAN LTD,966.59,Building Services,Repairs,24-Mar-22,2122/12,SME,N,
358906,WINDIMAN LTD,735,Major Imps,Improvements,24-Mar-22,2122/12,SME,N,
358907,WINDIMAN LTD,910.83,Building Services,Repairs,24-Mar-22,2122/12,SME,N,
358908,WINDIMAN LTD,290,Building Services,Repairs,24-Mar-22,2122/12,SME,N,
358909,WINDIMAN LTD,300,Major Imps,Improvements,24-Mar-22,2122/12,SME,N,
358016,WORKWEAR (EAST ANGLIA) LTD,257.5,Building Services,Protective clothing,10-Feb-22,2122/12,SME,Y,50%
358319,WORKWEAR (EAST ANGLIA) LTD,263.8,Housing Standards,Protective clothing,16-Feb-22,2122/12,SME,Y,50%
358326,WORKWEAR (EAST ANGLIA) LTD,331.8,Housing Standards,Protective clothing,04-Feb-22,2122/12,SME,Y,50%
358470,WORKWEAR (EAST ANGLIA) LTD,298.78,Bldg Regs Chargeable Serv,Protective clothing,03-Mar-22,2122/12,SME,Y,50%
358675,WORKWEAR (EAST ANGLIA) LTD,250.82,Open Spaces,Protective clothing,11-Mar-22,2122/12,SME,N,
358340,ARCHANT COMMUNITY MEDIA LTD,557.77,Devt Management - Apps,Advertising&mkting (non-staff),28-Feb-22,2122/12,LGE,N,
358492,ARCHANT COMMUNITY MEDIA LTD,986.76,Devt Management - Apps,Advertising&mkting (non-staff),05-Mar-22,2122/12,LGE,N,
358493,ARCHANT COMMUNITY MEDIA LTD,"1,897.28",Council Tax Collection,Advertising&mkting (non-staff),05-Mar-22,2122/12,LGE,N,
358663,ARCHANT COMMUNITY MEDIA LTD,910.52,Devt Management - Apps,Advertising&mkting (non-staff),12-Mar-22,2122/12,LGE,N,
358998,ARCHANT COMMUNITY MEDIA LTD,872.95,Devt Management - Apps,Advertising&mkting (non-staff),26-Mar-22,2122/12,LGE,N,
359073,ARCHANT COMMUNITY MEDIA LTD,525,RHSSF,Advertising&mkting (non-staff),31-Mar-22,2122/12,LGE,N,
358404,MITIE PROPERTY SERVICES (UK) LTD,"21,680.04",Planned Maint - Ext Painting,Major Contracts,03-Mar-22,2122/12,SME,N,
359037,MITIE PROPERTY SERVICES (UK) LTD,"20,546.83",Planned Maint - Ext Painting,Major Contracts,30-Mar-22,2122/12,SME,N,
358043,NEWAUTO LTD T/A MOGO UK,"3,115.90",Taxi & Private Hire Licensing,"Equipment, Tools & Materials",15-Feb-22,2122/12,SME,N,
358412,EVERYONE ACTIVE STOWMARKET,600,Holiday Activity Fund,"Equipment, Tools & Materials",28-Feb-22,2122/12,SME,N,
358838,ESSEX COUNTY COUNCIL,"6,168.00",Pre App Charging,Landscape Consultancy,21-Mar-22,2122/12,LGE,N,
358839,ESSEX COUNTY COUNCIL,"9,400.50",Devt Management - Apps,Landscape Consultancy,21-Mar-22,2122/12,LGE,N,
358840,ESSEX COUNTY COUNCIL,"1,032.00",Pre App Charging,Landscape Consultancy,21-Mar-22,2122/12,LGE,N,
358841,ESSEX COUNTY COUNCIL,"5,576.75",Devt Management - Apps,Landscape Consultancy,21-Mar-22,2122/12,LGE,N,
359016,ESSEX COUNTY COUNCIL,"3,162.00",Pre App Charging,Heritage Consultancy ,29-Mar-22,2122/12,LGE,N,
359017,ESSEX COUNTY COUNCIL,"2,122.00",Conservation,Prof & Consultancy Fees,29-Mar-22,2122/12,LGE,N,
359055,ESSEX COUNTY COUNCIL,"5,000.00",Management Team,Subscriptions,30-Mar-22,2122/12,LGE,N,
359063,IPSWICH BOROUGH COUNCIL,605,Shared Revenues Partnership,Contributions to other Bodies,30-Mar-22,2122/12,LGE,N,
358177,SERCO LTD,"4,025.39",Open Spaces,Plant & Vehicle Fuel,21-Feb-22,2122/12,LGE,Y,50%
358747,SERCO LTD,"4,377.00",Domestic Waste,Refuse Contract,11-Mar-22,2122/12,LGE,Y,50%
358749,SERCO LTD,"22,179.82",Trade Waste,Refuse Contract,11-Mar-22,2122/12,LGE,Y,60%
358749,SERCO LTD,"77,664.61",Garden Waste,Refuse Contract,11-Mar-22,2122/12,LGE,Y,48%
358749,SERCO LTD,"292,516.57",Domestic Waste,Refuse Contract,11-Mar-22,2122/12,LGE,Y,48%
358750,SERCO LTD,"8,075.33",Jnt Waste Contract,Plant & Vehicle Fuel,11-Mar-22,2122/12,LGE,Y,50%
358757,SERCO LTD,"5,718.58",Open Spaces,Plant & Vehicle Fuel,11-Mar-22,2122/12,LGE,Y,50%
358042,TRAVIS PERKINS TRADING CO LTD,265,Building Services,"Equipment, Tools & Materials",11-Feb-22,2122/12,LGE,Y,50%
358408,TRAVIS PERKINS TRADING CO LTD,975,Building Services,"Equipment, Tools & Materials",01-Mar-22,2122/12,LGE,Y,50%
358639,TRAVIS PERKINS TRADING CO LTD,"80,572.08",Building Services,"Equipment, Tools & Materials",31-Jan-22,2122/12,LGE,Y,51%
358716,TRAVIS PERKINS TRADING CO LTD,"56,971.61",Building Services,"Equipment, Tools & Materials",28-Feb-22,2122/12,LGE,Y,55%
358755,TRAVIS PERKINS TRADING CO LTD,578.87,Building Services,"Equipment, Tools & Materials",15-Mar-22,2122/12,LGE,Y,50%
358777,TRAVIS PERKINS TRADING CO LTD,"3,439.36",Building Services,"Equipment, Tools & Materials",16-Mar-22,2122/12,LGE,Y,50%
358849,TRAVIS PERKINS TRADING CO LTD,"3,186.98",Building Services,"Equipment, Tools & Materials",18-Mar-22,2122/12,LGE,Y,50%
358928,TRAVIS PERKINS TRADING CO LTD,800,Building Services,"Equipment, Tools & Materials",23-Mar-22,2122/12,LGE,Y,50%
358929,TRAVIS PERKINS TRADING CO LTD,845,Building Services,"Equipment, Tools & Materials",23-Mar-22,2122/12,LGE,Y,50%
358930,TRAVIS PERKINS TRADING CO LTD,230.49,Building Services,"Equipment, Tools & Materials",23-Mar-22,2122/12,LGE,Y,50%
422490,EDF ENERGY,70.59,"11 Market Place, Stowmarket",Electricity,07-Mar-22,2122/12,LGE,N,
422490,EDF ENERGY,314.23,C Parks General,Electricity,07-Mar-22,2122/12,LGE,N,
422490,EDF ENERGY,31.58,Climate Change and Sustainabil,Electricity,07-Mar-22,2122/12,LGE,N,
422490,EDF ENERGY,576.45,Creeting Rd Depot,Electricity,07-Mar-22,2122/12,LGE,Y,50%
422490,EDF ENERGY,272.34,Headquarters General,Electricity,07-Mar-22,2122/12,LGE,N,
422490,EDF ENERGY,"17,593.95",Leisure Contract,Electricity,07-Mar-22,2122/12,LGE,N,
422490,EDF ENERGY,71.34,Needham Market Middle School,Electricity,07-Mar-22,2122/12,LGE,N,
422490,EDF ENERGY,220.52,Open Spaces,Electricity,07-Mar-22,2122/12,LGE,N,
422490,EDF ENERGY,552.1,Other HRA Temp Accommodation,Electricity,07-Mar-22,2122/12,LGE,N,
422490,EDF ENERGY,121.41,Public Conveniences,Electricity,07-Mar-22,2122/12,LGE,N,
422490,EDF ENERGY,165.58,Pure Gym & Adjacent Building,Electricity,07-Mar-22,2122/12,LGE,N,
422490,EDF ENERGY,11.93,Recycling Centre,Electricity,07-Mar-22,2122/12,LGE,N,
422490,EDF ENERGY,330.29,Sewage Treatment Works,Electricity,07-Mar-22,2122/12,LGE,N,
422490,EDF ENERGY,"10,865.65",Sheltered Accommodation,Electricity,07-Mar-22,2122/12,LGE,N,
422490,EDF ENERGY,168.12,Tacon Close Eye TDP,Electricity,07-Mar-22,2122/12,LGE,N,
422490,EDF ENERGY,458.89,Temporary Accommodation,Electricity,07-Mar-22,2122/12,LGE,N,
422490,EDF ENERGY,"1,441.90",Tenancy Services,Electricity,07-Mar-22,2122/12,LGE,N,
422490,EDF ENERGY,"4,471.01",Wingfield Barns,Electricity,07-Mar-22,2122/12,LGE,N,
358731,ERNST & YOUNG LLP,"52,022.00",Ext Audit,Audit Fees,14-Mar-22,2122/12,LGE,N,
422481,GPC BARCLAYS,"3,595.76",Current Assets,Barclaycard Control,14-Mar-22,2122/12,LGE,N,
422375,ALLSTAR BUSINESS SOLUTIONS LTD,96.07,Housing Options,Plant & Vehicle Fuel,28-Feb-22,2122/12,SME,Y,50%
422375,ALLSTAR BUSINESS SOLUTIONS LTD,"7,568.17",Building Services,Plant & Vehicle Fuel,28-Feb-22,2122/12,SME,Y,50%
358295,STANNAH STAIRLIFTS LTD,"14,407.00",Council House Adaptions,Repairs,28-Feb-22,2122/12,LGE,N,
358437,STANNAH STAIRLIFTS LTD,"6,828.00",Council House Adaptions,Improvements,03-Mar-22,2122/12,LGE,N,
358439,STANNAH STAIRLIFTS LTD,461.92,Sheltered Accommodation,Repairs,04-Mar-22,2122/12,LGE,N,
422374,COMPUTERSHARE ,"1,276.00",Current Assets,ChildCare Vouchers-Control,28-Feb-22,2122/12,LGE,N,
422500,COMPUTERSHARE ,"1,276.00",Current Assets,ChildCare Vouchers-Control,25-Mar-22,2122/12,LGE,N,
422406,1ST WETHERDEN & HAUGHLEY SCOUTS,463.41,Bring Sites,Contributions & Donations,02-Mar-22,2122/12,SME,N,
422454,BARHAM PARISH COUNCIL,579.15,Street & Major Road Cleansing,Contributions to other Bodies,15-Mar-22,2122/12,SME,N,
422455,BARKING PARISH COUNCIL,347.49,Street & Major Road Cleansing,Contributions to other Bodies,15-Mar-22,2122/12,SME,N,
358726,BOTESDALE PARISH COUNCIL,"1,000.00",Grants & Contrbns,Grants,16-Mar-22,2122/12,SME,N,
358773,BOTESDALE PARISH COUNCIL,"27,896.84",CIL Funded REFCUS,Grants,18-Mar-22,2122/12,SME,N,
422457,BOTESDALE PARISH COUNCIL,347.49,Street & Major Road Cleansing,Contributions to other Bodies,15-Mar-22,2122/12,SME,N,
422458,BRAMFORD PARISH COUNCIL,579.15,Street & Major Road Cleansing,Contributions to other Bodies,15-Mar-22,2122/12,SME,N,
422459,CLAYDON & WHITTON PARISH COUNCIL,"1,158.30",Street & Major Road Cleansing,Contributions to other Bodies,15-Mar-22,2122/12,SME,N,
422460,DEBENHAM PARISH COUNCIL,"2,055.98",Street & Major Road Cleansing,Contributions to other Bodies,15-Mar-22,2122/12,SME,N,
358897,DEBENHAM VILLAGE HALL & PLAYING FIELD TR,"15,495.14",Community Fund Projects-Grants,Grants,24-Mar-22,2122/12,SME,N,
358921,DEBENHAM VILLAGE HALL & PLAYING FIELD TR,"7,045.43",S106 Open Spaces Expenditure,Grants,25-Mar-22,2122/12,SME,N,
422380,DEBENHAM VILLAGE HALL & PLAYING FIELD TR,730.5,Bring Sites,Contributions & Donations,02-Mar-22,2122/12,SME,N,
422401,EARL STONHAM PARISH COUNCIL,343.45,Bring Sites,Contributions & Donations,02-Mar-22,2122/12,SME,N,
358265,ELMSWELL PARISH COUNCIL,"3,223.38",Grants & Contrbns,Contributions & Donations,27-Feb-22,2122/12,SME,N,
422402,ELMSWELL PARISH COUNCIL,841.01,Bring Sites,Contributions & Donations,02-Mar-22,2122/12,SME,N,
422461,EYE TOWN COUNCIL,"2,316.60",Street & Major Road Cleansing,Contributions to other Bodies,15-Mar-22,2122/12,SME,N,
358245,FELSHAM PARISH COUNCIL,"2,920.00",Grants & Contrbns,Contributions & Donations,25-Feb-22,2122/12,SME,N,
422462,FRESSINGFIELD PARISH COUNCIL,521.24,Street & Major Road Cleansing,Contributions to other Bodies,15-Mar-22,2122/12,SME,N,
422463,GREAT BLAKENHAM PARISH COUNCIL,"1,158.30",Street & Major Road Cleansing,Contributions to other Bodies,15-Mar-22,2122/12,SME,N,
422465,HARLESTON PARISH MEETING,579.15,Street & Major Road Cleansing,Contributions to other Bodies,15-Mar-22,2122/12,SME,N,
422466,HAUGHLEY PARISH COUNCIL,579.15,Street & Major Road Cleansing,Contributions to other Bodies,15-Mar-22,2122/12,SME,N,
422468,HOXNE PARISH COUNCIL,579.15,Street & Major Road Cleansing,Contributions to other Bodies,15-Mar-22,2122/12,SME,N,
422407,HOXNE VILLAGE HALL,425.12,Bring Sites,Contributions & Donations,02-Mar-22,2122/12,SME,N,
358630,LAXFIELD PARISH COUNCIL,550,Grants & Contrbns,Contributions & Donations,13-Mar-22,2122/12,SME,N,
358443,MENDLESHAM PARISH COUNCIL,"6,853.63",S106 Open Spaces Expenditure,Grants,04-Mar-22,2122/12,SME,N,
422470,MENDLESHAM PARISH COUNCIL,405.41,Street & Major Road Cleansing,Contributions to other Bodies,15-Mar-22,2122/12,SME,N,
422388,NORTON PARISH COUNCIL,621.24,Bring Sites,Contributions & Donations,02-Mar-22,2122/12,SME,N,
422416,RATTLESDEN PARISH COUNCIL,326.4,Bring Sites,Contributions & Donations,02-Mar-22,2122/12,SME,N,
358260,REDGRAVE PARISH COUNCIL,"1,160.00",Grants & Contrbns,Contributions & Donations,27-Feb-22,2122/12,SME,N,
422474,RICKINGHALL INFERIOR AND RICKINGHALL SUP,463.32,Street & Major Road Cleansing,Contributions to other Bodies,15-Mar-22,2122/12,SME,N,
358785,RICKINGHALL VILLAGE HALL,475,Suffolk Community Restart Fund,Grants,18-Mar-22,2122/12,SME,N,
422418,RICKINGHALL VILLAGE HALL,565.5,Bring Sites,Contributions & Donations,02-Mar-22,2122/12,SME,N,
358268,RINGSHALL PARISH COUNCIL,600,Grants & Contrbns,Contributions & Donations,27-Feb-22,2122/12,SME,N,
358901,STONHAM PARVA PARISH COUNCIL,"1,958.84",Suffolk Community Restart Fund,Grants,24-Mar-22,2122/12,SME,N,
422476,STOWUPLAND PARISH COUNCIL,810.81,Street & Major Road Cleansing,Contributions to other Bodies,15-Mar-22,2122/12,SME,N,
422477,STRADBROKE PARISH COUNCIL,984.56,Street & Major Road Cleansing,Contributions to other Bodies,15-Mar-22,2122/12,SME,N,
358597,THORNHAM PARISH HALL,488,Grants & Contrbns,Contributions & Donations,11-Mar-22,2122/12,SME,N,
422393,THORNHAM PARISH HALL,393.66,Bring Sites,Contributions & Donations,02-Mar-22,2122/12,SME,N,
422478,THURSTON PARISH COUNCIL,895.45,Street & Major Road Cleansing,Contributions to other Bodies,15-Mar-22,2122/12,SME,N,
422423,WALSHAM LE WILLOWS MEMORIAL VILLAGE HALL,657.19,Bring Sites,Contributions & Donations,02-Mar-22,2122/12,SME,N,
422479,WETHERDEN PARISH COUNCIL,347.49,Street & Major Road Cleansing,Contributions to other Bodies,15-Mar-22,2122/12,SME,N,
358264,WOOLPIT PARISH COUNCIL,"2,300.00",Grants & Contrbns,Contributions & Donations,27-Feb-22,2122/12,SME,N,
422425,WOOLPIT PARISH COUNCIL,544.51,Bring Sites,Contributions & Donations,02-Mar-22,2122/12,SME,N,
422480,WOOLPIT PARISH COUNCIL,694.98,Street & Major Road Cleansing,Contributions to other Bodies,15-Mar-22,2122/12,SME,N,
422426,WORLINGWORTH COMMUNITY CENTRE COMMITTEE,325.25,Bring Sites,Contributions & Donations,02-Mar-22,2122/12,SME,N,
422427,WORTHAM VILLAGE HALL,478.65,Bring Sites,Contributions & Donations,02-Mar-22,2122/12,SME,N,
358634,WYVERSTONE PARISH COUNCIL,500,Grants & Contrbns,Contributions & Donations,13-Mar-22,2122/12,SME,N,
358636,WYVERSTONE VILLAGE HALL COMMITTEE,500,Grants & Contrbns,Contributions & Donations,13-Mar-22,2122/12,SME,N,
422441,WYVERSTONE VILLAGE HALL COMMITTEE,354.78,Bring Sites,Contributions & Donations,09-Mar-22,2122/12,SME,N,
422428,YAXLEY PARISH COUNCIL,403.71,Bring Sites,Contributions & Donations,02-Mar-22,2122/12,SME,N,
356783,SUFFOLK COUNTY COUNCIL,"2,473.00",Organisational Devt,Recruitment,13-Dec-21,2122/12,LGE,Y,50%
357115,SUFFOLK COUNTY COUNCIL,"3,527.25",Organisational Devt,Contracted Services,21-Dec-21,2122/12,LGE,Y,50%
357295,SUFFOLK COUNTY COUNCIL,"1,143.78",Organisational Devt,Contracted Services,10-Jan-22,2122/12,LGE,Y,50%
357295,SUFFOLK COUNTY COUNCIL,"17,938.22",Organisational Devt,Recruitment,10-Jan-22,2122/12,LGE,Y,50%
357551,SUFFOLK COUNTY COUNCIL,471,Open Spaces,"Equipment, Tools & Materials",25-Jan-22,2122/12,LGE,N,
358046,SUFFOLK COUNTY COUNCIL,"1,175.00",Land Chgs,Contracted Services,14-Feb-22,2122/12,LGE,N,
358211,SUFFOLK COUNTY COUNCIL,"1,101.95",Health & Safety,Furniture,23-Feb-22,2122/12,LGE,Y,50%
358212,SUFFOLK COUNTY COUNCIL,"2,325.00",Organisational Devt,Health & Safety Training,23-Feb-22,2122/12,LGE,Y,50%
358276,SUFFOLK COUNTY COUNCIL,285.6,Health & Safety,Furniture,25-Feb-22,2122/12,LGE,Y,50%
358331,SUFFOLK COUNTY COUNCIL,685,Open Spaces,"Equipment, Tools & Materials",01-Mar-22,2122/12,LGE,N,
358382,SUFFOLK COUNTY COUNCIL,"48,714.50",Trade Waste,Trade Waste Disposal,01-Mar-22,2122/12,LGE,N,
358383,SUFFOLK COUNTY COUNCIL,"12,143.69",Domestic Waste,MRF Disposal,01-Mar-22,2122/12,LGE,N,
358383,SUFFOLK COUNTY COUNCIL,"9,008.40",Garden Waste,Garden Waste Disposal,01-Mar-22,2122/12,LGE,N,
358481,SUFFOLK COUNTY COUNCIL,"1,730.00",Land Chgs,Contracted Services,04-Mar-22,2122/12,LGE,N,
358532,SUFFOLK COUNTY COUNCIL,"1,317.76",Tenancy Services,Electricity,08-Mar-22,2122/12,LGE,N,
358575,SUFFOLK COUNTY COUNCIL,"5,167.00",Organisational Devt,Recruitment,09-Mar-22,2122/12,LGE,Y,50%
358576,SUFFOLK COUNTY COUNCIL,"80,000.00",Homelessness Private Sector,Prof & Consultancy Fees,09-Mar-22,2122/12,LGE,N,
358601,SUFFOLK COUNTY COUNCIL,370.21,General Rechargeable Works,Misc Supplies & Services Costs,10-Mar-22,2122/12,LGE,N,
358693,SUFFOLK COUNTY COUNCIL,"2,145.25",Organisational Devt,Contracted Services,14-Mar-22,2122/12,LGE,Y,50%
358715,SUFFOLK COUNTY COUNCIL,"9,825.27",Domestic Waste,MRF Disposal,15-Mar-22,2122/12,LGE,N,
358715,SUFFOLK COUNTY COUNCIL,"7,629.00",Garden Waste,Garden Waste Disposal,15-Mar-22,2122/12,LGE,N,
358844,SUFFOLK COUNTY COUNCIL,"6,202.00",Organisational Devt,Recruitment,21-Mar-22,2122/12,LGE,Y,50%
358872,SUFFOLK COUNTY COUNCIL,"3,205.00",Organisational Devt,Recruitment,22-Mar-22,2122/12,LGE,Y,50%
358873,SUFFOLK COUNTY COUNCIL,350,Organisational Devt,Recruitment,22-Mar-22,2122/12,LGE,Y,50%
358875,SUFFOLK COUNTY COUNCIL,"1,370.50",Organisational Devt,Recruitment,22-Mar-22,2122/12,LGE,Y,50%
358876,SUFFOLK COUNTY COUNCIL,"4,398.80",Organisational Devt,Recruitment,22-Mar-22,2122/12,LGE,Y,50%
358887,SUFFOLK COUNTY COUNCIL,"7,108.81",Domestic Waste,MRF Disposal,23-Mar-22,2122/12,LGE,N,
358887,SUFFOLK COUNTY COUNCIL,"8,088.60",Garden Waste,Garden Waste Disposal,23-Mar-22,2122/12,LGE,N,
358903,SUFFOLK COUNTY COUNCIL,"2,058.06",Grants & Contrbns,Contributions & Donations,24-Mar-22,2122/12,LGE,N,
358327,FENN WRIGHT LLP,450,General/Supervision & Mgmt,Prof & Consultancy Fees,01-Mar-22,2122/12,SME,N,
358754,FENN WRIGHT LLP,617.43,Adjacent Pure Gym,Advertising&mkting (non-staff),10-Mar-22,2122/12,SME,N,
359023,FENN WRIGHT LLP,450,General/Supervision & Mgmt,Prof & Consultancy Fees,29-Mar-22,2122/12,SME,N,
422422,STOWMARKET COMMUNITY SPORTS & SOCIAL CLU,764.65,Bring Sites,Contributions & Donations,02-Mar-22,2122/12,SME,N,
358234,STOWMARKET TOWN COUNCIL,984.73,Grants & Contrbns,Contributions & Donations,25-Feb-22,2122/12,SME,N,
358633,STOWMARKET TOWN COUNCIL,984.73,Grants & Contrbns,Contributions & Donations,13-Mar-22,2122/12,SME,N,
358255,TELEFONICA UK LIMITED - O2,"1,403.72",ICT,Telephone Costs,27-Feb-22,2122/12,LGE,Y,50%
358945,TELEFONICA UK LIMITED - O2,"1,462.28",ICT,Telephone Costs,27-Mar-22,2122/12,LGE,Y,50%
358250,LEX AUTOLEASE,540.93,Building Services,Lease Cars - Payment,16-Feb-22,2122/12,SME,Y,50%
358251,LEX AUTOLEASE,"1,811.48",Building Services,Lease Cars - Payment,18-Feb-22,2122/12,SME,Y,50%
358350,LEX AUTOLEASE,267.12,Building Services,Lease Cars - Payment,18-Feb-22,2122/12,SME,Y,50%
358351,LEX AUTOLEASE,"2,938.21",Building Services,Lease Cars - Payment,23-Feb-22,2122/12,SME,Y,50%
358828,ESSEX AND SUFFOLK WATER,545.39,Sheltered Accommodation,Water Rates - Metered,28-Feb-22,2122/12,LGE,N,
422497,GAZPROM ENERGY,14.01,"11 Market Place, Stowmarket",Gas,16-Mar-22,2122/12,SME,N,
422497,GAZPROM ENERGY,246,Creeting Rd Depot,Gas,16-Mar-22,2122/12,SME,Y,50%
422497,GAZPROM ENERGY,59.42,Pure Gym & Adjacent Building,Gas,16-Mar-22,2122/12,SME,N,
422497,GAZPROM ENERGY,"5,539.60",Sheltered Accommodation,Gas,16-Mar-22,2122/12,SME,N,
422497,GAZPROM ENERGY,520.73,Temporary Accommodation,Gas,16-Mar-22,2122/12,SME,N,
422497,GAZPROM ENERGY,427.51,Tenancy Services,Gas,16-Mar-22,2122/12,SME,N,
422485,STOWUPLAND VILLAGE HALL,809.72,Bring Sites,Contributions & Donations,16-Mar-22,2122/12,SME,N,
358661,ERNEST DOE & SONS LTD,"14,180.00",Vehicle and Plant Renewals,"Equipment, Tools & Materials",14-Mar-22,2122/12,LGE,N,
358699,ACUITY RESEARCH & PRACTICE LTD,"2,242.50",Software/ICT Projects/Surveys,Improvements,04-Mar-22,2122/12,SME,Y,50%
359039,ACUITY RESEARCH & PRACTICE LTD,"2,242.50",Software/ICT Projects/Surveys,Improvements,30-Mar-22,2122/12,SME,Y,50%
357788,WHYBROW PROPERTY SOLUTIONS LTD,"5,000.00",Building Services,Repairs,31-Jan-22,2122/12,SME,N,
358070,WHYBROW PROPERTY SOLUTIONS LTD,"2,283.33",Building Services,Repairs,14-Feb-22,2122/12,SME,N,
358071,WHYBROW PROPERTY SOLUTIONS LTD,"12,734.70",Building Services,Repairs,14-Feb-22,2122/12,SME,N,
358128,WHYBROW PROPERTY SOLUTIONS LTD,"8,634.19",Building Services,Repairs,21-Dec-21,2122/12,SME,N,
358185,WHYBROW PROPERTY SOLUTIONS LTD,491.14,Major Imps,Major Contracts,22-Feb-22,2122/12,SME,N,
358282,WHYBROW PROPERTY SOLUTIONS LTD,498,Building Services,Repairs,28-Feb-22,2122/12,SME,N,
358285,WHYBROW PROPERTY SOLUTIONS LTD,665,Window & Door Rplcmts,Improvements,28-Feb-22,2122/12,SME,N,
358333,WHYBROW PROPERTY SOLUTIONS LTD,"1,541.00",Building Services,BMBS Repairs Work,22-Feb-22,2122/12,SME,N,
358334,WHYBROW PROPERTY SOLUTIONS LTD,"1,541.15",Building Services,BMBS Repairs Work,22-Feb-22,2122/12,SME,N,
358501,WHYBROW PROPERTY SOLUTIONS LTD,458,Council House Adaptions,Improvements,07-Mar-22,2122/12,SME,N,
358619,WHYBROW PROPERTY SOLUTIONS LTD,"3,554.82",Building Services,Repairs,11-Mar-22,2122/12,SME,N,
358620,WHYBROW PROPERTY SOLUTIONS LTD,"6,000.00",Building Services,Repairs,11-Mar-22,2122/12,SME,N,
358698,WHYBROW PROPERTY SOLUTIONS LTD,"3,000.00",Building Services,Repairs,15-Oct-21,2122/12,SME,N,
358741,WHYBROW PROPERTY SOLUTIONS LTD,"7,098.83",Building Services,Repairs,14-Mar-22,2122/12,SME,N,
358756,WHYBROW PROPERTY SOLUTIONS LTD,348,Major Imps,Major Contracts,17-Mar-22,2122/12,SME,N,
358759,WHYBROW PROPERTY SOLUTIONS LTD,"2,431.53",Building Services,Repairs,17-Mar-22,2122/12,SME,N,
358760,WHYBROW PROPERTY SOLUTIONS LTD,"3,480.64",Building Services,Repairs,17-Mar-22,2122/12,SME,N,
358850,WHYBROW PROPERTY SOLUTIONS LTD,"5,000.00",Building Services,Repairs,21-Mar-22,2122/12,SME,N,
358971,WHYBROW PROPERTY SOLUTIONS LTD,"5,799.89",Building Services,Repairs,28-Mar-22,2122/12,SME,N,
422431,WHYBROW PROPERTY SOLUTIONS LTD,722,Wingfield Barns,Repairs,28-Feb-22,2122/12,SME,N,
358392,L A C CLEANING CONTRACTORS LIMITED,395.5,Sheltered Accommodation,General Cleaning,02-Mar-22,2122/12,SME,N,
358518,L A C CLEANING CONTRACTORS LIMITED,570.5,Neighbourhood Services,Neighbourhood Improvement Proj,08-Mar-22,2122/12,SME,N,
358519,L A C CLEANING CONTRACTORS LIMITED,532.5,Neighbourhood Services,Neighbourhood Improvement Proj,08-Mar-22,2122/12,SME,N,
359050,L A C CLEANING CONTRACTORS LIMITED,798.41,Temporary Accommodation,General Cleaning,28-Mar-22,2122/12,SME,N,
358610,ARMSTRONG YORK ASBESTOS ENVIRONMENTAL,"6,990.68",Asbestos Survey & Reinspection,Prof & Consultancy Fees,28-Feb-22,2122/12,SME,N,
358607,STRADBROKE COURTHOUSE & LIBRARY TRUST,500,Grants & Contrbns,Contributions & Donations,11-Mar-22,2122/12,SME,N,
358263,WOOLPIT CRICKET CLUB,"1,800.00",Grants & Contrbns,Contributions & Donations,27-Feb-22,2122/12,SME,N,
422397,1ST BACTON SCOUT GROUP,557.9,Bring Sites,Contributions & Donations,02-Mar-22,2122/12,SME,N,
359057,BT DIRECT DEBIT,"10,794.81",ICT,Telephone Costs,21-Mar-22,2122/12,LGE,Y,50%
358308,TRADITION (UK) LTD,"4,219.18",Treasury Management,Prof & Consultancy Fees,28-Feb-22,2122/12,LGE,N,
422413,OLD NEWTON VILLAGE HALL,362.56,Bring Sites,Contributions & Donations,02-Mar-22,2122/12,SME,N,
358877,ORSIS UK LTD,"4,902.00",PV Panels,Contracted Services,23-Mar-22,2122/12,SME,N,
358274,OPUS PEOPLE SOLUTIONS LTD,974.81,Current Liabilities,Agency Staff Holding A/C,24-Feb-22,2122/12,SME,N,
358494,OPUS PEOPLE SOLUTIONS LTD,974.8,Current Liabilities,Agency Staff Holding A/C,03-Mar-22,2122/12,SME,N,
358703,OPUS PEOPLE SOLUTIONS LTD,734.67,Current Liabilities,Agency Staff Holding A/C,10-Mar-22,2122/12,SME,N,
358771,OPUS PEOPLE SOLUTIONS LTD,678.11,Current Liabilities,Agency Staff Holding A/C,17-Mar-22,2122/12,SME,N,
359010,OPUS PEOPLE SOLUTIONS LTD,678.11,Current Liabilities,Agency Staff Holding A/C,24-Mar-22,2122/12,SME,N,
359071,OPUS PEOPLE SOLUTIONS LTD,678.11,Current Liabilities,Agency Staff Holding A/C,31-Mar-22,2122/12,SME,N,
358029,CORNERSTONE BARRISTERS,"2,000.00",Leaseholders,Misc Supplies & Services Costs,14-Feb-22,2122/12,SME,N,
358397,CORNERSTONE BARRISTERS,"1,250.00",Devt Management - Apps,Legal Expenses,01-Mar-22,2122/12,SME,N,
358261,FELSHAM & GEDDING PLAYINGFIELD COMMITTEE,500,Grants & Contrbns,Contributions & Donations,27-Feb-22,2122/12,SME,N,
357718,DUTTON COMMUNICATIONS LTD T/A CABLECOMMS,468.17,ICT -Hardware/Software Refresh,Desktop Software,31-Jan-22,2122/12,SME,N,
358701,ELMHURST ENERGY SYSTEMS LTD,"1,809.00",Bldg Regs Chargeable Serv,Training,08-Mar-22,2122/12,SME,Y,50%
358374,VERTAS GROUP LTD,"1,485.00",Unapportionable Central OHs,Security Systems,31-Jan-22,2122/12,SME,N,
358434,VERTAS GROUP LTD,"1,260.00",Unapportionable Central OHs,Security Systems,28-Feb-22,2122/12,SME,N,
358482,4PRINCIPLES CONSTRUCTION LTD,"5,270.07",Mand Disabled Facilities Grant,Grants,07-Mar-22,2122/12,SME,N,
358516,4PRINCIPLES CONSTRUCTION LTD,"6,488.39",Mand Disabled Facilities Grant,Grants,08-Mar-22,2122/12,SME,N,
358868,4PRINCIPLES CONSTRUCTION LTD,"10,780.30",Mand Disabled Facilities Grant,Grants,23-Mar-22,2122/12,SME,N,
358996,4PRINCIPLES CONSTRUCTION LTD,"1,933.12",Mand Disabled Facilities Grant,Grants,29-Mar-22,2122/12,SME,N,
358270,MATT ALLMAN LTD T/A MOVEITCLEARITFINDIT,825,Homeless Prevention Fund,Removal Expenses,22-Feb-22,2122/12,SME,N,
358717,BIRKETTS LLP,"2,898.50",Stowmarket Middle School,Legal Expenses,11-Mar-22,2122/12,LGE,N,
358478,UK CONTAINER MAINTENANCE LTD,"4,027.55",Jnt Waste Contract,"Equipment, Tools & Materials",28-Feb-22,2122/12,SME,N,
358706,GALLAGHER CAR & VAN RENTALS LTD,"1,142.10",Domestic Waste,Refuse Contract,16-Mar-22,2122/12,LGE,N,
358721,GALLAGHER CAR & VAN RENTALS LTD,911.9,Domestic Waste,Refuse Contract,16-Mar-22,2122/12,LGE,N,
358769,GALLAGHER CAR & VAN RENTALS LTD,"1,100.00",Domestic Waste,Refuse Contract,18-Mar-22,2122/12,LGE,N,
358024,CIRRUS RESEARCH PLC,663,Environmental Protection,Contracted Services,10-Feb-22,2122/12,SME,Y,50%
358483,CIRRUS RESEARCH PLC,"1,700.00",Environmental Protection,"Equipment, Tools & Materials",04-Mar-22,2122/12,SME,Y,50%
358483,CIRRUS RESEARCH PLC,"2,433.00",Environmental Protection,Misc Supplies & Services Costs,04-Mar-22,2122/12,SME,Y,50%
358271,SOMERSHAM TENNIS CLUB,"11,504.00",Community Fund Projects-Grants,Grants,28-Feb-22,2122/12,SME,N,
358277,ST PETERS 60 PLUS CLUB,500,Grants & Contrbns,Contributions & Donations,28-Feb-22,2122/12,SME,N,
358880,PENNA PLC,"4,000.00",Organisational Devt,Recruitment,16-Mar-22,2122/12,SME,Y,50%
358881,PENNA PLC,"4,000.00",Organisational Devt,Recruitment,16-Mar-22,2122/12,SME,Y,50%
358882,PENNA PLC,"1,866.00",Organisational Devt,Recruitment,16-Mar-22,2122/12,SME,Y,50%
358262,ELMSWELL LIBRARY FRIENDS,690,Grants & Contrbns,Contributions & Donations,27-Feb-22,2122/12,SME,N,
358272,YAXLEY COMMUNITY CENTRE,"2,085.60",Community Fund Projects-Grants,Grants,28-Feb-22,2122/12,SME,N,
358635,BACTON VILLAGE HALL,560.4,Grants & Contrbns,Contributions & Donations,13-Mar-22,2122/12,SME,N,
358648,THRANDESTON HALL ASSOCIATION,"3,100.00",Grants & Contrbns,Contributions & Donations,13-Mar-22,2122/12,SME,N,
357344,LOFTY HEIGHTS LTD,"2,650.00",Tenancy Services,Grounds & Site Maintenance,13-Jan-22,2122/12,SME,N,
358416,RICHARD UTTING ASSOCIATES LLP,"1,293.23","Green Road, Woolpit",Prof & Consultancy Fees,28-Feb-22,2122/12,SME,N,
358517,RICHARD UTTING ASSOCIATES LLP,"1,787.20",Needham Market Middle School,Prof & Consultancy Fees,28-Feb-22,2122/12,SME,N,
422453,HM COURTS & TRIBUNALS SERVICE  (DD ONLY),355,Tenancy Services,Legal Expenses,01-Mar-22,2122/12,LGE,N,
358372,PUBLIC SEWER SERVICES,"1,105.74",Stradbrooke Pl - General Reps,Prof & Consultancy Fees,24-Feb-22,2122/12,SME,N,
358385,PUBLIC SEWER SERVICES,568.57,Building Services,Repairs,24-Feb-22,2122/12,SME,N,
359087,SMARTSURVEY LTD,"1,080.00",Organisational Devt,Corporate Training,14-Mar-22,2122/12,SME,Y,50%
358622,PLACE SERVICES,560,Nghbrhd Plan Designations,Prof & Consultancy Fees,11-Mar-22,2122/12,SME,N,
358388,THE STOWMARKET GLASS COMPANY LTD,"1,946.59",Building Services,Repairs,23-Feb-22,2122/12,SME,N,
358762,ASPECT CONTRACTS LTD,"1,764.00",Asbestos,Improvements,17-Mar-22,2122/12,LGE,N,
358605,WILBY VILLAGE HALL,396,Grants & Contrbns,Contributions & Donations,11-Mar-22,2122/12,SME,N,
422433,RIX PETROLEUM (EAST ANGLIA) LTD,"7,209.00",Open Spaces,Plant & Vehicle Fuel,02-Mar-22,2122/12,SME,N,
358414,KNOWLES ASSOCIATES TFM LTD,"20,589.30",Vehicle and Plant Renewals,Plant & Vehicle - Purchase,07-Feb-22,2122/12,SME,N,
358606,NORTHUMBRIAN WATER LTD,"1,280.79",Sheltered Accommodation,Legionella Testing,11-Mar-22,2122/12,LGE,N,
358606,NORTHUMBRIAN WATER LTD,37.45,Tenancy Services,Legionella Testing,11-Mar-22,2122/12,LGE,N,
358982,NORTHUMBRIAN WATER LTD,28.9,Cedars Park,Legionella Testing,28-Mar-22,2122/12,LGE,N,
358982,NORTHUMBRIAN WATER LTD,18.9,Creeting Rd Depot,Legionella Testing,28-Mar-22,2122/12,LGE,Y,50%
358982,NORTHUMBRIAN WATER LTD,34.15,Headquarters General,Legionella Testing,28-Mar-22,2122/12,LGE,N,
358982,NORTHUMBRIAN WATER LTD,28.9,Leisure Contract,Legionella Testing,28-Mar-22,2122/12,LGE,N,
358982,NORTHUMBRIAN WATER LTD,183.9,Open Spaces,Legionella Testing,28-Mar-22,2122/12,LGE,N,
358982,NORTHUMBRIAN WATER LTD,34.15,Other HRA Temp Accommodation,Legionella Testing,28-Mar-22,2122/12,LGE,N,
358982,NORTHUMBRIAN WATER LTD,68.3,Public Conveniences,Legionella Testing,28-Mar-22,2122/12,LGE,N,
358982,NORTHUMBRIAN WATER LTD,470.25,Responsive maintenance,Legionella Testing,28-Mar-22,2122/12,LGE,N,
358982,NORTHUMBRIAN WATER LTD,438.7,Sheltered Accommodation,Legionella Testing,28-Mar-22,2122/12,LGE,N,
358982,NORTHUMBRIAN WATER LTD,34.15,Temporary Accommodation,Legionella Testing,28-Mar-22,2122/12,LGE,N,
358982,NORTHUMBRIAN WATER LTD,63.05,Wingfield Barns,Legionella Testing,28-Mar-22,2122/12,LGE,N,
358429,GIPPING OCCUPATIONAL HEALTH LTD,675,Health & Safety,Contracted Services,03-Mar-22,2122/12,SME,Y,50%
358626,PARK AVENUE RECRUITMENT LTD,922.5,Devt Management - Apps,Prof & Consultancy Fees,08-Mar-22,2122/12,SME,Y,45.50%
358627,PARK AVENUE RECRUITMENT LTD,"1,640.00",Devt Management - Apps,Prof & Consultancy Fees,22-Feb-22,2122/12,SME,Y,45.50%
358733,WS TRAINING LTD,800,RHSSF,Misc Supplies & Services Costs,16-Mar-22,2122/12,SME,N,
358599,SKYGUARD LTD T/A PEOPLESAFE,864,Health & Safety,"Equipment, Tools & Materials",27-Feb-22,2122/12,SME,Y,50%
358843,IPSWICH TOWN FOOTBALL CLUB CO. LTD,"1,443.00",Management Team,Conference Expenses,11-Mar-22,2122/12,LGE,Y,50%
358725,PCL CORPORATEWEAR LTD,392.5,Bldg Regs Chargeable Serv,Protective clothing,15-Mar-22,2122/12,SME,Y,50%
358556,LICENCE CHECK LTD,350,Health & Safety,Contracted Services,10-Mar-22,2122/12,SME,Y,50%
358892,RATTLESDEN COMMUNITY COUNCIL,"10,441.73",Community Fund Projects-Grants,Grants,24-Mar-22,2122/12,SME,N,
358919,PORTAL PLAN QUEST LTD,462,Devt Management - Apps,Planning Fees,25-Mar-22,2122/12,SME,N,
358934,PORTAL PLAN QUEST LTD,256,Devt Management - Apps,Planning Fees,25-Mar-22,2122/12,SME,N,
358339,ABBEYCROFT LEISURE,"2,115.00",Holiday Activity Fund,"Equipment, Tools & Materials",01-Mar-22,2122/12,LGE,N,
358883,BELLWAY HOMES LIMITED (ESSEX DIVISION),"105,935.85",Eves Meadow Haughley S106,Prof & Consultancy Fees,16-Mar-22,2122/12,LGE,N,
358640,NEEDHAM MARKET SKATE PARK,"3,875.10",Grants & Contrbns,Contributions & Donations,13-Mar-22,2122/12,SME,N,
358442,SOLACE IN BUSINESS,"10,800.00",Bus Imp (Corp),Agency Staff,04-Mar-22,2122/12,SME,Y,50%
358138,A C LEIGH (NORWICH) LTD,286.07,Building Services,"Equipment, Tools & Materials",14-Feb-22,2122/12,SME,N,
358257,A C LEIGH (NORWICH) LTD,529.12,Building Services,"Equipment, Tools & Materials",25-Feb-22,2122/12,SME,N,
358804,SUFFOLK POWER EQUIPMENT,489.04,Open Spaces,Plant & Vehicle - Other costs,18-Mar-22,2122/12,ST,N,
358474,3 POINT PROPERTY MANAGEMENT LTD,675,Guaranteed Rent Scheme,Rent Payable,07-Mar-22,2122/12,SME,N,
358793,AHM INSTALLATIONS LTD,"7,500.00",Mand Disabled Facilities Grant,Grants,21-Mar-22,2122/12,SME,N,
358440,FLAGSHIP HOUSING GROUP LTD-RENT ACCOUNT,459.96,Homeless Prevention Fund,Misc Supplies & Services Costs,04-Mar-22,2122/12,LGE,N,
358608,FLAGSHIP HOUSING GROUP LTD-RENT ACCOUNT,662.62,Dwelling Rents-General,Rents,11-Mar-22,2122/12,LGE,N,
358709,NORSE EASTERN LTD,"2,269.00",Mand Disabled Facilities Grant,Grants,16-Mar-22,2122/12,LGE,N,
359024,EAST SUFFOLK COUNCIL,"12,500.00",Economy & Business,Contributions & Donations,29-Mar-22,2122/12,LGE,Y,50%
359069,EAST SUFFOLK COUNCIL,"37,935.00",Community Wellbeing,Contributions & Donations,31-Mar-22,2122/12,LGE,N,
358389,DG ACCESSIBLE DESIGNS,"1,437.10",Mand Disabled Facilities Grant,Grants,21-Feb-22,2122/12,SME,N,
358178,HUGHES TRADE,904.8,Homelessness Private Sector,Furniture,22-Feb-22,2122/12,LGE,N,
358507,HUGHES TRADE,318.2,Other Temp Accommodation,Furniture,08-Mar-22,2122/12,LGE,N,
358719,HUGHES TRADE,991.93,Other Temp Accommodation,Furniture,16-Mar-22,2122/12,LGE,N,
358728,HUGHES TRADE,284.33,Other Temp Accommodation,Furniture,16-Mar-22,2122/12,LGE,N,
358729,HUGHES TRADE,284.33,Other Temp Accommodation,Furniture,16-Mar-22,2122/12,LGE,N,
422403,2ND EYE RAINBOWS,881.94,Bring Sites,Contributions & Donations,02-Mar-22,2122/12,SME,N,
358433,APTL ENTERPRISES LTD,"3,176.25",PV Panels,Repairs,28-Feb-22,2122/12,SME,N,
358359,WASHCO LTD,467,Sheltered Accommodation,"Equipment, Tools & Materials",01-Mar-22,2122/12,SME,N,
358970,PEOPLE FOCUSED TRAINING & SOLUTIONS LTD,619,Organisational Devt,Health & Safety Training,02-Mar-22,2122/12,ST,Y,50%
357939,ANGLIA COMMERCIAL FLOORING LTD,474.7,Building Services,Repairs,20-Dec-21,2122/12,SME,N,
358555,ANGLIA COMMERCIAL FLOORING LTD,688.72,Building Services,Repairs,08-Mar-22,2122/12,SME,N,
358559,ANGLIA COMMERCIAL FLOORING LTD,894.35,Building Services,Repairs,08-Mar-22,2122/12,SME,N,
358560,ANGLIA COMMERCIAL FLOORING LTD,739.2,Building Services,Repairs,08-Mar-22,2122/12,SME,N,
358561,ANGLIA COMMERCIAL FLOORING LTD,285.33,Building Services,Repairs,08-Mar-22,2122/12,SME,N,
358562,ANGLIA COMMERCIAL FLOORING LTD,"1,365.98",Building Services,Repairs,08-Mar-22,2122/12,SME,N,
358563,ANGLIA COMMERCIAL FLOORING LTD,305,Building Services,Repairs,08-Mar-22,2122/12,SME,N,
358564,ANGLIA COMMERCIAL FLOORING LTD,368.96,Building Services,Repairs,08-Mar-22,2122/12,SME,N,
358566,ANGLIA COMMERCIAL FLOORING LTD,687.9,Building Services,Repairs,08-Mar-22,2122/12,SME,N,
358567,ANGLIA COMMERCIAL FLOORING LTD,638.35,Building Services,Repairs,08-Mar-22,2122/12,SME,N,
358568,ANGLIA COMMERCIAL FLOORING LTD,998.79,Building Services,Repairs,08-Mar-22,2122/12,SME,N,
358569,ANGLIA COMMERCIAL FLOORING LTD,482.09,Building Services,Repairs,08-Mar-22,2122/12,SME,N,
358570,ANGLIA COMMERCIAL FLOORING LTD,309.92,Building Services,Repairs,08-Mar-22,2122/12,SME,N,
358571,ANGLIA COMMERCIAL FLOORING LTD,737.91,Building Services,Repairs,08-Mar-22,2122/12,SME,N,
422489,ANGLIAN WATER BUS (NAT) LTD T/A WAVE,44.96,"11 Market Place, Stowmarket",Water Rates - Metered,12-Mar-22,2122/12,LGE,N,
422489,ANGLIAN WATER BUS (NAT) LTD T/A WAVE,572.78,Creeting Rd Depot,Water Rates - Metered,12-Mar-22,2122/12,LGE,Y,50%
422489,ANGLIAN WATER BUS (NAT) LTD T/A WAVE,28.13,General/Supervision & Mgmt,Water Rates - Metered,12-Mar-22,2122/12,LGE,N,
422489,ANGLIAN WATER BUS (NAT) LTD T/A WAVE,106.47,Headquarters General,Water Rates - Metered,12-Mar-22,2122/12,LGE,N,
422489,ANGLIAN WATER BUS (NAT) LTD T/A WAVE,110.78,Open Spaces,Water Rates - Metered,12-Mar-22,2122/12,LGE,N,
422489,ANGLIAN WATER BUS (NAT) LTD T/A WAVE,"2,155.52",Public Conveniences,Water Rates - Metered,12-Mar-22,2122/12,LGE,N,
422489,ANGLIAN WATER BUS (NAT) LTD T/A WAVE,3.64,Recycling Centre,Water Rates - Metered,12-Mar-22,2122/12,LGE,N,
422489,ANGLIAN WATER BUS (NAT) LTD T/A WAVE,3.64,Sewage Treatment Works,Water Rates - Metered,12-Mar-22,2122/12,LGE,N,
422489,ANGLIAN WATER BUS (NAT) LTD T/A WAVE,"1,284.02",Sheltered Accommodation,Water Rates - Metered,12-Mar-22,2122/12,LGE,N,
422489,ANGLIAN WATER BUS (NAT) LTD T/A WAVE,9.23,Tacon Close Eye TDP,Water Rates - Metered,12-Mar-22,2122/12,LGE,N,
422489,ANGLIAN WATER BUS (NAT) LTD T/A WAVE,12.19,Temporary Accommodation,Water Rates - Metered,12-Mar-22,2122/12,LGE,N,
422489,ANGLIAN WATER BUS (NAT) LTD T/A WAVE,-8.67,Tenancy Services,Water Rates - Metered,12-Mar-22,2122/12,LGE,N,
422489,ANGLIAN WATER BUS (NAT) LTD T/A WAVE,106.63,Wingfield Barns,Water Rates - Metered,12-Mar-22,2122/12,LGE,N,
358465,PARKYNS LETTINGS BURY ST EDMUNDS,650,Guaranteed Rent Scheme,Rent Payable,07-Mar-22,2122/12,SME,N,
358751,HEALTH AND CARE (UK) LTD,937.38,Jnt Waste Contract,"Equipment, Tools & Materials",13-Jan-22,2122/12,SME,Y,50%
358288,ALBION COMPUTERS PLC,"2,831.00",Jnt Waste Contract,Computer Equpt Purchases,31-Jan-22,2122/12,SME,Y,50%
358216,SKY HIGH ACCESS LTD,336,Open Spaces,"Equipment, Tools & Materials",22-Feb-22,2122/12,SME,Y,50%
358393,GREENACRE RECRUITMENT LTD,"1,110.00",Housing Standards,Agency Staff,02-Mar-22,2122/12,SME,Y,50%
358526,GREENACRE RECRUITMENT LTD,"1,110.00",Housing Standards,Agency Staff,09-Mar-22,2122/12,SME,Y,50%
358714,GREENACRE RECRUITMENT LTD,"1,110.00",Housing Standards,Agency Staff,16-Mar-22,2122/12,SME,Y,50%
358888,GREENACRE RECRUITMENT LTD,"1,110.00",Housing Standards,Agency Staff,23-Mar-22,2122/12,SME,Y,50%
359040,GREENACRE RECRUITMENT LTD,"1,110.00",Housing Standards,Agency Staff,30-Mar-22,2122/12,SME,Y,50%
358632,BRAMFORD LORAINE VICTORY HALL,"2,986.00",Grants & Contrbns,Contributions & Donations,13-Mar-22,2122/12,SME,N,
358786,STOWMARKET (SST3) SUFFOLK FOOTBALL ASSN,"2,500.00",Suffolk Community Restart Fund,Contributions & Donations,18-Mar-22,2122/12,SME,N,
358600,WICKHAM SKEITH VILLAGE HALL,450,Grants & Contrbns,Contributions & Donations,11-Mar-22,2122/12,SME,N,
358457,MID SUFFOLK GROWTH LTD,"106,814.00","Church Road, Elmswell",Prof & Consultancy Fees,04-Mar-22,2122/12,SME,N,
358981,MID SUFFOLK GROWTH LTD,"500,000.00",Regen Fund - HQ Sites,Major Contracts,27-Mar-22,2122/12,SME,N,
359011,MID SUFFOLK GROWTH LTD,"54,602.40",Needham HQ S106 Units,Purchase of Land & Buildings,27-Mar-22,2122/12,SME,N,
359049,MID SUFFOLK GROWTH LTD,"41,497.82",Regen Fund - HQ Sites,Prof & Consultancy Fees,26-Mar-22,2122/12,SME,N,
358275,DEMOCRACY COUNTS LTD,"4,600.00",Electoral Registration,Software Licnse (Line of Bus) ,22-Feb-22,2122/12,SME,N,
358467,DEMOCRACY COUNTS LTD,"9,450.00",Electoral Registration,Returning Officer Fees,31-Jan-22,2122/12,SME,N,
358558,QUADIENT UK LIMITED,"2,000.00",Central Postal Serv,Postage,05-Mar-22,2122/12,LGE,Y,50%
358720,WATERLOGIC,641.58,Creeting Rd Depot,Contracted Services,15-Mar-22,2122/12,LGE,Y,50%
358894,GATEHOUSE CARING IN EAST ANGLIA,302,RoughSleepersInterventionYr3,Misc Supplies & Services Costs,24-Mar-22,2122/12,SME,N,
359061,SPRYTAR LTD,"2,000.00",RHSSF,Advertising&mkting (non-staff),30-Mar-22,2122/12,SME,N,
358415,PENTACO CONSTRUCTION LTD,"169,560.00",Stowmarket Middle School,Annual Bldg Maint Contracts,01-Mar-22,2122/12,SME,N,
358898,HAUGHLEY PLAYING FIELD BOWLS CLUB,"1,000.00",Grants & Contrbns,Grants,24-Mar-22,2122/12,SME,N,
358604,STOWMARKET STROKE SUPPORT GROUP,840,Grants & Contrbns,Contributions & Donations,11-Mar-22,2122/12,SME,N,
358529,BRANDON WETROOMS,"5,366.78",Mand Disabled Facilities Grant,Grants,09-Mar-22,2122/12,SME,N,
358137,EYES OPEN CIC,"1,190.00",Business Innovation Grants,Grants,21-Feb-22,2122/12,SME,N,
358365,EYES OPEN CIC,"5,308.40",Policy & Strategy (H & W),Contributions & Donations,01-Mar-22,2122/12,SME,N,
358940,LIMELEASE LTD,395,Guaranteed Rent Scheme,Rent Payable,28-Mar-22,2122/12,SME,N,
358407,BUCHER MUNICIPAL LTD,"2,530.57",Street & Major Road Cleansing,Plant & Vehicle - Other costs,03-Mar-22,2122/12,LGE,N,
358486,BUCHER MUNICIPAL LTD,818.48,Open Spaces,"Equipment, Tools & Materials",07-Mar-22,2122/12,LGE,N,
358487,BUCHER MUNICIPAL LTD,509.71,Open Spaces,"Equipment, Tools & Materials",07-Mar-22,2122/12,LGE,N,
358815,BUCHER MUNICIPAL LTD,"2,013.60",Street & Major Road Cleansing,Plant & Vehicle - Other costs,21-Mar-22,2122/12,LGE,N,
358490,GIPPING CONSTRUCTION LTD,"10,332.04",Regen Fund - HQ Sites,Prof & Consultancy Fees,03-Mar-22,2122/12,SME,N,
358490,GIPPING CONSTRUCTION LTD,"135,264.96",Needham Market Middle School,Prof & Consultancy Fees,03-Mar-22,2122/12,SME,N,
358990,GIPPING CONSTRUCTION LTD,"17,402.02",Regen Fund - HQ Sites,Prof & Consultancy Fees,25-Mar-22,2122/12,SME,N,
358990,GIPPING CONSTRUCTION LTD,"227,823.61",Needham Market Middle School,Prof & Consultancy Fees,25-Mar-22,2122/12,SME,N,
358711,GOULD ADAPTIONS LTD,"5,249.96",Mand Disabled Facilities Grant,Grants,16-Mar-22,2122/12,SME,N,
358034,CAPITA BUSINESS SERVICES LTD (PAY360),"3,579.42",Bank Chgs,Bank Charges,14-Feb-22,2122/12,LGE,N,
358680,CAPITA BUSINESS SERVICES LTD (PAY360),"3,094.28",Bank Chgs,Bank Charges,14-Mar-22,2122/12,LGE,N,
358643,RIVER GIPPING TRUST,"1,750.00",Grants & Contrbns,Contributions & Donations,13-Mar-22,2122/12,SME,N,
358266,OBEE CIC,814,Grants & Contrbns,Contributions & Donations,27-Feb-22,2122/12,SME,N,
358267,OBEE CIC,"1,113.13",Grants & Contrbns,Contributions & Donations,27-Feb-22,2122/12,SME,N,
358775,STRENGTHSCOPE LIMITED,900,Organisational Devt,Corporate Training,16-Mar-22,2122/12,SME,Y,50%
358776,STRENGTHSCOPE LIMITED,"1,215.00",Organisational Devt,Corporate Training,17-Mar-22,2122/12,SME,Y,50%
358390,CORENERGY LIMITED,"17,347.40",Public Sector Decarbonisation,Contracted Services,28-Feb-22,2122/12,SME,N,
358469,PRIVATE LANDLORD,786.5,Guaranteed Rent Scheme,Rent Payable,07-Mar-22,2122/12,ST,N,
358409,COUNTRYSTYLE RECYCLING LTD,"3,705.11",Bring Sites,Contracted Services,28-Feb-22,2122/12,SME,N,
358436,COUNTRYSTYLE RECYCLING LTD,984,Trade Waste,Trade Waste Disposal,28-Feb-22,2122/12,SME,Y,50%
358603,COUNTRYSTYLE RECYCLING LTD,"2,775.00",Trade Waste,Trade Waste Disposal,28-Feb-22,2122/12,SME,Y,50%
358858,TEMPLE LETTINGS,850,Guaranteed Rent Scheme,Rent Payable,22-Mar-22,2122/12,SME,N,
358296,DGL QUALITY MANAGEMENT LTD,870.76,Needham Market Middle School,Prof & Consultancy Fees,28-Feb-22,2122/12,SME,N,
358642,CHRISTCHURCH NEEDHAM MARKET,"1,700.00",Grants & Contrbns,Contributions & Donations,13-Mar-22,2122/12,SME,N,
358899,PRIMADONNA FESTIVAL CIC,"1,000.00",Grants & Contrbns,Grants,24-Mar-22,2122/12,SME,N,
358980,PRIMADONNA FESTIVAL CIC,"2,495.00",RHSSF,Advertising&mkting (non-staff),28-Mar-22,2122/12,SME,N,
358645,NEEDHAM MARKET COMMUNITY CHINWAG,"1,000.00",Grants & Contrbns,Contributions & Donations,13-Mar-22,2122/12,SME,N,
422429,DEMENTIA UK,321.64,Bring Sites,Contributions & Donations,02-Mar-22,2122/12,SME,N,
358823,GUYS & ST THOMAS'S NHS FOUNDATION TRUST,"5,422.00",Public Sector Decarbonisation,Contracted Services,11-Mar-22,2122/12,LGE,Y,50%
358147,ARAN INSULATION LTD,"3,094.56",Insulation Imps,Improvements,21-Feb-22,2122/12,SME,N,
358217,ARAN INSULATION LTD,"1,680.86",Insulation Imps,Improvements,24-Feb-22,2122/12,SME,N,
358381,ARAN INSULATION LTD,815,Insulation Imps,Improvements,28-Feb-22,2122/12,SME,N,
358391,ARAN INSULATION LTD,"3,395.00",Insulation Imps,Improvements,28-Feb-22,2122/12,SME,N,
358688,ARAN INSULATION LTD,"1,070.76",Insulation Imps,Improvements,14-Mar-22,2122/12,SME,N,
358746,ARAN INSULATION LTD,554.26,Insulation Imps,Improvements,17-Mar-22,2122/12,SME,N,
358947,ARAN INSULATION LTD,852.76,Insulation Imps,Improvements,28-Mar-22,2122/12,SME,N,
358485,ORWELL REMOVALS & STORAGE LTD,810,Homeless Prevention Fund,Removal Expenses,02-Feb-22,2122/12,SME,N,
358527,IAN BOOTH CONSULTANT ENGINEER LTD,600,Strategic Assets,Prof & Consultancy Fees,04-Mar-22,2122/12,SME,N,
358765,IAN BOOTH CONSULTANT ENGINEER LTD,529.5,Roads and Paths,Improvements,04-Mar-22,2122/12,SME,N,
358902,SUFFOLK RIDING CLUB,525,Suffolk Community Restart Fund,Grants,24-Mar-22,2122/12,SME,N,
358628,DAVID TOLSON PARTNERSHIP LTD,"1,925.00",Tenancy Services,Prof & Consultancy Fees,08-Feb-22,2122/12,SME,Y,50%
358304,MARCHDELL LTD,715,Guaranteed Rent Scheme,Rent Payable,01-Mar-22,2122/12,SME,N,
359078,MARCHDELL LTD,715,Guaranteed Rent Scheme,Rent Payable,31-Mar-22,2122/12,SME,N,
358420,POLYSOLAR LTD,"107,352.85",Public Sector Decarbonisation,Contracted Services,28-Jan-22,2122/12,SME,N,
358479,POLYSOLAR LTD,"150,495.84",Public Sector Decarbonisation,Contracted Services,25-Feb-22,2122/12,SME,N,
358523,E.ON NEXT,742.39,Other HRA Temp Accommodation,Heating Charges,26-Feb-22,2122/12,LGE,N,
358332,IPSERV LTD,139.97,Communications,Commercial Printing,01-Mar-22,2122/12,SME,Y,61%
358332,IPSERV LTD,314.78,Central Printing,Commercial Printing,01-Mar-22,2122/12,SME,N,
358976,SSE,332.6,Voids Maintenance,Electricity,14-Feb-22,2122/12,LGE,N,
358791,PRIVATE LANDLORD,669,Guaranteed Rent Scheme,Rent Payable,21-Mar-22,2122/12,ST,N,
358426,JACKSON LIFT SERVICES LTD,624.99,Sheltered Accommodation,Plant Maintenance,03-Mar-22,2122/12,LGE,N,
358259,PRIVATE LANDLORD,650,Guaranteed Rent Scheme,Rent Payable,28-Feb-22,2122/12,ST,N,
358734,BACTON UNITED 89 FOOTBALL CLUB,"1,020.00",Suffolk Community Restart Fund,Grants,16-Mar-22,2122/12,SME,N,
422359,GREENTECH LTD,389.4,Devt Management - Apps,Biodiversity Task Force,09-Feb-22,2122/12,SME,Y,
422359,GREENTECH LTD,354,Public Tree Programme,Horticultural Purchases,09-Feb-22,2122/12,SME,Y,50%
422359,GREENTECH LTD,354,Devt Management - Apps,Biodiversity Task Force,09-Feb-22,2122/12,SME,Y,50%
358471,PRIVATE LANDLORD,495,Guaranteed Rent Scheme,Rent Payable,07-Mar-22,2122/12,SME,N,
358305,SHJ HOMES LTD,500,Guaranteed Rent Scheme,Rent Payable,01-Mar-22,2122/12,SME,N,
359079,SHJ HOMES LTD,500,Guaranteed Rent Scheme,Rent Payable,31-Mar-22,2122/12,SME,N,
358732,HAUGHLEY UNITED YOUTH FOOTBALL CLUB,"2,500.00",Suffolk Community Restart Fund,Grants,16-Mar-22,2122/12,SME,N,
358727,KING GEORGE PLAYING FIELD COMMITTEE,"2,700.00",Community Fund Projects-Grants,Grants,16-Mar-22,2122/12,SME,N,
358884,KING GEORGE PLAYING FIELD COMMITTEE,"5,000.00",CIL Funded REFCUS,Grants,23-Mar-22,2122/12,SME,N,
358997,KING GEORGE PLAYING FIELD COMMITTEE,"5,000.00",CIL Funded REFCUS,Grants,29-Mar-22,2122/12,SME,N,
359053,KING GEORGE PLAYING FIELD COMMITTEE,"2,700.00",Community Fund Projects-Grants,Grants,30-Mar-22,2122/12,SME,N,
358682,SAUNDERS BOSTON ARCHITECTS,"2,500.00",BRRP-MarketTownVision&Invest,Prof & Consultancy Fees,28-Feb-22,2122/12,SME,N,
358683,SAUNDERS BOSTON ARCHITECTS,"2,000.00",BRRP-MarketTownVision&Invest,Prof & Consultancy Fees,28-Feb-22,2122/12,SME,N,
358511,SHARPS ACOUSTICS LLP,"6,100.00",Devt Management - Apps,Environmental  Consultancy,28-Feb-22,2122/12,SME,N,
358488,KAD ENVIRONMENTAL CONSULTANCY LTD,475,Cross Street Tech Hub,Prof & Consultancy Fees,07-Mar-22,2122/12,SME,N,
358893,1ST CLAYDON SCOUT GROUP,"1,970.27",Community Fund Projects-Grants,Grants,24-Mar-22,2122/12,SME,N,
358082,THE WHITE HORSE INN LTD,"2,500.00",Business Innovation Grants,Grants,31-Jan-22,2122/12,SME,N,
358859,SANCTUARY HOUSING ASSOCIATION,948.29,Tenancy Services,Other Service Charges,22-Mar-22,2122/12,SME,N,
358933,COLCHESTER INSTITUTE,"1,704.00",Organisational Devt,Training,04-Feb-22,2122/12,LGE,Y,50%
358441,CEDARS PARK ART CIC,500,Transformation Fund,Contributions & Donations,04-Mar-22,2122/12,SME,N,
358287,FOUR WOOD SERVICES LTD,"3,927.18",S106 Open Spaces Expenditure,Grants,28-Feb-22,2122/12,SME,N,
358584,FRIENDS OF BEDFIELD SCHOOL,"1,500.00",Grants & Contrbns,Contributions & Donations,11-Mar-22,2122/12,SME,N,
358583,WOOLPIT SHORT MAT BOWLS CLUB,"1,310.00",Grants & Contrbns,Contributions & Donations,11-Mar-22,2122/12,SME,N,
358590,WOOLPIT ROOM,"1,800.00",Grants & Contrbns,Contributions & Donations,11-Mar-22,2122/12,SME,N,
358591,WOOLPIT TENNIS CLUB,900,Grants & Contrbns,Contributions & Donations,11-Mar-22,2122/12,SME,N,
358592,WOOLPIT DRAMA CLUB,"1,000.00",Grants & Contrbns,Contributions & Donations,11-Mar-22,2122/12,SME,N,
358684,EAST OF ENGLAND TRADING STANDARDS AS LTD,270,Animal Welfare Licensing,Training,14-Mar-22,2122/12,SME,Y,50%
358989,EVERYTHING & ELECTRICAL LTD T/A DOVESTAR,"1,200.00",BRRP-InnovationClusterStowmkt,Annual Bldg Maint Contracts,10-Feb-22,2122/12,SME,N,
358413,NEWBUILD FRAMES LTD,430,"Back Hills, Botesdale, S106",Prof & Consultancy Fees,03-Mar-22,2122/12,SME,N,
358595,WALSHAM LE WILLOWS COMMUNITY COUNCIL,250.14,Grants & Contrbns,Contributions & Donations,11-Mar-22,2122/12,SME,N,
358593,MID SUFFOLK INDOOR BOWLS CLUB,"2,000.00",Grants & Contrbns,Contributions & Donations,11-Mar-22,2122/12,SME,N,
358609,PEOPLE INSIGHT LTD,"19,300.00",Organisational Devt,Corporate Training,23-Dec-21,2122/12,SME,Y,50%
358631,BRAMFORD SCOUT & GUIDE GROUP HQ,"2,248.51",Grants & Contrbns,Contributions & Donations,13-Mar-22,2122/12,SME,N,
358679,STOWMARKET CARNIVAL,"4,732.00",Grants & Contrbns,Contributions & Donations,14-Mar-22,2122/12,SME,N,
358678,HIGH SUFFOLK COMMUNITY TRANSPORT LTD,"2,000.00",Grants & Contrbns,Contributions & Donations,14-Mar-22,2122/12,SME,N,
358665,BOSMERE CONTRACTING LTD,"3,390.00",Open Spaces,"Equipment, Tools & Materials",01-Mar-22,2122/12,SME,N,
358737,GIPPING WOMENS CLUB,700,Grants & Contrbns,Contributions & Donations,16-Mar-22,2122/12,SME,N,
358813,HARLEQUIN TRAVEL,415,Management Team,Conference Expenses,21-Mar-22,2122/12,SME,Y,50%
358738,GIPPING ANGLING PRESERVATION SOCIETY,600,Grants & Contrbns,Contributions & Donations,16-Mar-22,2122/12,SME,N,
358739,NEEDHAM MARKET WALKS,"1,000.00",Grants & Contrbns,Grants,16-Mar-22,2122/12,SME,N,
358946,MOVEITCLEARITFINDITSTOREIT LTD,720,Homeless Prevention Fund,Removal Expenses,21-Mar-22,2122/12,SME,N,
422498,PRIVATE LANDLORD,"1,050.00",Rent Deposit Scheme,Misc Premises Costs,22-Mar-22,2122/12,ST,N,
358914,DLUHC,"7,593.00",GF Non-Specific Grant Income,Contributions to other Bodies,08-Mar-22,2122/12,LGE,N,
358904,GPLR PROPERTIES LTD,"1,256.34",Renovation/Home Repair Grants,Grants,24-Mar-22,2122/12,SME,N,
359045,STOWMARKET MODEL RAILWAY CLUB,966,Suffolk Community Restart Fund,Grants,30-Mar-22,2122/12,SME,N,
358924,OLTHEM PAYMENTS LTD,370,Business Innovation Grants,Grants,25-Mar-22,2122/12,SME,N,
358995,ORIGIN AMENITY SOLUTIONS LTD,880,Open Spaces,"Equipment, Tools & Materials",11-Mar-22,2122/12,SME,N,
422503,PRIVATE LANDLORD,"1,316.04",Rent Deposit Scheme,Misc Premises Costs,30-Mar-22,2122/12,ST,N,
359059,QUILL & INKLING THEATRE CO LTD,600,RHSSF,Advertising&mkting (non-staff),31-Mar-22,2122/12,SME,N,
359046,VIRTUALLY THERE STUDIO CIC,"2,300.00",Suffolk Community Restart Fund,Grants,30-Mar-22,2122/12,SME,N,
909,CLARKES OF WALSHAM LTD,-222.32,Building Services,Repairs,09-Mar-22,2122/12,SME,N,
907,ROYAL MAIL,-407.57,Central Postal Serv,Postage,03-Mar-22,2122/12,LGE,Y,50%
916,REED SPECIALIST RECRUITMENT LTD,-173.93,Governance,Agency Staff,30-Mar-22,2122/12,LGE,Y,50%
917,REED SPECIALIST RECRUITMENT LTD,173.93,Governance,Agency Staff,30-Mar-22,2122/12,LGE,Y,50%
358248,LEX AUTOLEASE,"-1,377.95",Building Services,Lease Cars - Payment,18-Feb-22,2122/12,SME,Y,50%
914,KNOWLES ASSOCIATES TFM LTD,-340.42,Building Services,Lease Cars - Payment,30-Mar-22,2122/12,SME,Y,50%
912,BARKER GOTELEE SOLICITORS,"-2,177.96",Mendlesham - New Build,Prof & Consultancy Fees,24-Mar-22,2122/12,SME,N,
358668,COUNTRYSTYLE RECYCLING LTD,-182.84,Bring Sites,Contracted Services,14-Mar-22,2122/12,SME,N,
